Workbook

Sheet Introduction
B2: Lease Simulation Tool - Version 11.10.21 beta
B3: Gregg Ibendahl and Dan O'brien
B5: This tool is desiged to evaluate cash, share, and flex leases when the crops prices and yields are uncertain. A Monte Carlo simulation is used to vary yields and prices.
B7: How to use
B8: Budget Tab The Budgets tab is where the crops to be grown are incorporated into the profitability analysis. The "Hide / Show all comments" will turn on all the cell comments. These provide the basic overview of how the program works. At the top middle part of the budget page is where the crops to be grown are entered. These cells function as a drop down list. Once you click within the cell, a triangle will appear to the right of the cell. By clicking on this triangle, the list of available budgets will appear. To the left of the budgets is where the user enters the number of crop acres. As part of the acres, the number of fallow acres and the number of double crop acres are needed. These last two numbers are needed to calculate the number of tillable acres. The checkboxes in the upper left hand corner of the budget page can be used to turn a crop on or off. These can be useful to quickly see the effect of a single crop on the analysis. However, when using the simulaiton analysis, all the crops shown in the middle section should be used. Otherwise the correlation matrix may not function correctly. Column C is where the share percentages are entered. If these are left blank, the program assumes that the tenant pays 100%. For the program to adjust these through the share estimate percent, enter something other than a number between 0 and 100. For example, entering an * makes it easy to see that these items are to be adjusted though the share calculation. Cell Z7 is where the share estimation percent is used. The value entered here is then used to calcualte those cells in column C that were not hard coded to a value within the range of 0 to 100. That is if an * was entered in column C, that astrisk would be replaced by the number entered into cell Z7. Excel wil calculate the equitable share percentage. This number shows the tenant's contribution toward all costs that are not shared. Included in the total cost calculation of costs that are not shared is a charge to land. For the equitable share calculation, the cash rent is used as a proxy for a land charge. In effect, this number represents both a charge to borrowed capital and a landowners equity in the land. The equitable share percentage does NOT mean that a tenant and landowner earn the same dollar amout per acre. Differences in the contribution amounts results in different amounts of net $ returns. Note that in the $ return to the landowner on row 63, there is no charge against the land included. The % return to the landlord does include the cash rent as a land charge. Including a land charge for the landlord in the $ of net returns would always result in the landlord earning a negative net return on a cash lease. Thus, to help facilitate comparisons between cash and share leases for the landlord, the landcharge was left off the $ return row. However, the % return for the landlord left in the cash rent as a land charge so that it would match how the equitable share lease was calculated. This has the effect of causing the % return to the landlord for a cash lease to always be negative. Flex Leases Tab The flex lease tab is where the information needed to analyze a flex lease is entered. Because a flex lease is difficult to analyze with just a single set of yields and prices, a Monte Carlo simulaiton is used. A triangluar distribution is used for yields and prices. Thus, the user needs to enter an estimate of the maximum and minium expected price and yield for each crop to be grown on the land. To make the analysis more accurate, the correlation between the yields and prices for th crop mix must also be entered. The bottom section is where information about the flex leases is entered. There are currently 2 major types of flex leases available - flex on prices and flex on yields. For both of these, either a base price or a base yield is needed. The flex part comes from either the final yield or price as the ratio of the yield or price to the base yield or price determines the flex. To see how varying yields and prices affect not only the flex leases but also the cash and share lease, click on the "Run Simulation" button. This normally takes 15 to 30 seconds to run. Closing all other spreadsheets will speed up the calculations. When clicking on the button, it may look like nothing happened but in the lower left corner of the spreadsheet (in the green bar) is a message that says "Please be patient". Excel will present a message box when the simulation has finished running. Output Tab The output tab is where the results are presented Limitations The tool correctly accounts for correlation when running the simulations. However, only triangular distributions are used in the analysis. Only a 200 run simulation is used. Flex lease types are limited to one price flex and one yield flex. Expenses are not adjusted as yields and prices change in the simulation. Some of these limitations will be addressed in future versions of this tool. Additional Documentation All of the tabs have a "Hide / Show all comments" that have more explanations of how the tool works
B31: all results generated by this spreadsheet are offered without any form of warranty, not even for merchantability or fitness for any particular purpose. The user accpets full responsibility for any and all decisions made using the numbers generated from this spreadsheet.
B33: Copyright of Excel macros © 2019 [Gregg Ibendahl]. All Rights Reserved.

Sheet Sheet1 (hidden)
B1: Crop
B2: Yield
B3: Price
B4: Should be other but the budget pages don't have this on the test sheet - be sure to adjust budgets for next year
B5: Direct Exp
A6: Seeds | C6: Seeds
A7: Fertilizers less lime | C7: Fertilizer (less lime)
A8: Lime | C8: --Lime
A9: Burndown | C9: Herbicides-Burndown
A10: Pre-emergence | C10: Herbicides-Preemergence
A11: Post-emergence | C11: Herbicides-Postemergence
A12: plant | C12: --Planting
A13: fertapp | C13: --Fertilizer App
A14: till | C14: --Tillage
A15: spray | C15: --Spraying
A16: Harvesting | C16: --Harvesting
A17: Hauling | C17: --Hauling
A18: Drying | C18: --Drying
A19: Custom Fld Ops less Harvest and Haul | C19: Custom Fld Ops less Harvest, Haul, and Drying
A20: Crop insurance | C20: Crop insurance
A21: Labor (beyond custom field operations) | C21: Extra labor
A22: Miscellaneous | C22: Miscellaneous
A23: Natural Gas | C23: Irrigation fuel
A24: Repair & Maintenance | C24: Irrigation repair and maintenance
C25: Other direct exp
A26: Interest on operating capital | C26: Interest on direct expenses
B27: Fixed expenses
A28: Depreciation | C28: Depreciation on irrigation equipment
A29: Interest on durable equipment | C29: Interest on irrigation equipment
C30: Cash rent

Sheet Sheet2 (hidden)
B1: test of converting to Excel version-26_extra
B2: [test of converting to Excel version-26_extra.xlsm]BUDGET'!$K$21
B5: =(LEFT(CELL("filename"),FIND("[",CELL("filename"))-1)) -> /Users/G_Ibend/Documents/Eaglefiler/Files/
A7: 1 | B7: =E9=B5 & INDIRECT("[" & B$1 & ".xlsm]Test!A" & $A7) -> 
A8: 2 | B8: =INDIRECT("'[" & B$1 & ".xlsm]Test'!A" & $A8) -> 
A9: 3
A10: 4
A11: 5
A12: 6
A13: 7
A14: 8
A15: 9
A16: 10
A17: 11
A18: 12
A19: 13
A20: 14
A21: 15
A22: 16
A23: 17
A24: 18
A25: 19
A26: 20
A27: 21
A28: 22
A29: 23
A30: 24
A31: 25
A32: 26
A33: 27
A34: 28
A35: 29
A36: 30
A37: 31
A38: 32
A39: 33
A40: 34
A41: 35
A42: 36
A43: 37
A44: 38
A45: 39

Sheet Budgets
A1: 2
B2: Budget date | D2: Nov-01-2023 | M2: The simulation will run faster if all other spreadsheets are closed
T3: Interest rate for budgets | W3: 0.08 | Y3: Equitable Crop Share % | AA3: ='Calculations '!U120 -> 0.9040577164 | AB3: (tenant's share)
B4: Use | C4: # of acres grown
C5: 1 | E5: Cotton - South Central KS_ | Z5: Crop Share % to Use
E6: None | T6: On a cash lease | Z6: 0.66
E7: None | T7: does landlord
E8: None
E9: None
C10: 0 | E10: Number of fallow acres | T10: - - - - - - - - - - C A S H L E A S E - - - - - - - - - - | Z10: - - - - - S H A R E L E A S E - - - - -
E11: Number of acres that are double-cropped | K11: s | T11: Cash Lease | U11: - - - Tenant - - - | W11: Landlord | Z11: Share Lease - per tillable acre
B12: Total | C12: =IFERROR('Calculations '!L66 & " Crop acres and " & 'Calculations '!L67 & " tillable acres", "") -> 1 Crop acres and 1 tillable acres | H12: =IFERROR('Data from budgets'!C8,"") -> 0 | K12: =IFERROR('Data from budgets'!D8,"") -> 0 | N12: =IFERROR('Data from budgets'!E8,"") -> 0 | Q12: =IFERROR('Data from budgets'!F8,"") -> 0 | T12: Totals | U12: per planted | V12: per tillable | W12: per tillable | Z12: Tenant | AA12: Landlord
E13: =IFERROR('Data from budgets'!B8,"") -> 1 | H13: =IFERROR('Data from budgets'!C8,"") -> 0 | K13: =IFERROR('Data from budgets'!D8,"") -> 0 | N13: =IFERROR('Data from budgets'!E8,"") -> 0 | Q13: =IFERROR('Data from budgets'!F8,"") -> 0 | U13: acre | V13: acre | W13: acre
E14: Budget | F14: Override | H14: Budget | I14: Override | K14: Budget | L14: Override | N14: Budget | O14: Override | Q14: Budget | R14: Override
A15: Crop | C15: Tenant % | E15: =IFERROR('Data from budgets'!B10,"") -> Cotton - South Central KS_ | H15: =IFERROR('Data from budgets'!C10,"") ->  | K15: =IFERROR('Data from budgets'!D10,"") ->  | N15: =IFERROR('Data from budgets'!E10,"") ->  | Q15: =IFERROR('Data from budgets'!F10,"") ->  | T15: Totals - Tenant & Landlord | U15: Per Acre Planted | V15: Per Acre Tillable | W15: Per Acre Tillable | Y15: % Tenant | Z15: $ Tenant | AA15: $ Landlord
A16: Yield | C16: * | E16: =IFERROR('Data from budgets'!B11,"") -> 950 | H16: =IFERROR('Data from budgets'!C11,"") ->  | K16: =IFERROR('Data from budgets'!D11,"") ->  | N16: =IFERROR('Data from budgets'!E11,"") ->  | Q16: =IFERROR('Data from budgets'!F11,"") -> 
A17: Price | E17: =IFERROR('Data from budgets'!B12,"") -> 0.8 | H17: =IFERROR('Data from budgets'!C12,"") ->  | K17: =IFERROR('Data from budgets'!D12,"") ->  | N17: =IFERROR('Data from budgets'!E12,"") ->  | Q17: =IFERROR('Data from budgets'!F12,"") ->  | T17: =IFERROR('Calculations '!L71,"") -> 760 | U17: =IFERROR('Calculations '!M71,"") -> 760 | V17: =IFERROR('Calculations '!N71,"") -> 760 | Y17: ='Calculations '!C70 -> 0.66 | Z17: =IFERROR('Calculations '!P71,"") -> 501.6 | AA17: =IFERROR('Calculations '!Q71,"") -> 258.4
A18: Other income | C18: * | E18: =IFERROR('Data from budgets'!B13,"") -> 192.3 | H18: =IFERROR('Data from budgets'!C13,"") ->  | K18: =IFERROR('Data from budgets'!D13,"") ->  | N18: =IFERROR('Data from budgets'!E13,"") ->  | Q18: =IFERROR('Data from budgets'!F13,"") ->  | T18: =IFERROR('Calculations '!L72,"") -> 192.3 | U18: =IFERROR('Calculations '!M72,"") -> 192.3 | V18: =IFERROR('Calculations '!N72,"") -> 192.3 | Y18: ='Calculations '!C72 -> 0.66 | Z18: =IFERROR('Calculations '!P72,"") -> 126.918 | AA18: =IFERROR('Calculations '!Q72,"") -> 65.382
B19: <Total Revenue> | E19: =IFERROR('Calculations '!D8,"") -> 952.3 | H19: =IFERROR('Calculations '!G8,"") ->  | K19: =IFERROR('Calculations '!J8,"") ->  | N19: =IFERROR('Calculations '!M8,"") ->  | Q19: =IFERROR('Calculations '!P8,"") ->  | T19: =IFERROR('Calculations '!L73,"") -> 952.3 | U19: =IFERROR('Calculations '!M73,"") -> 952.3 | V19: =IFERROR('Calculations '!N73,"") -> 952.3 | W19: =V58 -> 69 | Z19: =IFERROR('Calculations '!P73,"") -> 628.518 | AA19: =IFERROR('Calculations '!Q73,"") -> 323.782
A21: Variable expenses
B22: Seeds | E22: =IFERROR('Data from budgets'!B17,"") -> 86 | H22: =IFERROR('Data from budgets'!C17,"") ->  | K22: =IFERROR('Data from budgets'!D17,"") ->  | N22: =IFERROR('Data from budgets'!E17,"") ->  | Q22: =IFERROR('Data from budgets'!F17,"") ->  | T22: =IFERROR('Calculations '!L76,"") -> 86 | U22: =IFERROR('Calculations '!M76,"") -> 86 | V22: =IFERROR('Calculations '!N76,"") -> 86 | Y22: ='Calculations '!C76 -> 1 | Z22: =IFERROR('Calculations '!P76,"") -> 86 | AA22: =IFERROR('Calculations '!Q76,"") -> 0
B23: Fertilizer (less lime) | C23: * | E23: =IFERROR('Data from budgets'!B18,"") -> 81.2 | H23: =IFERROR('Data from budgets'!C18,"") ->  | K23: =IFERROR('Data from budgets'!D18,"") ->  | N23: =IFERROR('Data from budgets'!E18,"") ->  | Q23: =IFERROR('Data from budgets'!F18,"") ->  | T23: =IFERROR('Calculations '!L77,"") -> 81.2 | U23: =IFERROR('Calculations '!M77,"") -> 81.2 | V23: =IFERROR('Calculations '!N77,"") -> 81.2 | Y23: ='Calculations '!C77 -> 0.66 | Z23: =IFERROR('Calculations '!P77,"") -> 53.592 | AA23: =IFERROR('Calculations '!Q77,"") -> 27.608
B24: --Lime | C24: * | E24: =IFERROR('Data from budgets'!B19,"") -> 0 | H24: =IFERROR('Data from budgets'!C19,"") ->  | K24: =IFERROR('Data from budgets'!D19,"") ->  | N24: =IFERROR('Data from budgets'!E19,"") ->  | Q24: =IFERROR('Data from budgets'!F19,"") ->  | T24: =IFERROR('Calculations '!L78,"") -> 0 | U24: =IFERROR('Calculations '!M78,"") -> 0 | V24: =IFERROR('Calculations '!N78,"") -> 0 | W24: ='Calculations '!O78 -> 0 | Y24: ='Calculations '!C78 -> 0.66 | Z24: =IFERROR('Calculations '!P78,"") -> 0 | AA24: =IFERROR('Calculations '!Q78,"") -> 0
B25: Herbicides | E25: =IFERROR('Data from budgets'!B20,"") -> 76.550325 | H25: =IFERROR('Data from budgets'!C20,"") ->  | K25: =IFERROR('Data from budgets'!D20,"") ->  | N25: =IFERROR('Data from budgets'!E20,"") ->  | Q25: =IFERROR('Data from budgets'!F20,"") ->  | T25: =IFERROR('Calculations '!L79,"") -> 76.550325 | U25: =IFERROR('Calculations '!M79,"") -> 76.550325 | V25: =IFERROR('Calculations '!N79,"") -> 76.550325 | Y25: ='Calculations '!C79 -> 1 | Z25: =IFERROR('Calculations '!P79,"") -> 76.550325 | AA25: =IFERROR('Calculations '!Q79,"") -> 0
B26: Fungicides | E26: =IFERROR('Data from budgets'!B21,"") -> 0 | H26: =IFERROR('Data from budgets'!C21,"") ->  | K26: =IFERROR('Data from budgets'!D21,"") ->  | N26: =IFERROR('Data from budgets'!E21,"") ->  | Q26: =IFERROR('Data from budgets'!F21,"") ->  | T26: =IFERROR('Calculations '!L80,"") -> 0 | U26: =IFERROR('Calculations '!M80,"") -> 0 | V26: =IFERROR('Calculations '!N80,"") -> 0 | Y26: ='Calculations '!C80 -> 1 | Z26: =IFERROR('Calculations '!P80,"") -> 0 | AA26: =IFERROR('Calculations '!Q80,"") -> 0
B27: Insecticides | E27: =IFERROR('Data from budgets'!B22,"") -> 0 | H27: =IFERROR('Data from budgets'!C22,"") ->  | K27: =IFERROR('Data from budgets'!D22,"") ->  | N27: =IFERROR('Data from budgets'!E22,"") ->  | Q27: =IFERROR('Data from budgets'!F22,"") ->  | T27: =IFERROR('Calculations '!L81,"") -> 0 | U27: =IFERROR('Calculations '!M81,"") -> 0 | V27: =IFERROR('Calculations '!N81,"") -> 0 | Y27: ='Calculations '!C81 -> 1 | Z27: =IFERROR('Calculations '!P81,"") -> 0 | AA27: =IFERROR('Calculations '!Q81,"") -> 0
B28: Crop consulting | E28: =IFERROR('Data from budgets'!B23,"") -> 11.648 | H28: =IFERROR('Data from budgets'!C23,"") ->  | K28: =IFERROR('Data from budgets'!D23,"") ->  | N28: =IFERROR('Data from budgets'!E23,"") ->  | Q28: =IFERROR('Data from budgets'!F23,"") ->  | T28: =IFERROR('Calculations '!L82,"") -> 11.648 | U28: =IFERROR('Calculations '!M82,"") -> 11.648 | V28: =IFERROR('Calculations '!N82,"") -> 11.648 | Y28: ='Calculations '!C82 -> 1 | Z28: =IFERROR('Calculations '!P82,"") -> 11.648 | AA28: =IFERROR('Calculations '!Q82,"") -> 0
B29: Crop insurance | C29: * | E29: =IFERROR('Data from budgets'!B24,"") -> 23.35 | H29: =IFERROR('Data from budgets'!C24,"") ->  | K29: =IFERROR('Data from budgets'!D24,"") ->  | N29: =IFERROR('Data from budgets'!E24,"") ->  | Q29: =IFERROR('Data from budgets'!F24,"") ->  | T29: =IFERROR('Calculations '!L83,"") -> 23.35 | U29: =IFERROR('Calculations '!M83,"") -> 23.35 | V29: =IFERROR('Calculations '!N83,"") -> 23.35 | Y29: ='Calculations '!C83 -> 0.66 | Z29: =IFERROR('Calculations '!P83,"") -> 15.411 | AA29: =IFERROR('Calculations '!Q83,"") -> 7.939
B30: Miscellaneous | E30: =IFERROR('Data from budgets'!B25,"") -> 70.1568 | H30: =IFERROR('Data from budgets'!C25,"") ->  | K30: =IFERROR('Data from budgets'!D25,"") ->  | N30: =IFERROR('Data from budgets'!E25,"") ->  | Q30: =IFERROR('Data from budgets'!F25,"") ->  | T30: =IFERROR('Calculations '!L84,"") -> 70.1568 | U30: =IFERROR('Calculations '!M84,"") -> 70.1568 | V30: =IFERROR('Calculations '!N84,"") -> 70.1568 | Y30: ='Calculations '!C84 -> 1 | Z30: =IFERROR('Calculations '!P84,"") -> 70.1568 | AA30: =IFERROR('Calculations '!Q84,"") -> 0
B31: Surfactant | E31: =IFERROR('Data from budgets'!B26,"") -> 0 | H31: =IFERROR('Data from budgets'!C26,"") ->  | K31: =IFERROR('Data from budgets'!D26,"") ->  | N31: =IFERROR('Data from budgets'!E26,"") ->  | Q31: =IFERROR('Data from budgets'!F26,"") ->  | T31: =IFERROR('Calculations '!L85,"") -> 0 | U31: =IFERROR('Calculations '!M85,"") -> 0 | V31: =IFERROR('Calculations '!N85,"") -> 0 | Y31: ='Calculations '!C85 -> 1 | Z31: =IFERROR('Calculations '!P85,"") -> 0 | AA31: =IFERROR('Calculations '!Q85,"") -> 0
B32: Other inputs | E32: =IFERROR('Data from budgets'!B27,"") -> 2.12976 | H32: =IFERROR('Data from budgets'!C27,"") ->  | K32: =IFERROR('Data from budgets'!D27,"") ->  | N32: =IFERROR('Data from budgets'!E27,"") ->  | Q32: =IFERROR('Data from budgets'!F27,"") ->  | T32: =IFERROR('Calculations '!L86,"") -> 2.12976 | U32: =IFERROR('Calculations '!M86,"") -> 2.12976 | V32: =IFERROR('Calculations '!N86,"") -> 2.12976 | Y32: ='Calculations '!C86 -> 1 | Z32: =IFERROR('Calculations '!P86,"") -> 2.12976 | AA32: =IFERROR('Calculations '!Q86,"") -> 0
B33: MACHINERY
B34: --fertilizer application | E34: =IFERROR('Data from budgets'!B29,"") -> 2.843429142 | H34: =IFERROR('Data from budgets'!C29,"") ->  | K34: =IFERROR('Data from budgets'!D29,"") ->  | N34: =IFERROR('Data from budgets'!E29,"") ->  | Q34: =IFERROR('Data from budgets'!F29,"") ->  | T34: =IFERROR('Calculations '!L88,"") -> 2.843429142 | U34: =IFERROR('Calculations '!M88,"") -> 2.843429142 | V34: =IFERROR('Calculations '!N88,"") -> 2.843429142 | Y34: ='Calculations '!C88 -> 1 | Z34: =IFERROR('Calculations '!P88,"") -> 2.843429142 | AA34: =IFERROR('Calculations '!Q88,"") -> 0
B35: --harvesting | E35: =IFERROR('Data from budgets'!B30,"") -> 49.46268719 | H35: =IFERROR('Data from budgets'!C30,"") ->  | K35: =IFERROR('Data from budgets'!D30,"") ->  | N35: =IFERROR('Data from budgets'!E30,"") ->  | Q35: =IFERROR('Data from budgets'!F30,"") ->  | T35: =IFERROR('Calculations '!L89,"") -> 49.46268719 | U35: =IFERROR('Calculations '!M89,"") -> 49.46268719 | V35: =IFERROR('Calculations '!N89,"") -> 49.46268719 | Y35: ='Calculations '!C89 -> 1 | Z35: =IFERROR('Calculations '!P89,"") -> 49.46268719 | AA35: =IFERROR('Calculations '!Q89,"") -> 0
B36: --hauling | E36: =IFERROR('Data from budgets'!B31,"") -> 0 | H36: =IFERROR('Data from budgets'!C31,"") ->  | K36: =IFERROR('Data from budgets'!D31,"") ->  | N36: =IFERROR('Data from budgets'!E31,"") ->  | Q36: =IFERROR('Data from budgets'!F31,"") ->  | T36: =IFERROR('Calculations '!L90,"") -> 0 | U36: =IFERROR('Calculations '!M90,"") -> 0 | V36: =IFERROR('Calculations '!N90,"") -> 0 | Y36: ='Calculations '!C90 -> 1 | Z36: =IFERROR('Calculations '!P90,"") -> 0 | AA36: =IFERROR('Calculations '!Q90,"") -> 0
B37: --miscellaneous | E37: =IFERROR('Data from budgets'!B32,"") -> 0 | H37: =IFERROR('Data from budgets'!C32,"") ->  | K37: =IFERROR('Data from budgets'!D32,"") ->  | N37: =IFERROR('Data from budgets'!E32,"") ->  | Q37: =IFERROR('Data from budgets'!F32,"") ->  | T37: =IFERROR('Calculations '!L91,"") -> 0 | U37: =IFERROR('Calculations '!M91,"") -> 0 | V37: =IFERROR('Calculations '!N91,"") -> 0 | Y37: ='Calculations '!C91 -> 1 | Z37: =IFERROR('Calculations '!P91,"") -> 0 | AA37: =IFERROR('Calculations '!Q91,"") -> 0
B38: --planting | E38: =IFERROR('Data from budgets'!B33,"") -> 5.925371323 | H38: =IFERROR('Data from budgets'!C33,"") ->  | K38: =IFERROR('Data from budgets'!D33,"") ->  | N38: =IFERROR('Data from budgets'!E33,"") ->  | Q38: =IFERROR('Data from budgets'!F33,"") ->  | T38: =IFERROR('Calculations '!L92,"") -> 5.925371323 | U38: =IFERROR('Calculations '!M92,"") -> 5.925371323 | V38: =IFERROR('Calculations '!N92,"") -> 5.925371323 | Y38: ='Calculations '!C92 -> 1 | Z38: =IFERROR('Calculations '!P92,"") -> 5.925371323 | AA38: =IFERROR('Calculations '!Q92,"") -> 0
B39: --spraying | E39: =IFERROR('Data from budgets'!B34,"") -> 10.36240744 | H39: =IFERROR('Data from budgets'!C34,"") ->  | K39: =IFERROR('Data from budgets'!D34,"") ->  | N39: =IFERROR('Data from budgets'!E34,"") ->  | Q39: =IFERROR('Data from budgets'!F34,"") ->  | T39: =IFERROR('Calculations '!L93,"") -> 10.36240744 | U39: =IFERROR('Calculations '!M93,"") -> 10.36240744 | V39: =IFERROR('Calculations '!N93,"") -> 10.36240744 | Y39: ='Calculations '!C93 -> 1 | Z39: =IFERROR('Calculations '!P93,"") -> 10.36240744 | AA39: =IFERROR('Calculations '!Q93,"") -> 0
B40: --tillage | E40: =IFERROR('Data from budgets'!B35,"") -> 3.989920715 | H40: =IFERROR('Data from budgets'!C35,"") ->  | K40: =IFERROR('Data from budgets'!D35,"") ->  | N40: =IFERROR('Data from budgets'!E35,"") ->  | Q40: =IFERROR('Data from budgets'!F35,"") ->  | T40: =IFERROR('Calculations '!L94,"") -> 3.989920715 | U40: =IFERROR('Calculations '!M94,"") -> 3.989920715 | V40: =IFERROR('Calculations '!N94,"") -> 3.989920715 | Y40: ='Calculations '!C94 -> 1 | Z40: =IFERROR('Calculations '!P94,"") -> 3.989920715 | AA40: =IFERROR('Calculations '!Q94,"") -> 0
B41: --other | E41: =IFERROR('Data from budgets'!B36,"") -> 0 | H41: =IFERROR('Data from budgets'!C36,"") ->  | K41: =IFERROR('Data from budgets'!D36,"") ->  | N41: =IFERROR('Data from budgets'!E36,"") ->  | Q41: =IFERROR('Data from budgets'!F36,"") ->  | T41: =IFERROR('Calculations '!L95,"") -> 0 | U41: =IFERROR('Calculations '!M95,"") -> 0 | V41: =IFERROR('Calculations '!N95,"") -> 0 | Y41: ='Calculations '!C95 -> 1 | Z41: =IFERROR('Calculations '!P95,"") -> 0 | AA41: =IFERROR('Calculations '!Q95,"") -> 0
B42: --custom operations | E42: =IFERROR('Data from budgets'!B37,"") -> 164.2102244 | H42: =IFERROR('Data from budgets'!C37,"") ->  | K42: =IFERROR('Data from budgets'!D37,"") ->  | N42: =IFERROR('Data from budgets'!E37,"") ->  | Q42: =IFERROR('Data from budgets'!F37,"") ->  | T42: =IFERROR('Calculations '!L96,"") -> 164.2102244 | U42: =IFERROR('Calculations '!M96,"") -> 164.2102244 | V42: =IFERROR('Calculations '!N96,"") -> 164.2102244 | Y42: ='Calculations '!C96 -> 1
B43: Irrigation | E43: =IFERROR('Data from budgets'!B38,"") -> 0 | H43: =IFERROR('Data from budgets'!C38,"") ->  | K43: =IFERROR('Data from budgets'!D38,"") ->  | N43: =IFERROR('Data from budgets'!E38,"") ->  | Q43: =IFERROR('Data from budgets'!F38,"") ->  | T43: =IFERROR('Calculations '!L97,"") -> 0 | U43: =IFERROR('Calculations '!M97,"") -> 0 | V43: =IFERROR('Calculations '!N97,"") -> 0 | Y43: ='Calculations '!C97 -> 1 | Z43: =IFERROR('Calculations '!P97,"") -> 0 | AA43: =IFERROR('Calculations '!Q97,"") -> 0
B44: Interest on direct expenses | C44: * | E44: =IFERROR('Calculations '!B33,"") -> 23.51315701 | H44: =IFERROR('Calculations '!E33,"") -> 0 | K44: =IFERROR('Calculations '!H33,"") -> 0 | N44: =IFERROR('Calculations '!K33,"") -> 0 | Q44: =IFERROR('Calculations '!N33,"") -> 0 | T44: =IFERROR('Calculations '!L98,"") -> 23.51315701 | U44: =IFERROR('Calculations '!M98,"") -> 23.51315701 | V44: =IFERROR('Calculations '!N98,"") -> 23.51315701 | W44: =IFERROR('Calculations '!O98,"") -> 0 | Y44: ='Calculations '!C98 -> 0.66 | Z44: =IFERROR('Calculations '!P98,"") -> 22.09127701 | AA44: =IFERROR('Calculations '!Q98,"") -> 1.42188
B45: <Total Direct Expenses> | E45: =IFERROR('Calculations '!D53,"") -> 611.3420822 | H45: =IFERROR('Calculations '!G53,"") -> 0 | K45: =IFERROR('Calculations '!J53,"") -> 0 | N45: =IFERROR('Calculations '!M53,"") -> 0 | Q45: =IFERROR('Calculations '!P53,"") -> 0 | T45: =IFERROR('Calculations '!L99,"") -> 611.3420822 | U45: =IFERROR('Calculations '!M99,"") -> 611.3420822 | V45: =IFERROR('Calculations '!N99,"") -> 611.3420822 | W45: ='Calculations '!O99 -> 0 | Z45: =IFERROR('Calculations '!P99,"") -> 574.3732022 | AA45: =IFERROR('Calculations '!Q99,"") -> 36.96888
A47: Fixed expenses
B48: MACHINERY
B49: --fertilizer application | E49: =IFERROR('Data from budgets'!B44,"") -> 3.678775225 | H49: =IFERROR('Data from budgets'!C44,"") ->  | K49: =IFERROR('Data from budgets'!D44,"") ->  | N49: =IFERROR('Data from budgets'!E44,"") ->  | Q49: =IFERROR('Data from budgets'!F44,"") ->  | T49: =IFERROR('Calculations '!L103,"") -> 3.678775225 | U49: =IFERROR('Calculations '!M103,"") -> 3.678775225 | V49: =IFERROR('Calculations '!N103,"") -> 3.678775225 | Y49: ='Calculations '!C103 -> 1 | Z49: =IFERROR('Calculations '!P103,"") -> 3.678775225 | AA49: =IFERROR('Calculations '!Q103,"") -> 0
B50: --harvesting | E50: =IFERROR('Data from budgets'!B45,"") -> 117.7057563 | H50: =IFERROR('Data from budgets'!C45,"") ->  | K50: =IFERROR('Data from budgets'!D45,"") ->  | N50: =IFERROR('Data from budgets'!E45,"") ->  | Q50: =IFERROR('Data from budgets'!F45,"") ->  | T50: =IFERROR('Calculations '!L104,"") -> 117.7057563 | U50: =IFERROR('Calculations '!M104,"") -> 117.7057563 | V50: =IFERROR('Calculations '!N104,"") -> 117.7057563 | Y50: ='Calculations '!C104 -> 1 | Z50: =IFERROR('Calculations '!P104,"") -> 117.7057563 | AA50: =IFERROR('Calculations '!Q104,"") -> 0
B51: --hauling | E51: =IFERROR('Data from budgets'!B46,"") -> 0 | H51: =IFERROR('Data from budgets'!C46,"") ->  | K51: =IFERROR('Data from budgets'!D46,"") ->  | N51: =IFERROR('Data from budgets'!E46,"") ->  | Q51: =IFERROR('Data from budgets'!F46,"") ->  | T51: =IFERROR('Calculations '!L105,"") -> 0 | U51: =IFERROR('Calculations '!M105,"") -> 0 | V51: =IFERROR('Calculations '!N105,"") -> 0 | Y51: ='Calculations '!C105 -> 1 | Z51: =IFERROR('Calculations '!P105,"") -> 0 | AA51: =IFERROR('Calculations '!Q105,"") -> 0
B52: --miscellaneous | E52: =IFERROR('Data from budgets'!B47,"") -> 0 | H52: =IFERROR('Data from budgets'!C47,"") ->  | K52: =IFERROR('Data from budgets'!D47,"") ->  | N52: =IFERROR('Data from budgets'!E47,"") ->  | Q52: =IFERROR('Data from budgets'!F47,"") ->  | T52: =IFERROR('Calculations '!L106,"") -> 0 | U52: =IFERROR('Calculations '!M106,"") -> 0 | V52: =IFERROR('Calculations '!N106,"") -> 0 | Y52: ='Calculations '!C106 -> 1 | Z52: =IFERROR('Calculations '!P106,"") -> 0 | AA52: =IFERROR('Calculations '!Q106,"") -> 0
B53: --planting | E53: =IFERROR('Data from budgets'!B48,"") -> 6.937870621 | H53: =IFERROR('Data from budgets'!C48,"") ->  | K53: =IFERROR('Data from budgets'!D48,"") ->  | N53: =IFERROR('Data from budgets'!E48,"") ->  | Q53: =IFERROR('Data from budgets'!F48,"") ->  | T53: =IFERROR('Calculations '!L107,"") -> 6.937870621 | U53: =IFERROR('Calculations '!M107,"") -> 6.937870621 | V53: =IFERROR('Calculations '!N107,"") -> 6.937870621 | Y53: ='Calculations '!C107 -> 1 | Z53: =IFERROR('Calculations '!P107,"") -> 6.937870621 | AA53: =IFERROR('Calculations '!Q107,"") -> 0
B54: --spraying | E54: =IFERROR('Data from budgets'!B49,"") -> 12.8665601 | H54: =IFERROR('Data from budgets'!C49,"") ->  | K54: =IFERROR('Data from budgets'!D49,"") ->  | N54: =IFERROR('Data from budgets'!E49,"") ->  | Q54: =IFERROR('Data from budgets'!F49,"") ->  | T54: =IFERROR('Calculations '!L108,"") -> 12.8665601 | U54: =IFERROR('Calculations '!M108,"") -> 12.8665601 | V54: =IFERROR('Calculations '!N108,"") -> 12.8665601 | Y54: ='Calculations '!C108 -> 1 | Z54: =IFERROR('Calculations '!P108,"") -> 12.8665601 | AA54: =IFERROR('Calculations '!Q108,"") -> 0
B55: --tillage | E55: =IFERROR('Data from budgets'!B50,"") -> 6.383336906 | H55: =IFERROR('Data from budgets'!C50,"") ->  | K55: =IFERROR('Data from budgets'!D50,"") ->  | N55: =IFERROR('Data from budgets'!E50,"") ->  | Q55: =IFERROR('Data from budgets'!F50,"") ->  | T55: =IFERROR('Calculations '!L109,"") -> 6.383336906 | U55: =IFERROR('Calculations '!M109,"") -> 6.383336906 | V55: =IFERROR('Calculations '!N109,"") -> 6.383336906 | Y55: ='Calculations '!C109 -> 1 | Z55: =IFERROR('Calculations '!P109,"") -> 6.383336906 | AA55: =IFERROR('Calculations '!Q109,"") -> 0
B56: --other | E56: =IFERROR('Data from budgets'!B51,"") -> 0 | H56: =IFERROR('Data from budgets'!C51,"") ->  | K56: =IFERROR('Data from budgets'!D51,"") ->  | N56: =IFERROR('Data from budgets'!E51,"") ->  | Q56: =IFERROR('Data from budgets'!F51,"") ->  | T56: =IFERROR('Calculations '!L110,"") -> 0 | U56: =IFERROR('Calculations '!M110,"") -> 0 | V56: =IFERROR('Calculations '!N110,"") -> 0 | W56: ='Calculations '!O103 -> 0 | Y56: ='Calculations '!C110 -> 1 | Z56: =IFERROR('Calculations '!P110,"") -> 0 | AA56: =IFERROR('Calculations '!Q110,"") -> 0
B57: Irrigation | C57: 0 | E57: =IFERROR('Data from budgets'!B52,"") -> 0 | H57: =IFERROR('Data from budgets'!C52,"") ->  | K57: =IFERROR('Data from budgets'!D52,"") ->  | N57: =IFERROR('Data from budgets'!E52,"") ->  | Q57: =IFERROR('Data from budgets'!F52,"") ->  | T57: =IFERROR('Calculations '!L111,"") -> 0 | U57: =IFERROR('Calculations '!M111,"") -> 0 | V57: =IFERROR('Calculations '!N111,"") -> 0 | W57: ='Calculations '!O111 -> 0 | Y57: ='Calculations '!C111 -> 0 | Z57: =IFERROR('Calculations '!P111,"") -> 0 | AA57: =IFERROR('Calculations '!Q111,"") -> 0
B58: Cash rent ( $ / acre ) | C58: 69 | E58: =IFERROR(IF(E13=1, $C58, ""),"") -> 69 | H58: =IFERROR(IF(H13=1, $C58, ""),"") ->  | K58: =IFERROR(IF(K13=1, $C58, ""),"") ->  | N58: =IFERROR(IF(N13=1, $C58, ""),"") ->  | Q58: =IFERROR(IF(Q13=1, $C58, ""),"") ->  | T58: =IFERROR('Calculations '!L112,"") -> 69 | U58: =IFERROR('Calculations '!M112,"") -> 69 | V58: =IFERROR('Calculations '!N112,"") -> 69 | W58: ='Calculations '!O112 -> 69
B59: <Total Fixed Expenses> | E59: =IFERROR('Calculations '!D56,"") -> 216.5722991 | H59: =IFERROR('Calculations '!G56,"") -> 0 | K59: =IFERROR('Calculations '!J56,"") -> 0 | N59: =IFERROR('Calculations '!M56,"") -> 0 | Q59: =IFERROR('Calculations '!P56,"") -> 0 | T59: =IFERROR('Calculations '!L113,"") -> 216.5722991 | U59: =IFERROR('Calculations '!M113,"") -> 216.5722991 | V59: =IFERROR('Calculations '!N113,"") -> 216.5722991 | W59: =IFERROR('Calculations '!O113,"") -> 69 | Z59: =IFERROR('Calculations '!P113,"") -> 147.5722991 | AA59: =IFERROR('Calculations '!Q113,"") -> 69
T60: =IFERROR('Calculations '!L114,"") -> 0 | U60: =IFERROR('Calculations '!M114,"") -> 0 | V60: =IFERROR('Calculations '!N114,"") -> 0
B61: <Total Specified Expenses> | E61: =IFERROR(E45+E59,"") -> 827.9143813 | H61: =IFERROR(H45+H59,"") -> 0 | K61: =IFERROR(K45+K59,"") -> 0 | N61: =IFERROR(N45+N59,"") -> 0 | Q61: =IFERROR(Q45+Q59,"") -> 0 | T61: =IFERROR('Calculations '!L115,"") -> 827.9143813 | U61: =IFERROR('Calculations '!M115,"") -> 827.9143813 | V61: =IFERROR('Calculations '!N115,"") -> 827.9143813 | W61: ='Calculations '!O115 -> 69 | Z61: =IFERROR('Calculations '!P115,"") -> 721.9455013 | AA61: =IFERROR('Calculations '!Q115,"") -> 105.96888
B62: <Total costs per unit> | E62: =IFERROR(IFERROR(E61 / 'Calculations '!D5, ""),"") -> 0.8714888224 | H62: =IFERROR(IFERROR(H61 / 'Calculations '!G5, ""),"") ->  | K62: =IFERROR(IFERROR(K61 / 'Calculations '!J5, ""),"") ->  | N62: =IFERROR(IFERROR(N61 / 'Calculations '!M5, ""),"") ->  | Q62: =IFERROR(IFERROR(Q61 / 'Calculations '!P5, ""),"") ->  | Z62: =IFERROR('Calculations '!P116,"") -> 0 | AA62: =IFERROR('Calculations '!Q116,"") -> 0
Z63: =IFERROR('Calculations '!P117,"") -> 0 | AA63: =IFERROR('Calculations '!Q117,"") -> 0
A64: Returns above direct expenses | E64: =IFERROR(E19-E45,"") -> 340.9579178 | H64: =IFERROR(H19-H45,"") ->  | K64: =IFERROR(K19-K45,"") ->  | N64: =IFERROR(N19-N45,"") ->  | Q64: =IFERROR(Q19-Q45,"") ->  | T64: =IFERROR('Calculations '!L118,"") -> 340.9579178 | U64: =IFERROR('Calculations '!M118,"") -> 340.9579178 | V64: =IFERROR('Calculations '!N118,"") -> 340.9579178 | W64: =IFERROR('Calculations '!O118,"") -> 69 | Z64: =IFERROR('Calculations '!P118,"") -> 54.14479782 | AA64: =IFERROR('Calculations '!Q118,"") -> 286.81312
A65: Returns above total specified expenses | E65: =IFERROR(E19 - E61,"") -> 124.3856187 | H65: =IFERROR(H19 - H61,"") ->  | K65: =IFERROR(K19 - K61,"") ->  | N65: =IFERROR(N19 - N61,"") ->  | Q65: =IFERROR(Q19 - Q61,"") ->  | T65: =IFERROR('Calculations '!L119,"") -> 124.3856187 | U65: =IFERROR('Calculations '!M119,"") -> 124.3856187 | V65: =IFERROR('Calculations '!N119,"") -> 124.3856187 | W65: ='Calculations '!O119 -> 0 | Z65: =IFERROR('Calculations '!P119,"") -> -93.42750132 | AA65: =IFERROR('Calculations '!Q119,"") -> 217.81312 | AB65: Landlord value reflects using cash rent for property tax cost
A66: Return to total cost | E66: =IFERROR((E65+'Calculations '!#REF! + 'Calculations '!D52) / (E61 -'Calculations '!#REF! - 'Calculations '!D52),"") ->  | H66: =IFERROR((H65+'Calculations '!#REF! + 'Calculations '!G52) / (H61 -'Calculations '!#REF! - 'Calculations '!G52),"") ->  | K66: =IFERROR((K65+'Calculations '!#REF! + 'Calculations '!J52) / (K61 -'Calculations '!#REF! - 'Calculations '!J52),"") ->  | N66: =IFERROR((N65+'Calculations '!#REF! + 'Calculations '!M52) / (N61 -'Calculations '!#REF! - 'Calculations '!M52),"") ->  | Q66: =IFERROR((Q65+'Calculations '!#REF! + 'Calculations '!P52) / (Q61 -'Calculations '!#REF! - 'Calculations '!P52),"") ->  | T66: =IFERROR((T65) / (T61 ),"") -> 0.1502397126 | U66: =IFERROR((U65) / (U61 ),"") -> 0.1502397126 | V66: =IFERROR((V65) / (V61 ),"") -> 0.1502397126 | Z66: =IFERROR(Z65/Z61, "") -> -0.1294107397 | AA66: =IFERROR((AA65)/(AA61), "") -> 2.055444202
T67: Note: the equitable share calculation is based on including the cash rent as a cost to the landlord. The
B68: Breakeven price | E68: =IFERROR((E61-'Calculations '!D7)/'Calculations '!D5,"") -> 0.6690677698 | H68: =IFERROR((H61-'Calculations '!G7)/'Calculations '!G5,"") ->  | K68: =IFERROR((K61-'Calculations '!J7)/'Calculations '!J5,"") ->  | N68: =IFERROR((N61-'Calculations '!M7)/'Calculations '!M5,"") ->  | Q68: =IFERROR((Q61-'Calculations '!P7)/'Calculations '!P5,"") ->  | T68: return to the landlord for both cash leases and share leases is based on using the cash rent as a charge to land.
B69: Breakeven yield | E69: =IFERROR((E61-'Calculations '!D7)/'Calculations '!D6,"") -> 794.5179767 | H69: =IFERROR((H61-'Calculations '!G7)/'Calculations '!G6,"") ->  | K69: =IFERROR((K61-'Calculations '!J7)/'Calculations '!J6,"") ->  | N69: =IFERROR((N61-'Calculations '!M7)/'Calculations '!M6,"") ->  | Q69: =IFERROR((Q61-'Calculations '!P7)/'Calculations '!P6,"") ->  | T69: Because the cash rent is being used as a charge to land, the landlord (by definition) will never show a positive return with a cash lease. The property tax might be a better choice for this charge.

Sheet Calculations (hidden)
A1: Data from Budgets sheet
A2: Interest rate | B2: =Budgets!W3 -> 0.08
B3: Crop 1 | E3: Crop 2 | H3: Crop 3 | K3: Crop 4 | N3: Crop 5
B4: Budget | C4: override | D4: number to use | E4: Budget | F4: override | G4: number to use | H4: Budget | I4: override | J4: number to use | K4: Budget | L4: override | M4: number to use | N4: Budget | O4: override | P4: number to use
A5: Yield | B5: =Budgets!E16 -> 950 | C5: =Budgets!F16 -> 0 | D5: =IF(ISBLANK(Budgets!F16),'Calculations '!B5, 'Calculations '!C5) -> 950 | E5: =Budgets!H16 ->  | F5: =Budgets!I16 -> 0 | G5: =IF(ISBLANK(Budgets!I16),'Calculations '!E5, 'Calculations '!F5) ->  | H5: =Budgets!K16 ->  | I5: =Budgets!L16 -> 0 | J5: =IF(ISBLANK(Budgets!L16),'Calculations '!H5, 'Calculations '!I5) ->  | K5: =Budgets!N16 ->  | L5: =Budgets!O16 -> 0 | M5: =IF(ISBLANK(Budgets!O16),'Calculations '!K5, 'Calculations '!L5) ->  | N5: =Budgets!Q16 ->  | O5: =Budgets!R16 -> 0 | P5: =IF(ISBLANK(Budgets!R16),'Calculations '!N5, 'Calculations '!O5) -> 
A6: Price | B6: =Budgets!E17 -> 0.8 | C6: =Budgets!F17 -> 0 | D6: =IF(ISBLANK(Budgets!F17),'Calculations '!B6, 'Calculations '!C6) -> 0.8 | E6: =Budgets!H17 ->  | F6: =Budgets!I17 -> 0 | G6: =IF(ISBLANK(Budgets!I17),'Calculations '!E6, 'Calculations '!F6) ->  | H6: =Budgets!K17 ->  | I6: =Budgets!L17 -> 0 | J6: =IF(ISBLANK(Budgets!L17),'Calculations '!H6, 'Calculations '!I6) ->  | K6: =Budgets!N17 ->  | L6: =Budgets!O17 -> 0 | M6: =IF(ISBLANK(Budgets!O17),'Calculations '!K6, 'Calculations '!L6) ->  | N6: =Budgets!Q17 ->  | O6: =Budgets!R17 -> 0 | P6: =IF(ISBLANK(Budgets!R17),'Calculations '!N6, 'Calculations '!O6) -> 
A7: Other income | B7: =Budgets!E18 -> 192.3 | C7: =Budgets!F18 -> 0 | D7: =IF(ISBLANK(Budgets!F18),'Calculations '!B7, 'Calculations '!C7) -> 192.3 | E7: =Budgets!H18 ->  | F7: =Budgets!I18 -> 0 | G7: =IF(ISBLANK(Budgets!I18),'Calculations '!E7, 'Calculations '!F7) ->  | H7: =Budgets!K18 ->  | I7: =Budgets!L18 -> 0 | J7: =IF(ISBLANK(Budgets!L18),'Calculations '!H7, 'Calculations '!I7) ->  | K7: =Budgets!N18 ->  | L7: =Budgets!O18 -> 0 | M7: =IF(ISBLANK(Budgets!O18),'Calculations '!K7, 'Calculations '!L7) ->  | N7: =Budgets!Q18 ->  | O7: =Budgets!R18 -> 0 | P7: =IF(ISBLANK(Budgets!R18),'Calculations '!N7, 'Calculations '!O7) -> 
A8: TOTAL REVENUE | D8: =IF(ISNUMBER(B5), D5*D6 +D7, "") -> 952.3 | G8: =IF(ISNUMBER(E5), G5*G6 +G7, "") ->  | J8: =IF(ISNUMBER(H5), J5*J6 +J7, "") ->  | M8: =IF(ISNUMBER(K5), M5*M6 +M7, "") ->  | P8: =IF(ISNUMBER(N5), P5*P6 +P7, "") -> 
A10: Direct Expenses
A11: Seeds | B11: =Budgets!E22 -> 86 | C11: =Budgets!F22 -> 0 | D11: =IF(ISBLANK(Budgets!F22),'Calculations '!B11, 'Calculations '!C11) -> 86 | E11: =Budgets!H22 ->  | F11: =Budgets!I22 -> 0 | G11: =IF(ISBLANK(Budgets!I22),'Calculations '!E11, 'Calculations '!F11) ->  | H11: =Budgets!K22 ->  | I11: =Budgets!L22 -> 0 | J11: =IF(ISBLANK(Budgets!L22),'Calculations '!H11, 'Calculations '!I11) ->  | K11: =Budgets!N22 ->  | L11: =Budgets!O22 -> 0 | M11: =IF(ISBLANK(Budgets!O22),'Calculations '!K11, 'Calculations '!L11) ->  | N11: =Budgets!Q22 ->  | O11: =Budgets!R22 -> 0 | P11: =IF(ISBLANK(Budgets!R22),'Calculations '!N11, 'Calculations '!O11) -> 
A12: Fertilizer (less lime) | B12: =Budgets!E23 -> 81.2 | C12: =Budgets!F23 -> 0 | D12: =IF(ISBLANK(Budgets!F23),'Calculations '!B12, 'Calculations '!C12) -> 81.2 | E12: =Budgets!H23 ->  | F12: =Budgets!I23 -> 0 | G12: =IF(ISBLANK(Budgets!I23),'Calculations '!E12, 'Calculations '!F12) ->  | H12: =Budgets!K23 ->  | I12: =Budgets!L23 -> 0 | J12: =IF(ISBLANK(Budgets!L23),'Calculations '!H12, 'Calculations '!I12) ->  | K12: =Budgets!N23 ->  | L12: =Budgets!O23 -> 0 | M12: =IF(ISBLANK(Budgets!O23),'Calculations '!K12, 'Calculations '!L12) ->  | N12: =Budgets!Q23 ->  | O12: =Budgets!R23 -> 0 | P12: =IF(ISBLANK(Budgets!R23),'Calculations '!N12, 'Calculations '!O12) -> 
A13: --Lime | B13: =Budgets!E24 -> 0 | C13: =Budgets!F24 -> 0 | D13: =IF(ISBLANK(Budgets!F24),'Calculations '!B13, 'Calculations '!C13) -> 0 | E13: =Budgets!H24 ->  | F13: =Budgets!I24 -> 0 | G13: =IF(ISBLANK(Budgets!I24),'Calculations '!E13, 'Calculations '!F13) ->  | H13: =Budgets!K24 ->  | I13: =Budgets!L24 -> 0 | J13: =IF(ISBLANK(Budgets!L24),'Calculations '!H13, 'Calculations '!I13) ->  | K13: =Budgets!N24 ->  | L13: =Budgets!O24 -> 0 | M13: =IF(ISBLANK(Budgets!O24),'Calculations '!K13, 'Calculations '!L13) ->  | N13: =Budgets!Q24 ->  | O13: =Budgets!R24 -> 0 | P13: =IF(ISBLANK(Budgets!R24),'Calculations '!N13, 'Calculations '!O13) -> 
A14: Herbicides | B14: =Budgets!E25 -> 76.550325 | C14: =Budgets!F25 -> 0 | D14: =IF(ISBLANK(Budgets!F25),'Calculations '!B14, 'Calculations '!C14) -> 76.550325 | E14: =Budgets!H25 ->  | F14: =Budgets!I25 -> 0 | G14: =IF(ISBLANK(Budgets!I25),'Calculations '!E14, 'Calculations '!F14) ->  | H14: =Budgets!K25 ->  | I14: =Budgets!L25 -> 0 | J14: =IF(ISBLANK(Budgets!L25),'Calculations '!H14, 'Calculations '!I14) ->  | K14: =Budgets!N25 ->  | L14: =Budgets!O25 -> 0 | M14: =IF(ISBLANK(Budgets!O25),'Calculations '!K14, 'Calculations '!L14) ->  | N14: =Budgets!Q25 ->  | O14: =Budgets!R25 -> 0 | P14: =IF(ISBLANK(Budgets!R25),'Calculations '!N14, 'Calculations '!O14) -> 
A15: Fungicides | B15: =Budgets!E26 -> 0 | C15: =Budgets!F26 -> 0 | D15: =IF(ISBLANK(Budgets!F26),'Calculations '!B15, 'Calculations '!C15) -> 0 | E15: =Budgets!H26 ->  | F15: =Budgets!I26 -> 0 | G15: =IF(ISBLANK(Budgets!I26),'Calculations '!E15, 'Calculations '!F15) ->  | H15: =Budgets!K26 ->  | I15: =Budgets!L26 -> 0 | J15: =IF(ISBLANK(Budgets!L26),'Calculations '!H15, 'Calculations '!I15) ->  | K15: =Budgets!N26 ->  | L15: =Budgets!O26 -> 0 | M15: =IF(ISBLANK(Budgets!O26),'Calculations '!K15, 'Calculations '!L15) ->  | N15: =Budgets!Q26 ->  | O15: =Budgets!R26 -> 0 | P15: =IF(ISBLANK(Budgets!R26),'Calculations '!N15, 'Calculations '!O15) -> 
A16: Insecticides | B16: =Budgets!E27 -> 0 | C16: =Budgets!F27 -> 0 | D16: =IF(ISBLANK(Budgets!F27),'Calculations '!B16, 'Calculations '!C16) -> 0 | E16: =Budgets!H27 ->  | F16: =Budgets!I27 -> 0 | G16: =IF(ISBLANK(Budgets!I27),'Calculations '!E16, 'Calculations '!F16) ->  | H16: =Budgets!K27 ->  | I16: =Budgets!L27 -> 0 | J16: =IF(ISBLANK(Budgets!L27),'Calculations '!H16, 'Calculations '!I16) ->  | K16: =Budgets!N27 ->  | L16: =Budgets!O27 -> 0 | M16: =IF(ISBLANK(Budgets!O27),'Calculations '!K16, 'Calculations '!L16) ->  | N16: =Budgets!Q27 ->  | O16: =Budgets!R27 -> 0 | P16: =IF(ISBLANK(Budgets!R27),'Calculations '!N16, 'Calculations '!O16) -> 
A17: Crop consulting | B17: =Budgets!E28 -> 11.648 | C17: =Budgets!F28 -> 0 | D17: =IF(ISBLANK(Budgets!F28),'Calculations '!B17, 'Calculations '!C17) -> 11.648 | E17: =Budgets!H28 ->  | F17: =Budgets!I28 -> 0 | G17: =IF(ISBLANK(Budgets!I28),'Calculations '!E17, 'Calculations '!F17) ->  | H17: =Budgets!K28 ->  | I17: =Budgets!L28 -> 0 | J17: =IF(ISBLANK(Budgets!L28),'Calculations '!H17, 'Calculations '!I17) ->  | K17: =Budgets!N28 ->  | L17: =Budgets!O28 -> 0 | M17: =IF(ISBLANK(Budgets!O28),'Calculations '!K17, 'Calculations '!L17) ->  | N17: =Budgets!Q28 ->  | O17: =Budgets!R28 -> 0 | P17: =IF(ISBLANK(Budgets!R28),'Calculations '!N17, 'Calculations '!O17) -> 
A18: Crop insurance | B18: =Budgets!E29 -> 23.35 | C18: =Budgets!F29 -> 0 | D18: =IF(ISBLANK(Budgets!F29),'Calculations '!B18, 'Calculations '!C18) -> 23.35 | E18: =Budgets!H29 ->  | F18: =Budgets!I29 -> 0 | G18: =IF(ISBLANK(Budgets!I29),'Calculations '!E18, 'Calculations '!F18) ->  | H18: =Budgets!K29 ->  | I18: =Budgets!L29 -> 0 | J18: =IF(ISBLANK(Budgets!L29),'Calculations '!H18, 'Calculations '!I18) ->  | K18: =Budgets!N29 ->  | L18: =Budgets!O29 -> 0 | M18: =IF(ISBLANK(Budgets!O29),'Calculations '!K18, 'Calculations '!L18) ->  | N18: =Budgets!Q29 ->  | O18: =Budgets!R29 -> 0 | P18: =IF(ISBLANK(Budgets!R29),'Calculations '!N18, 'Calculations '!O18) -> 
A19: Miscellaneous | B19: =Budgets!E30 -> 70.1568 | C19: =Budgets!F30 -> 0 | D19: =IF(ISBLANK(Budgets!F30),'Calculations '!B19, 'Calculations '!C19) -> 70.1568 | E19: =Budgets!H30 ->  | F19: =Budgets!I30 -> 0 | G19: =IF(ISBLANK(Budgets!I30),'Calculations '!E19, 'Calculations '!F19) ->  | H19: =Budgets!K30 ->  | I19: =Budgets!L30 -> 0 | J19: =IF(ISBLANK(Budgets!L30),'Calculations '!H19, 'Calculations '!I19) ->  | K19: =Budgets!N30 ->  | L19: =Budgets!O30 -> 0 | M19: =IF(ISBLANK(Budgets!O30),'Calculations '!K19, 'Calculations '!L19) ->  | N19: =Budgets!Q30 ->  | O19: =Budgets!R30 -> 0 | P19: =IF(ISBLANK(Budgets!R30),'Calculations '!N19, 'Calculations '!O19) -> 
A20: Surfactant | B20: =Budgets!E31 -> 0 | C20: =Budgets!F31 -> 0 | D20: =IF(ISBLANK(Budgets!F31),'Calculations '!B20, 'Calculations '!C20) -> 0 | E20: =Budgets!H31 ->  | F20: =Budgets!I31 -> 0 | G20: =IF(ISBLANK(Budgets!I31),'Calculations '!E20, 'Calculations '!F20) ->  | H20: =Budgets!K31 ->  | I20: =Budgets!L31 -> 0 | J20: =IF(ISBLANK(Budgets!L31),'Calculations '!H20, 'Calculations '!I20) ->  | K20: =Budgets!N31 ->  | L20: =Budgets!O31 -> 0 | M20: =IF(ISBLANK(Budgets!O31),'Calculations '!K20, 'Calculations '!L20) ->  | N20: =Budgets!Q31 ->  | O20: =Budgets!R31 -> 0 | P20: =IF(ISBLANK(Budgets!R31),'Calculations '!N20, 'Calculations '!O20) -> 
A21: Other inputs | B21: =Budgets!E32 -> 2.12976 | C21: =Budgets!F32 -> 0 | D21: =IF(ISBLANK(Budgets!F32),'Calculations '!B21, 'Calculations '!C21) -> 2.12976 | E21: =Budgets!H32 ->  | F21: =Budgets!I32 -> 0 | G21: =IF(ISBLANK(Budgets!I32),'Calculations '!E21, 'Calculations '!F21) ->  | H21: =Budgets!K32 ->  | I21: =Budgets!L32 -> 0 | J21: =IF(ISBLANK(Budgets!L32),'Calculations '!H21, 'Calculations '!I21) ->  | K21: =Budgets!N32 ->  | L21: =Budgets!O32 -> 0 | M21: =IF(ISBLANK(Budgets!O32),'Calculations '!K21, 'Calculations '!L21) ->  | N21: =Budgets!Q32 ->  | O21: =Budgets!R32 -> 0 | P21: =IF(ISBLANK(Budgets!R32),'Calculations '!N21, 'Calculations '!O21) -> 
A22: MACHINERY
A23: --fertilizer application | B23: =Budgets!E34 -> 2.843429142 | C23: =Budgets!F34 -> 0 | D23: =IF(ISBLANK(Budgets!F34),'Calculations '!B23, 'Calculations '!C23) -> 2.843429142 | E23: =Budgets!H34 ->  | F23: =Budgets!I34 -> 0 | G23: =IF(ISBLANK(Budgets!I34),'Calculations '!E23, 'Calculations '!F23) ->  | H23: =Budgets!K34 ->  | I23: =Budgets!L34 -> 0 | J23: =IF(ISBLANK(Budgets!L34),'Calculations '!H23, 'Calculations '!I23) ->  | K23: =Budgets!N34 ->  | L23: =Budgets!O34 -> 0 | M23: =IF(ISBLANK(Budgets!O34),'Calculations '!K23, 'Calculations '!L23) ->  | N23: =Budgets!Q34 ->  | O23: =Budgets!R34 -> 0 | P23: =IF(ISBLANK(Budgets!R34),'Calculations '!N23, 'Calculations '!O23) -> 
A24: --harvesting | B24: =Budgets!E35 -> 49.46268719 | C24: =Budgets!F35 -> 0 | D24: =IF(ISBLANK(Budgets!F35),'Calculations '!B24, 'Calculations '!C24) -> 49.46268719 | E24: =Budgets!H35 ->  | F24: =Budgets!I35 -> 0 | G24: =IF(ISBLANK(Budgets!I35),'Calculations '!E24, 'Calculations '!F24) ->  | H24: =Budgets!K35 ->  | I24: =Budgets!L35 -> 0 | J24: =IF(ISBLANK(Budgets!L35),'Calculations '!H24, 'Calculations '!I24) ->  | K24: =Budgets!N35 ->  | L24: =Budgets!O35 -> 0 | M24: =IF(ISBLANK(Budgets!O35),'Calculations '!K24, 'Calculations '!L24) ->  | N24: =Budgets!Q35 ->  | O24: =Budgets!R35 -> 0 | P24: =IF(ISBLANK(Budgets!R35),'Calculations '!N24, 'Calculations '!O24) -> 
A25: --hauling | B25: =Budgets!E36 -> 0 | C25: =Budgets!F36 -> 0 | D25: =IF(ISBLANK(Budgets!F36),'Calculations '!B25, 'Calculations '!C25) -> 0 | E25: =Budgets!H36 ->  | F25: =Budgets!I36 -> 0 | G25: =IF(ISBLANK(Budgets!I36),'Calculations '!E25, 'Calculations '!F25) ->  | H25: =Budgets!K36 ->  | I25: =Budgets!L36 -> 0 | J25: =IF(ISBLANK(Budgets!L36),'Calculations '!H25, 'Calculations '!I25) ->  | K25: =Budgets!N36 ->  | L25: =Budgets!O36 -> 0 | M25: =IF(ISBLANK(Budgets!O36),'Calculations '!K25, 'Calculations '!L25) ->  | N25: =Budgets!Q36 ->  | O25: =Budgets!R36 -> 0 | P25: =IF(ISBLANK(Budgets!R36),'Calculations '!N25, 'Calculations '!O25) -> 
A26: --miscellaneous | B26: =Budgets!E37 -> 0 | C26: =Budgets!F37 -> 0 | D26: =IF(ISBLANK(Budgets!F37),'Calculations '!B26, 'Calculations '!C26) -> 0 | E26: =Budgets!H37 ->  | F26: =Budgets!I37 -> 0 | G26: =IF(ISBLANK(Budgets!I37),'Calculations '!E26, 'Calculations '!F26) ->  | H26: =Budgets!K37 ->  | I26: =Budgets!L37 -> 0 | J26: =IF(ISBLANK(Budgets!L37),'Calculations '!H26, 'Calculations '!I26) ->  | K26: =Budgets!N37 ->  | L26: =Budgets!O37 -> 0 | M26: =IF(ISBLANK(Budgets!O37),'Calculations '!K26, 'Calculations '!L26) ->  | N26: =Budgets!Q37 ->  | O26: =Budgets!R37 -> 0 | P26: =IF(ISBLANK(Budgets!R37),'Calculations '!N26, 'Calculations '!O26) -> 
A27: --planting | B27: =Budgets!E38 -> 5.925371323 | C27: =Budgets!F38 -> 0 | D27: =IF(ISBLANK(Budgets!F38),'Calculations '!B27, 'Calculations '!C27) -> 5.925371323 | E27: =Budgets!H38 ->  | F27: =Budgets!I38 -> 0 | G27: =IF(ISBLANK(Budgets!I38),'Calculations '!E27, 'Calculations '!F27) ->  | H27: =Budgets!K38 ->  | I27: =Budgets!L38 -> 0 | J27: =IF(ISBLANK(Budgets!L38),'Calculations '!H27, 'Calculations '!I27) ->  | K27: =Budgets!N38 ->  | L27: =Budgets!O38 -> 0 | M27: =IF(ISBLANK(Budgets!O38),'Calculations '!K27, 'Calculations '!L27) ->  | N27: =Budgets!Q38 ->  | O27: =Budgets!R38 -> 0 | P27: =IF(ISBLANK(Budgets!R38),'Calculations '!N27, 'Calculations '!O27) -> 
A28: --spraying | B28: =Budgets!E39 -> 10.36240744 | C28: =Budgets!F39 -> 0 | D28: =IF(ISBLANK(Budgets!F39),'Calculations '!B28, 'Calculations '!C28) -> 10.36240744 | E28: =Budgets!H39 ->  | F28: =Budgets!I39 -> 0 | G28: =IF(ISBLANK(Budgets!I39),'Calculations '!E28, 'Calculations '!F28) ->  | H28: =Budgets!K39 ->  | I28: =Budgets!L39 -> 0 | J28: =IF(ISBLANK(Budgets!L39),'Calculations '!H28, 'Calculations '!I28) ->  | K28: =Budgets!N39 ->  | L28: =Budgets!O39 -> 0 | M28: =IF(ISBLANK(Budgets!O39),'Calculations '!K28, 'Calculations '!L28) ->  | N28: =Budgets!Q39 ->  | O28: =Budgets!R39 -> 0 | P28: =IF(ISBLANK(Budgets!R39),'Calculations '!N28, 'Calculations '!O28) -> 
A29: --tillage | B29: =Budgets!E40 -> 3.989920715 | C29: =Budgets!F40 -> 0 | D29: =IF(ISBLANK(Budgets!F40),'Calculations '!B29, 'Calculations '!C29) -> 3.989920715 | E29: =Budgets!H40 ->  | F29: =Budgets!I40 -> 0 | G29: =IF(ISBLANK(Budgets!I40),'Calculations '!E29, 'Calculations '!F29) ->  | H29: =Budgets!K40 ->  | I29: =Budgets!L40 -> 0 | J29: =IF(ISBLANK(Budgets!L40),'Calculations '!H29, 'Calculations '!I29) ->  | K29: =Budgets!N40 ->  | L29: =Budgets!O40 -> 0 | M29: =IF(ISBLANK(Budgets!O40),'Calculations '!K29, 'Calculations '!L29) ->  | N29: =Budgets!Q40 ->  | O29: =Budgets!R40 -> 0 | P29: =IF(ISBLANK(Budgets!R40),'Calculations '!N29, 'Calculations '!O29) -> 
A30: --other | B30: =Budgets!E41 -> 0 | C30: =Budgets!F41 -> 0 | D30: =IF(ISBLANK(Budgets!F41),'Calculations '!B30, 'Calculations '!C30) -> 0 | E30: =Budgets!H41 ->  | F30: =Budgets!I41 -> 0 | G30: =IF(ISBLANK(Budgets!I41),'Calculations '!E30, 'Calculations '!F30) ->  | H30: =Budgets!K41 ->  | I30: =Budgets!L41 -> 0 | J30: =IF(ISBLANK(Budgets!L41),'Calculations '!H30, 'Calculations '!I30) ->  | K30: =Budgets!N41 ->  | L30: =Budgets!O41 -> 0 | M30: =IF(ISBLANK(Budgets!O41),'Calculations '!K30, 'Calculations '!L30) ->  | N30: =Budgets!Q41 ->  | O30: =Budgets!R41 -> 0 | P30: =IF(ISBLANK(Budgets!R41),'Calculations '!N30, 'Calculations '!O30) -> 
A31: --custom operations | B31: =Budgets!E42 -> 164.2102244 | C31: =Budgets!F42 -> 0 | D31: =IF(ISBLANK(Budgets!F42),'Calculations '!B31, 'Calculations '!C31) -> 164.2102244 | E31: =Budgets!H42 ->  | F31: =Budgets!I42 -> 0 | G31: =IF(ISBLANK(Budgets!I42),'Calculations '!E31, 'Calculations '!F31) ->  | H31: =Budgets!K42 ->  | I31: =Budgets!L42 -> 0 | J31: =IF(ISBLANK(Budgets!L42),'Calculations '!H31, 'Calculations '!I31) ->  | K31: =Budgets!N42 ->  | L31: =Budgets!O42 -> 0 | M31: =IF(ISBLANK(Budgets!O42),'Calculations '!K31, 'Calculations '!L31) ->  | N31: =Budgets!Q42 ->  | O31: =Budgets!R42 -> 0 | P31: =IF(ISBLANK(Budgets!R42),'Calculations '!N31, 'Calculations '!O31) -> 
A32: Irrigation | B32: =Budgets!E43 -> 0 | C32: =Budgets!F43 -> 0 | D32: =IF(ISBLANK(Budgets!F43),'Calculations '!B32, 'Calculations '!C32) -> 0 | E32: =Budgets!H43 ->  | F32: =Budgets!I43 -> 0 | G32: =IF(ISBLANK(Budgets!I43),'Calculations '!E32, 'Calculations '!F32) ->  | H32: =Budgets!K43 ->  | I32: =Budgets!L43 -> 0 | J32: =IF(ISBLANK(Budgets!L43),'Calculations '!H32, 'Calculations '!I32) ->  | K32: =Budgets!N43 ->  | L32: =Budgets!O43 -> 0 | M32: =IF(ISBLANK(Budgets!O43),'Calculations '!K32, 'Calculations '!L32) ->  | N32: =Budgets!Q43 ->  | O32: =Budgets!R43 -> 0 | P32: =IF(ISBLANK(Budgets!R43),'Calculations '!N32, 'Calculations '!O32) -> 
A33: Interest on direct expenses | B33: =SUM(D11:D32) * $B$2/2 -> 23.51315701 | C33: =Budgets!F44 -> 0 | D33: =IF(ISBLANK(Budgets!F44),'Calculations '!B33, 'Calculations '!C33) -> 23.51315701 | E33: =SUM(G11:G32) * $B$2/2 -> 0 | F33: =Budgets!I44 -> 0 | G33: =IF(ISBLANK(Budgets!I44),'Calculations '!E33, 'Calculations '!F33) -> 0 | H33: =SUM(J11:J32) * $B$2/2 -> 0 | I33: =Budgets!L44 -> 0 | J33: =IF(ISBLANK(Budgets!L44),'Calculations '!H33, 'Calculations '!I33) -> 0 | K33: =SUM(M11:M32) * $B$2/2 -> 0 | L33: =Budgets!O44 -> 0 | M33: =IF(ISBLANK(Budgets!O44),'Calculations '!K33, 'Calculations '!L33) -> 0 | N33: =SUM(P11:P32) * $B$2/2 -> 0 | O33: =Budgets!R44 -> 0 | P33: =IF(ISBLANK(Budgets!R44),'Calculations '!N33, 'Calculations '!O33) -> 0
A37: Fixed Expenses
A38: --fertilizer application | B38: =Budgets!E49 -> 3.678775225 | C38: =Budgets!F49 -> 0 | D38: =IF(ISBLANK(Budgets!F49),'Calculations '!B38, 'Calculations '!C38) -> 3.678775225 | E38: =Budgets!H49 ->  | F38: =Budgets!I49 -> 0 | G38: =IF(ISBLANK(Budgets!I49),'Calculations '!E38, 'Calculations '!F38) ->  | H38: =Budgets!K49 ->  | I38: =Budgets!L49 -> 0 | J38: =IF(ISBLANK(Budgets!L49),'Calculations '!H38, 'Calculations '!I38) ->  | K38: =Budgets!N49 ->  | L38: =Budgets!O49 -> 0 | M38: =IF(ISBLANK(Budgets!O49),'Calculations '!K38, 'Calculations '!L38) ->  | N38: =Budgets!Q49 ->  | O38: =Budgets!R49 -> 0 | P38: =IF(ISBLANK(Budgets!R49),'Calculations '!N38, 'Calculations '!O38) -> 
A39: --harvesting | B39: =Budgets!E50 -> 117.7057563 | C39: =Budgets!F50 -> 0 | D39: =IF(ISBLANK(Budgets!F50),'Calculations '!B39, 'Calculations '!C39) -> 117.7057563 | E39: =Budgets!H50 ->  | F39: =Budgets!I50 -> 0 | G39: =IF(ISBLANK(Budgets!I50),'Calculations '!E39, 'Calculations '!F39) ->  | H39: =Budgets!K50 ->  | I39: =Budgets!L50 -> 0 | J39: =IF(ISBLANK(Budgets!L50),'Calculations '!H39, 'Calculations '!I39) ->  | K39: =Budgets!N50 ->  | L39: =Budgets!O50 -> 0 | M39: =IF(ISBLANK(Budgets!O50),'Calculations '!K39, 'Calculations '!L39) ->  | N39: =Budgets!Q50 ->  | O39: =Budgets!R50 -> 0 | P39: =IF(ISBLANK(Budgets!R50),'Calculations '!N39, 'Calculations '!O39) -> 
A40: --hauling | B40: =Budgets!E51 -> 0 | C40: =Budgets!F51 -> 0 | D40: =IF(ISBLANK(Budgets!F51),'Calculations '!B40, 'Calculations '!C40) -> 0 | E40: =Budgets!H51 ->  | F40: =Budgets!I51 -> 0 | G40: =IF(ISBLANK(Budgets!I51),'Calculations '!E40, 'Calculations '!F40) ->  | H40: =Budgets!K51 ->  | I40: =Budgets!L51 -> 0 | J40: =IF(ISBLANK(Budgets!L51),'Calculations '!H40, 'Calculations '!I40) ->  | K40: =Budgets!N51 ->  | L40: =Budgets!O51 -> 0 | M40: =IF(ISBLANK(Budgets!O51),'Calculations '!K40, 'Calculations '!L40) ->  | N40: =Budgets!Q51 ->  | O40: =Budgets!R51 -> 0 | P40: =IF(ISBLANK(Budgets!R51),'Calculations '!N40, 'Calculations '!O40) -> 
A41: --miscellaneous | B41: =Budgets!E52 -> 0 | C41: =Budgets!F52 -> 0 | D41: =IF(ISBLANK(Budgets!F52),'Calculations '!B41, 'Calculations '!C41) -> 0 | E41: =Budgets!H52 ->  | F41: =Budgets!I52 -> 0 | G41: =IF(ISBLANK(Budgets!I52),'Calculations '!E41, 'Calculations '!F41) ->  | H41: =Budgets!K52 ->  | I41: =Budgets!L52 -> 0 | J41: =IF(ISBLANK(Budgets!L52),'Calculations '!H41, 'Calculations '!I41) ->  | K41: =Budgets!N52 ->  | L41: =Budgets!O52 -> 0 | M41: =IF(ISBLANK(Budgets!O52),'Calculations '!K41, 'Calculations '!L41) ->  | N41: =Budgets!Q52 ->  | O41: =Budgets!R52 -> 0 | P41: =IF(ISBLANK(Budgets!R52),'Calculations '!N41, 'Calculations '!O41) -> 
A42: --planting | B42: =Budgets!E53 -> 6.937870621 | C42: =Budgets!F53 -> 0 | D42: =IF(ISBLANK(Budgets!F53),'Calculations '!B42, 'Calculations '!C42) -> 6.937870621 | E42: =Budgets!H53 ->  | F42: =Budgets!I53 -> 0 | G42: =IF(ISBLANK(Budgets!I53),'Calculations '!E42, 'Calculations '!F42) ->  | H42: =Budgets!K53 ->  | I42: =Budgets!L53 -> 0 | J42: =IF(ISBLANK(Budgets!L53),'Calculations '!H42, 'Calculations '!I42) ->  | K42: =Budgets!N53 ->  | L42: =Budgets!O53 -> 0 | M42: =IF(ISBLANK(Budgets!O53),'Calculations '!K42, 'Calculations '!L42) ->  | N42: =Budgets!Q53 ->  | O42: =Budgets!R53 -> 0 | P42: =IF(ISBLANK(Budgets!R53),'Calculations '!N42, 'Calculations '!O42) -> 
A43: --spraying | B43: =Budgets!E54 -> 12.8665601 | C43: =Budgets!F54 -> 0 | D43: =IF(ISBLANK(Budgets!F54),'Calculations '!B43, 'Calculations '!C43) -> 12.8665601 | E43: =Budgets!H54 ->  | F43: =Budgets!I54 -> 0 | G43: =IF(ISBLANK(Budgets!I54),'Calculations '!E43, 'Calculations '!F43) ->  | H43: =Budgets!K54 ->  | I43: =Budgets!L54 -> 0 | J43: =IF(ISBLANK(Budgets!L54),'Calculations '!H43, 'Calculations '!I43) ->  | K43: =Budgets!N54 ->  | L43: =Budgets!O54 -> 0 | M43: =IF(ISBLANK(Budgets!O54),'Calculations '!K43, 'Calculations '!L43) ->  | N43: =Budgets!Q54 ->  | O43: =Budgets!R54 -> 0 | P43: =IF(ISBLANK(Budgets!R54),'Calculations '!N43, 'Calculations '!O43) -> 
A44: --tillage | B44: =Budgets!E55 -> 6.383336906 | C44: =Budgets!F55 -> 0 | D44: =IF(ISBLANK(Budgets!F55),'Calculations '!B44, 'Calculations '!C44) -> 6.383336906 | E44: =Budgets!H55 ->  | F44: =Budgets!I55 -> 0 | G44: =IF(ISBLANK(Budgets!I55),'Calculations '!E44, 'Calculations '!F44) ->  | H44: =Budgets!K55 ->  | I44: =Budgets!L55 -> 0 | J44: =IF(ISBLANK(Budgets!L55),'Calculations '!H44, 'Calculations '!I44) ->  | K44: =Budgets!N55 ->  | L44: =Budgets!O55 -> 0 | M44: =IF(ISBLANK(Budgets!O55),'Calculations '!K44, 'Calculations '!L44) ->  | N44: =Budgets!Q55 ->  | O44: =Budgets!R55 -> 0 | P44: =IF(ISBLANK(Budgets!R55),'Calculations '!N44, 'Calculations '!O44) -> 
A45: --other | B45: =Budgets!E56 -> 0 | C45: =Budgets!F56 -> 0 | D45: =IF(ISBLANK(Budgets!F56),'Calculations '!B45, 'Calculations '!C45) -> 0 | E45: =Budgets!H56 ->  | F45: =Budgets!I56 -> 0 | G45: =IF(ISBLANK(Budgets!I56),'Calculations '!E45, 'Calculations '!F45) ->  | H45: =Budgets!K56 ->  | I45: =Budgets!L56 -> 0 | J45: =IF(ISBLANK(Budgets!L56),'Calculations '!H45, 'Calculations '!I45) ->  | K45: =Budgets!N56 ->  | L45: =Budgets!O56 -> 0 | M45: =IF(ISBLANK(Budgets!O56),'Calculations '!K45, 'Calculations '!L45) ->  | N45: =Budgets!Q56 ->  | O45: =Budgets!R56 -> 0 | P45: =IF(ISBLANK(Budgets!R56),'Calculations '!N45, 'Calculations '!O45) -> 
A46: Irrigation | B46: =Budgets!E57 -> 0 | C46: =Budgets!F57 -> 0 | D46: =IF(ISBLANK(Budgets!F57),'Calculations '!B46, 'Calculations '!C46) -> 0 | E46: =Budgets!H57 ->  | F46: =Budgets!I57 -> 0 | G46: =IF(ISBLANK(Budgets!I57),'Calculations '!E46, 'Calculations '!F46) ->  | H46: =Budgets!K57 ->  | I46: =Budgets!L57 -> 0 | J46: =IF(ISBLANK(Budgets!L57),'Calculations '!H46, 'Calculations '!I46) ->  | K46: =Budgets!N57 ->  | L46: =Budgets!O57 -> 0 | M46: =IF(ISBLANK(Budgets!O57),'Calculations '!K46, 'Calculations '!L46) ->  | N46: =Budgets!Q57 ->  | O46: =Budgets!R57 -> 0 | P46: =IF(ISBLANK(Budgets!R57),'Calculations '!N46, 'Calculations '!O46) -> 
A47: Cash rent ( $ / acre ) | B47: =Budgets!E58 -> 69 | C47: =Budgets!F58 -> 0 | D47: =IF(ISBLANK(Budgets!F58),'Calculations '!B47, 'Calculations '!C47) -> 69 | E47: =Budgets!H58 ->  | F47: =Budgets!I58 -> 0 | G47: =IF(ISBLANK(Budgets!I58),'Calculations '!E47, 'Calculations '!F47) ->  | H47: =Budgets!K58 ->  | I47: =Budgets!L58 -> 0 | J47: =IF(ISBLANK(Budgets!L58),'Calculations '!H47, 'Calculations '!I47) ->  | K47: =Budgets!N58 ->  | L47: =Budgets!O58 -> 0 | M47: =IF(ISBLANK(Budgets!O58),'Calculations '!K47, 'Calculations '!L47) ->  | N47: =Budgets!Q58 ->  | O47: =Budgets!R58 -> 0 | P47: =IF(ISBLANK(Budgets!R58),'Calculations '!N47, 'Calculations '!O47) -> 
A48: Property taxes ( $ / acre)
A51: Total direct expenses before interest | D51: =SUM(D11:D32) -> 587.8289252 | G51: =SUM(G11:G32) -> 0 | J51: =SUM(J11:J32) -> 0 | M51: =SUM(M11:M32) -> 0 | P51: =SUM(P11:P32) -> 0
A52: Interest (the interest rate comes from 'Budgets') | D52: =D33 -> 23.51315701 | G52: =G33 -> 0 | J52: =J33 -> 0 | M52: =M33 -> 0 | P52: =P33 -> 0
A53: <Total direct expenses> | D53: =D51+D52 -> 611.3420822 | G53: =G51+G52 -> 0 | J53: =J51+J52 -> 0 | M53: =M51+M52 -> 0 | P53: =P51+P52 -> 0
A56: <Total fixed expenses> | D56: =SUM(D38:D47) -> 216.5722991 | G56: =SUM(G38:G47) -> 0 | J56: =SUM(J38:J47) -> 0 | M56: =SUM(M38:M47) -> 0 | P56: =SUM(P38:P47) -> 0
E62: Fallow acres | F62: =Budgets!C10 -> 0
E63: Double crop acres | F63: =Budgets!C11 -> 0 | O63: Cash landlord
M64: CASH - tenant | N64: - - - - - - - > | P64: SHARE | T64: Calculations to find the equitable share percentage
B65: Equitable tenant % | C65: =Budgets!Z6 -> 0.66 | L65: Total | M65: per planted ac | N65: per tillable ac | P65: Tenant | Q65: Landlord | T65: only calculating those costs that are not shared
E66: Acres | F66: =Budgets!C5*'Data from budgets'!B8 -> 1 | G66: =Budgets!C6*'Data from budgets'!C8 -> 0 | H66: =Budgets!C7*'Data from budgets'!D8 -> 0 | I66: =Budgets!C8*'Data from budgets'!E8 -> 0 | J66: =Budgets!C9*'Data from budgets'!F8 -> 0 | L66: =SUM(F66:J66) -> 1
C67: Tenant % | E67: Tillable | L67: =L66+F62-F63 -> 1
B69: Adjustment factor for 2-way tables | F69: Crop A | G69: Crop B | H69: Crop C | I69: Crop D | J69: Crop E | T69: Is the cost fixed?
A70: Yield | B70: 0 | C70: =IF(ISBLANK(Budgets!C16),1,IF(AND(ISNUMBER(Budgets!C16), Budgets!C16>=0), Budgets!C16, $C$65)) -> 0.66 | F70: =IFERROR(D5 * (1 + B70), "") -> 950 | G70: =IFERROR(G5 * (1 + B70), "") ->  | H70: =IFERROR(J5 * (1 + B70), "") ->  | I70: =IFERROR(M5 * (1 + B70), "") ->  | J70: =IFERROR( P5 * (1 + B70), "") -> 
A71: Price | B71: 0 | F71: =IFERROR(D6*(1+$B$71),"") -> 0.8 | G71: =IFERROR(G6*(1+$B$71),"") ->  | H71: =IFERROR(J6*(1+$B$71),"") ->  | I71: =IFERROR(M6*(1+$B$71),"") ->  | J71: =IFERROR(P6*(1+$B$71),"") ->  | L71: =SUMPRODUCT(F66:J66, F70:J70, F71:J71) -> 760 | M71: =L71 / $L$66 -> 760 | N71: =L71 / $L$67 -> 760 | P71: =C70*N71 -> 501.6 | Q71: =N71-P71 -> 258.4
A72: Other income | C72: =IF(ISBLANK(Budgets!C18),1,IF(AND(ISNUMBER(Budgets!C18), Budgets!C18>=0), Budgets!C18, $C$65)) -> 0.66 | F72: =D7 -> 192.3 | G72: =G7 ->  | H72: =J7 ->  | I72: =M7 ->  | J72: =P7 ->  | L72: =SUMPRODUCT(F66:J66, F72:J72) -> 192.3 | M72: =L72 / $L$66 -> 192.3 | N72: =L72 / $L$67 -> 192.3 | P72: =C72 * N72 -> 126.918 | Q72: =N72-P72 -> 65.382
B73: <Total Revenue> | F73: =D8 -> 952.3 | G73: =G8 ->  | H73: =J8 ->  | I73: =M8 ->  | J73: =P8 ->  | L73: =L71+L72 -> 952.3 | M73: 952.3 | N73: =L73 / $L$67 -> 952.3 | O73: =N112 -> 69 | P73: =P71+P72 -> 628.518 | Q73: =N73-P73 -> 323.782 | T73: Tenant | W73: landlord
M74: 0 | N74: 0
A75: Direct Exp | M75: 0 | N75: 0
A76: Seeds | C76: =IF(ISBLANK(Budgets!C22),1,IF(AND(ISNUMBER(Budgets!C22), Budgets!C22>=0), Budgets!C22, $C$65)) -> 1 | F76: =D11 -> 86 | G76: =G11 ->  | H76: =J11 ->  | I76: =M11 ->  | J76: =P11 ->  | L76: =SUMPRODUCT($F$66:$J$66, F76:J76) -> 86 | M76: 86 | N76: 86 | P76: =C76 *N76 -> 86 | Q76: =N76-P76 -> 0 | T76: =IF(ISBLANK(Budgets!C22),1,IF(AND(ISNUMBER(Budgets!C22), Budgets!C22>=0), Budgets!C22, 0)) -> 1 | U76: =L76*T76 -> 86 | W76: =IF(ISBLANK(Budgets!C22),0,IF(AND(ISNUMBER(Budgets!C22), Budgets!C22>=0), 1- Budgets!C22, 0)) -> 0 | X76: =W76*L76 -> 0
A77: Fertilizer (less lime) | C77: =IF(ISBLANK(Budgets!C23),1,IF(AND(ISNUMBER(Budgets!C23), Budgets!C23>=0), Budgets!C23, $C$65)) -> 0.66 | F77: 81.2 | L77: =SUMPRODUCT($F$66:$J$66, F77:J77) -> 81.2 | M77: 81.2 | N77: 81.2 | P77: =C77 *N77 -> 53.592 | Q77: =N77-P77 -> 27.608 | T77: =IF(ISBLANK(Budgets!C23),1,IF(AND(ISNUMBER(Budgets!C23), Budgets!C23>=0), Budgets!C23, 0)) -> 0 | U77: =L77*T77 -> 0 | W77: =IF(ISBLANK(Budgets!C23),0,IF(AND(ISNUMBER(Budgets!C23), Budgets!C23>=0), 1- Budgets!C23, 0)) -> 0 | X77: =W77*L77 -> 0
A78: --Lime | C78: =IF(ISBLANK(Budgets!C24),1,IF(AND(ISNUMBER(Budgets!C24), Budgets!C24>=0), Budgets!C24, $C$65)) -> 0.66 | F78: 0 | L78: =SUMPRODUCT($F$66:$J$66, F78:J78) -> 0 | M78: =IF(B140, 0, L78 / $L$66) -> 0 | N78: =IF(B140, 0, L78 / $L$67) -> 0 | O78: =IF(B140, L78 / $L$67, 0) -> 0 | P78: =C78 *(N78+O78) -> 0 | Q78: =N78 + O78 -P78 -> 0 | R78: fixed | T78: =IF(ISBLANK(Budgets!C24),1,IF(AND(ISNUMBER(Budgets!C24), Budgets!C24>=0), Budgets!C24, 0)) -> 0 | U78: 0 | W78: =IF(ISBLANK(Budgets!C24),0,IF(AND(ISNUMBER(Budgets!C24), Budgets!C24>=0), 1- Budgets!C24, 0)) -> 0 | X78: 0
A79: Herbicides | C79: =IF(ISBLANK(Budgets!C25),1,IF(AND(ISNUMBER(Budgets!C25), Budgets!C25>=0), Budgets!C25, $C$65)) -> 1 | F79: 76.550325 | L79: 76.550325 | M79: 76.550325 | N79: 76.550325 | P79: =C79 *N79 -> 76.550325 | Q79: =N79-P79 -> 0 | T79: =IF(ISBLANK(Budgets!C25),1,IF(AND(ISNUMBER(Budgets!C25), Budgets!C25>=0), Budgets!C25, 0)) -> 1 | U79: 76.550325 | W79: =IF(ISBLANK(Budgets!C25),0,IF(AND(ISNUMBER(Budgets!C25), Budgets!C25>=0), 1- Budgets!C25, 0)) -> 0 | X79: 0
A80: Fungicides | C80: =IF(ISBLANK(Budgets!C26),1,IF(AND(ISNUMBER(Budgets!C26), Budgets!C26>=0), Budgets!C26, $C$65)) -> 1 | F80: 0 | L80: 0 | M80: 0 | N80: 0 | P80: =C80 *N80 -> 0 | Q80: =N80-P80 -> 0 | T80: =IF(ISBLANK(Budgets!C26),1,IF(AND(ISNUMBER(Budgets!C26), Budgets!C26>=0), Budgets!C26, 0)) -> 1 | U80: 0 | W80: =IF(ISBLANK(Budgets!C26),0,IF(AND(ISNUMBER(Budgets!C26), Budgets!C26>=0), 1- Budgets!C26, 0)) -> 0 | X80: 0
A81: Insecticides | C81: =IF(ISBLANK(Budgets!C27),1,IF(AND(ISNUMBER(Budgets!C27), Budgets!C27>=0), Budgets!C27, $C$65)) -> 1 | F81: 0 | L81: 0 | M81: 0 | N81: 0 | P81: 0 | Q81: 0 | T81: =IF(ISBLANK(Budgets!C27),1,IF(AND(ISNUMBER(Budgets!C27), Budgets!C27>=0), Budgets!C27, 0)) -> 1 | U81: 0 | W81: =IF(ISBLANK(Budgets!C27),0,IF(AND(ISNUMBER(Budgets!C27), Budgets!C27>=0), 1- Budgets!C27, 0)) -> 0 | X81: 0
A82: Crop consulting | C82: =IF(ISBLANK(Budgets!C28),1,IF(AND(ISNUMBER(Budgets!C28), Budgets!C28>=0), Budgets!C28, $C$65)) -> 1 | F82: 11.648 | L82: 11.648 | M82: 11.648 | N82: 11.648 | P82: 11.648 | Q82: 0 | T82: =IF(ISBLANK(Budgets!C28),1,IF(AND(ISNUMBER(Budgets!C28), Budgets!C28>=0), Budgets!C28, 0)) -> 1 | U82: 11.648 | W82: =IF(ISBLANK(Budgets!C28),0,IF(AND(ISNUMBER(Budgets!C28), Budgets!C28>=0), 1- Budgets!C28, 0)) -> 0 | X82: 0
A83: Crop insurance | C83: =IF(ISBLANK(Budgets!C29),1,IF(AND(ISNUMBER(Budgets!C29), Budgets!C29>=0), Budgets!C29, $C$65)) -> 0.66 | F83: 23.35 | L83: =SUMPRODUCT($F$66:$J$66, F83:J83) -> 23.35 | M83: =L83 / $L$66 -> 23.35 | N83: =L83 / $L$67 -> 23.35 | P83: =C83 *N83 -> 15.411 | Q83: =N83-P83 -> 7.939 | T83: =IF(ISBLANK(Budgets!C29),1,IF(AND(ISNUMBER(Budgets!C29), Budgets!C29>=0), Budgets!C29, 0)) -> 0 | U83: =L83*T83 -> 0 | W83: =IF(ISBLANK(Budgets!C29),0,IF(AND(ISNUMBER(Budgets!C29), Budgets!C29>=0), 1- Budgets!C29, 0)) -> 0 | X83: =W83*L83 -> 0
A84: Miscellaneous | C84: =IF(ISBLANK(Budgets!C30),1,IF(AND(ISNUMBER(Budgets!C30), Budgets!C30>=0), Budgets!C30, $C$65)) -> 1 | F84: 70.1568 | L84: 70.1568 | M84: 70.1568 | N84: 70.1568 | P84: 70.1568 | Q84: 0 | T84: =IF(ISBLANK(Budgets!C30),1,IF(AND(ISNUMBER(Budgets!C30), Budgets!C30>=0), Budgets!C30, 0)) -> 1 | U84: 70.1568 | W84: =IF(ISBLANK(Budgets!C30),0,IF(AND(ISNUMBER(Budgets!C30), Budgets!C30>=0), 1- Budgets!C30, 0)) -> 0 | X84: 0
A85: Surfactant | C85: =IF(ISBLANK(Budgets!C31),1,IF(AND(ISNUMBER(Budgets!C31), Budgets!C31>=0), Budgets!C31, $C$65)) -> 1 | F85: 0 | L85: 0 | M85: 0 | N85: 0 | P85: 0 | Q85: 0 | T85: =IF(ISBLANK(Budgets!C31),1,IF(AND(ISNUMBER(Budgets!C31), Budgets!C31>=0), Budgets!C31, 0)) -> 1 | U85: 0 | W85: =IF(ISBLANK(Budgets!C31),0,IF(AND(ISNUMBER(Budgets!C31), Budgets!C31>=0), 1- Budgets!C31, 0)) -> 0 | X85: 0
A86: Other inputs | C86: =IF(ISBLANK(Budgets!C32),1,IF(AND(ISNUMBER(Budgets!C32), Budgets!C32>=0), Budgets!C32, $C$65)) -> 1 | F86: 2.12976 | L86: 2.12976 | M86: 2.12976 | N86: 2.12976 | P86: 2.12976 | Q86: 0 | T86: =IF(ISBLANK(Budgets!C32),1,IF(AND(ISNUMBER(Budgets!C32), Budgets!C32>=0), Budgets!C32, 0)) -> 1 | U86: 2.12976 | W86: =IF(ISBLANK(Budgets!C32),0,IF(AND(ISNUMBER(Budgets!C32), Budgets!C32>=0), 1- Budgets!C32, 0)) -> 0 | X86: 0
A87: MACHINERY
A88: --fertilizer application | C88: =IF(ISBLANK(Budgets!C34),1,IF(AND(ISNUMBER(Budgets!C34), Budgets!C34>=0), Budgets!C34, $C$65)) -> 1 | F88: =D23 -> 2.843429142 | G88: =G23 ->  | H88: =J23 ->  | I88: =M23 ->  | J88: =P23 ->  | L88: =SUMPRODUCT($F$66:$J$66, F88:J88) -> 2.843429142 | M88: =L88 / $L$66 -> 2.843429142 | N88: =L88 / $L$67 -> 2.843429142 | P88: =C88 *N88 -> 2.843429142 | Q88: =N88-P88 -> 0 | T88: =IF(ISBLANK(Budgets!C34),1,IF(AND(ISNUMBER(Budgets!C34), Budgets!C34>=0), Budgets!C34, 0)) -> 1 | U88: 2.843429142 | W88: =IF(ISBLANK(Budgets!C34),0,IF(AND(ISNUMBER(Budgets!C34), Budgets!C34>=0), 1- Budgets!C34, 0)) -> 0 | X88: 0
A89: --harvesting | C89: =IF(ISBLANK(Budgets!C35),1,IF(AND(ISNUMBER(Budgets!C35), Budgets!C35>=0), Budgets!C35, $C$65)) -> 1 | F89: 49.46268719 | L89: 49.46268719 | M89: 49.46268719 | N89: 49.46268719 | P89: 49.46268719 | Q89: 0 | T89: =IF(ISBLANK(Budgets!C35),1,IF(AND(ISNUMBER(Budgets!C35), Budgets!C35>=0), Budgets!C35, 0)) -> 1 | U89: 49.46268719 | W89: =IF(ISBLANK(Budgets!C35),0,IF(AND(ISNUMBER(Budgets!C35), Budgets!C35>=0), 1- Budgets!C35, 0)) -> 0 | X89: 0
A90: --hauling | C90: =IF(ISBLANK(Budgets!C36),1,IF(AND(ISNUMBER(Budgets!C36), Budgets!C36>=0), Budgets!C36, $C$65)) -> 1 | F90: 0 | L90: 0 | M90: 0 | N90: 0 | P90: 0 | Q90: 0 | T90: =IF(ISBLANK(Budgets!C36),1,IF(AND(ISNUMBER(Budgets!C36), Budgets!C36>=0), Budgets!C36, 0)) -> 1 | U90: 0 | W90: =IF(ISBLANK(Budgets!C36),0,IF(AND(ISNUMBER(Budgets!C36), Budgets!C36>=0), 1- Budgets!C36, 0)) -> 0 | X90: 0
A91: --miscellaneous | C91: =IF(ISBLANK(Budgets!C37),1,IF(AND(ISNUMBER(Budgets!C37), Budgets!C37>=0), Budgets!C37, $C$65)) -> 1 | F91: 0 | L91: 0 | M91: 0 | N91: 0 | P91: 0 | Q91: 0 | T91: =IF(ISBLANK(Budgets!C37),1,IF(AND(ISNUMBER(Budgets!C37), Budgets!C37>=0), Budgets!C37, 0)) -> 1 | U91: 0 | W91: =IF(ISBLANK(Budgets!C37),0,IF(AND(ISNUMBER(Budgets!C37), Budgets!C37>=0), 1- Budgets!C37, 0)) -> 0 | X91: 0
A92: --planting | C92: =IF(ISBLANK(Budgets!C38),1,IF(AND(ISNUMBER(Budgets!C38), Budgets!C38>=0), Budgets!C38, $C$65)) -> 1 | F92: 5.925371323 | L92: 5.925371323 | M92: 5.925371323 | N92: 5.925371323 | P92: 5.925371323 | Q92: 0 | T92: =IF(ISBLANK(Budgets!C38),1,IF(AND(ISNUMBER(Budgets!C38), Budgets!C38>=0), Budgets!C38, 0)) -> 1 | U92: 5.925371323 | W92: =IF(ISBLANK(Budgets!C38),0,IF(AND(ISNUMBER(Budgets!C38), Budgets!C38>=0), 1- Budgets!C38, 0)) -> 0 | X92: 0
A93: --spraying | C93: =IF(ISBLANK(Budgets!C39),1,IF(AND(ISNUMBER(Budgets!C39), Budgets!C39>=0), Budgets!C39, $C$65)) -> 1 | F93: 10.36240744 | L93: 10.36240744 | M93: 10.36240744 | N93: 10.36240744 | P93: 10.36240744 | Q93: 0 | T93: =IF(ISBLANK(Budgets!C39),1,IF(AND(ISNUMBER(Budgets!C39), Budgets!C39>=0), Budgets!C39, 0)) -> 1 | U93: 10.36240744 | W93: =IF(ISBLANK(Budgets!C39),0,IF(AND(ISNUMBER(Budgets!C39), Budgets!C39>=0), 1- Budgets!C39, 0)) -> 0 | X93: 0
A94: --tillage | C94: =IF(ISBLANK(Budgets!C40),1,IF(AND(ISNUMBER(Budgets!C40), Budgets!C40>=0), Budgets!C40, $C$65)) -> 1 | F94: 3.989920715 | L94: 3.989920715 | M94: 3.989920715 | N94: 3.989920715 | P94: 3.989920715 | Q94: 0 | T94: =IF(ISBLANK(Budgets!C40),1,IF(AND(ISNUMBER(Budgets!C40), Budgets!C40>=0), Budgets!C40, 0)) -> 1 | U94: 3.989920715 | W94: =IF(ISBLANK(Budgets!C40),0,IF(AND(ISNUMBER(Budgets!C40), Budgets!C40>=0), 1- Budgets!C40, 0)) -> 0 | X94: 0
A95: --other | C95: =IF(ISBLANK(Budgets!C41),1,IF(AND(ISNUMBER(Budgets!C41), Budgets!C41>=0), Budgets!C41, $C$65)) -> 1 | F95: 0 | L95: 0 | M95: 0 | N95: 0 | P95: 0 | Q95: 0 | T95: =IF(ISBLANK(Budgets!C41),1,IF(AND(ISNUMBER(Budgets!C41), Budgets!C41>=0), Budgets!C41, 0)) -> 1 | U95: 0 | W95: =IF(ISBLANK(Budgets!C41),0,IF(AND(ISNUMBER(Budgets!C41), Budgets!C41>=0), 1- Budgets!C41, 0)) -> 0 | X95: 0
A96: --custom operations | C96: =IF(ISBLANK(Budgets!C42),1,IF(AND(ISNUMBER(Budgets!C42), Budgets!C42>=0), Budgets!C42, $C$65)) -> 1 | F96: 164.2102244 | L96: =SUMPRODUCT($F$66:$J$66, F96:J96) -> 164.2102244 | M96: =L96 / $L$66 -> 164.2102244 | N96: =L96 / $L$67 -> 164.2102244 | P96: =C96 *N96 -> 164.2102244 | Q96: =N96-P96 -> 0 | T96: =IF(ISBLANK(Budgets!C42),1,IF(AND(ISNUMBER(Budgets!C42), Budgets!C42>=0), Budgets!C42, 0)) -> 1 | U96: =L96*T96 -> 164.2102244 | W96: =IF(ISBLANK(Budgets!C42),0,IF(AND(ISNUMBER(Budgets!C42), Budgets!C42>=0), 1- Budgets!C42, 0)) -> 0 | X96: =W96*L96 -> 0
A97: Irrigation | C97: =IF(ISBLANK(Budgets!C43),1,IF(AND(ISNUMBER(Budgets!C43), Budgets!C43>=0), Budgets!C43, $C$65)) -> 1 | F97: 0 | L97: 0 | M97: 0 | N97: 0 | P97: 0 | Q97: 0 | T97: =IF(ISBLANK(Budgets!C43),1,IF(AND(ISNUMBER(Budgets!C43), Budgets!C43>=0), Budgets!C43, 0)) -> 1 | U97: 0 | W97: =IF(ISBLANK(Budgets!C43),0,IF(AND(ISNUMBER(Budgets!C43), Budgets!C43>=0), 1- Budgets!C43, 0)) -> 0 | X97: 0
A98: Interest on direct expenses | C98: =IF(ISBLANK(Budgets!C44),1,IF(AND(ISNUMBER(Budgets!C44), Budgets!C44>=0), Budgets!C44, $C$65)) -> 0.66 | F98: 23.51315701 | G98: 0 | H98: 0 | I98: 0 | J98: 0 | L98: 23.51315701 | M98: =SUM(M76:M97) * $B$2/2 -> 23.51315701 | N98: =SUM(N76:N97) * $B$2/2 -> 23.51315701 | O98: =SUM(O76:O97) * $B$2/2 -> 0 | P98: =IF(OR(ISBLANK(Budgets!C44), AND(Budgets!C44 >=0, Budgets!C44 <= 1)), C98*(N98+O98), SUM(P76:P97) * B2/2) -> 22.09127701 | Q98: =N98+O98-P98 -> 1.42188
B99: <Total Direct Expenses> | L99: =SUM(L76:L98) -> 611.3420822 | M99: =SUM(M76:M98) -> 611.3420822 | N99: =SUM(N76:N98) -> 611.3420822 | O99: =SUM(O76:O98) -> 0 | P99: =SUM(P76:P98) -> 574.3732022 | Q99: =N99-P99+O99 -> 36.96888 | R99: fixed
A102: Fixed Expenses
A103: --fertilizer application | C103: =IF(ISBLANK(Budgets!C49),1,IF(AND(ISNUMBER(Budgets!C49), Budgets!C49>=0), Budgets!C49, $C$65)) -> 1 | F103: =D38 -> 3.678775225 | G103: =G38 ->  | H103: =J38 ->  | I103: =M38 ->  | J103: =P38 ->  | L103: =SUMPRODUCT($F$66:$J$66, F103:J103) -> 3.678775225 | M103: =L103 / $L$66 -> 3.678775225 | N103: =L103 / $L$67 -> 3.678775225 | P103: =C103 *(N103 + O103) -> 3.678775225 | Q103: =N103-P103+O103 -> 0 | T103: =IF(ISBLANK(Budgets!C49),1,IF(AND(ISNUMBER(Budgets!C49), Budgets!C49>=0), Budgets!C49, 0)) -> 1 | U103: =L103*T103 -> 3.678775225 | W103: =IF(ISBLANK(Budgets!C49),0,IF(AND(ISNUMBER(Budgets!C49), Budgets!C49>=0), 1- Budgets!C49, 0)) -> 0 | X103: =W103*L103 -> 0
A104: --harvesting | C104: =IF(ISBLANK(Budgets!C50),1,IF(AND(ISNUMBER(Budgets!C50), Budgets!C50>=0), Budgets!C50, $C$65)) -> 1 | F104: =D39 -> 117.7057563 | G104: =G39 ->  | H104: =J39 ->  | I104: =M39 ->  | J104: =P39 ->  | L104: =SUMPRODUCT($F$66:$J$66, F104:J104) -> 117.7057563 | M104: =L104 / $L$66 -> 117.7057563 | N104: =L104 / $L$67 -> 117.7057563 | P104: =C104 *(N104 + O104) -> 117.7057563 | Q104: =N104-P104+O104 -> 0 | T104: =IF(ISBLANK(Budgets!C50),1,IF(AND(ISNUMBER(Budgets!C50), Budgets!C50>=0), Budgets!C50, 0)) -> 1 | U104: =L104*T104 -> 117.7057563 | W104: =IF(ISBLANK(Budgets!C50),0,IF(AND(ISNUMBER(Budgets!C50), Budgets!C50>=0), 1- Budgets!C50, 0)) -> 0 | X104: =W104*L104 -> 0
A105: --hauling | C105: =IF(ISBLANK(Budgets!C51),1,IF(AND(ISNUMBER(Budgets!C51), Budgets!C51>=0), Budgets!C51, $C$65)) -> 1 | F105: 0 | L105: 0 | M105: 0 | N105: 0 | P105: 0 | Q105: 0 | T105: =IF(ISBLANK(Budgets!C51),1,IF(AND(ISNUMBER(Budgets!C51), Budgets!C51>=0), Budgets!C51, 0)) -> 1 | U105: 0 | W105: =IF(ISBLANK(Budgets!C51),0,IF(AND(ISNUMBER(Budgets!C51), Budgets!C51>=0), 1- Budgets!C51, 0)) -> 0 | X105: 0
A106: --miscellaneous | C106: =IF(ISBLANK(Budgets!C52),1,IF(AND(ISNUMBER(Budgets!C52), Budgets!C52>=0), Budgets!C52, $C$65)) -> 1 | F106: 0 | L106: 0 | M106: 0 | N106: 0 | P106: 0 | Q106: 0 | T106: =IF(ISBLANK(Budgets!C52),1,IF(AND(ISNUMBER(Budgets!C52), Budgets!C52>=0), Budgets!C52, 0)) -> 1 | U106: 0 | W106: =IF(ISBLANK(Budgets!C52),0,IF(AND(ISNUMBER(Budgets!C52), Budgets!C52>=0), 1- Budgets!C52, 0)) -> 0 | X106: 0
A107: --planting | C107: =IF(ISBLANK(Budgets!C53),1,IF(AND(ISNUMBER(Budgets!C53), Budgets!C53>=0), Budgets!C53, $C$65)) -> 1 | F107: 6.937870621 | L107: 6.937870621 | M107: 6.937870621 | N107: 6.937870621 | P107: 6.937870621 | Q107: 0 | T107: =IF(ISBLANK(Budgets!C53),1,IF(AND(ISNUMBER(Budgets!C53), Budgets!C53>=0), Budgets!C53, 0)) -> 1 | U107: 6.937870621 | W107: =IF(ISBLANK(Budgets!C53),0,IF(AND(ISNUMBER(Budgets!C53), Budgets!C53>=0), 1- Budgets!C53, 0)) -> 0 | X107: 0
A108: --spraying | C108: =IF(ISBLANK(Budgets!C54),1,IF(AND(ISNUMBER(Budgets!C54), Budgets!C54>=0), Budgets!C54, $C$65)) -> 1 | F108: 12.8665601 | L108: 12.8665601 | M108: 12.8665601 | N108: 12.8665601 | P108: 12.8665601 | Q108: 0 | T108: =IF(ISBLANK(Budgets!C54),1,IF(AND(ISNUMBER(Budgets!C54), Budgets!C54>=0), Budgets!C54, 0)) -> 1 | U108: 12.8665601 | W108: =IF(ISBLANK(Budgets!C54),0,IF(AND(ISNUMBER(Budgets!C54), Budgets!C54>=0), 1- Budgets!C54, 0)) -> 0 | X108: 0
A109: --tillage | C109: =IF(ISBLANK(Budgets!C55),1,IF(AND(ISNUMBER(Budgets!C55), Budgets!C55>=0), Budgets!C55, $C$65)) -> 1 | F109: 6.383336906 | L109: 6.383336906 | M109: 6.383336906 | N109: 6.383336906 | P109: 6.383336906 | Q109: 0 | T109: =IF(ISBLANK(Budgets!C55),1,IF(AND(ISNUMBER(Budgets!C55), Budgets!C55>=0), Budgets!C55, 0)) -> 1 | U109: 6.383336906 | W109: =IF(ISBLANK(Budgets!C55),0,IF(AND(ISNUMBER(Budgets!C55), Budgets!C55>=0), 1- Budgets!C55, 0)) -> 0 | X109: 0
A110: --other | C110: =IF(ISBLANK(Budgets!C56),1,IF(AND(ISNUMBER(Budgets!C56), Budgets!C56>=0), Budgets!C56, $C$65)) -> 1 | F110: 0 | L110: 0 | M110: 0 | N110: 0 | P110: 0 | Q110: 0 | T110: =IF(ISBLANK(Budgets!C56),1,IF(AND(ISNUMBER(Budgets!C56), Budgets!C56>=0), Budgets!C56, 0)) -> 1 | U110: 0 | W110: =IF(ISBLANK(Budgets!C56),0,IF(AND(ISNUMBER(Budgets!C56), Budgets!C56>=0), 1- Budgets!C56, 0)) -> 0 | X110: 0
A111: Irrigation | C111: =IF(ISBLANK(Budgets!C57),1,IF(AND(ISNUMBER(Budgets!C57), Budgets!C57>=0), Budgets!C57, $C$65)) -> 0 | F111: 0 | L111: =SUMPRODUCT($F$66:$J$66, F111:J111) -> 0 | M111: =IF(B141, 0, L111 / $L$66) -> 0 | N111: =IF(B141, 0, L111 / $L$67) -> 0 | O111: =IF(B141, L111 / $L$67, 0) -> 0 | P111: =C111 *(N111 + O111) -> 0 | Q111: =N111-P111+O111 -> 0 | R111: fixed | T111: =IF(ISBLANK(Budgets!C57),1,IF(AND(ISNUMBER(Budgets!C57), Budgets!C57>=0), Budgets!C57, 0)) -> 0 | U111: 0 | W111: =IF(ISBLANK(Budgets!C57),0,IF(AND(ISNUMBER(Budgets!C57), Budgets!C57>=0), 1- Budgets!C57, 0)) -> 1 | X111: 0
A112: Cash rent ( $ / acre ) | F112: 69 | L112: =SUMPRODUCT($F$66:$J$66, F112:J112) + F62*G114 - F63*G114 -> 69 | M112: 69 | N112: 69 | O112: =L112/L67 -> 69 | Q112: =N112 -> 69 | X112: =L112 -> 69
B113: <Total Fixed Expenses> | L113: =SUM(L103:L112) -> 216.5722991 | M113: =SUM(M103:M112) -> 216.5722991 | N113: 216.5722991 | O113: 69 | P113: =SUM(P103:P111) -> 147.5722991 | Q113: =SUM(Q103:Q112) -> 69
F114: Ave cash rent | G114: =AVERAGE(F112:J112) -> 69 | M114: 0 | N114: 0 | Q114: =N114-P114 -> 0 | Z114: Total
B115: <Total Specified Expenses> | L115: =L99+L113 -> 827.9143813 | M115: =M99+M113 -> 827.9143813 | N115: 827.9143813 | O115: =O99+O113 -> 69 | P115: =P99+P113 -> 721.9455013 | Q115: =Q99+Q113 -> 105.96888 | T115: Sum (w/o interest) | U115: =SUM(U76:U112) -> 630.8512243 | X115: =SUM(X76:X112) -> 69 | Z115: =U115+X115 -> 699.8512243
M116: 0 | N116: 0 | Q116: =N116-P116 -> 0 | T116: interest | U116: =(U115-SUM(U103:U111)) * $B$2/2 -> 19.33115701 | X116: =SUM(X76:X98) * B2/2 -> 0 | Z116: =U116+X116 -> 19.33115701
M117: 0 | N117: 0 | Q117: =N117-P117 -> 0 | T117: Total sum | U117: =U115+U116 -> 650.1823813 | X117: =X115+X116 -> 69 | Z117: 719.1823813
B118: RETURN OVER DIRECT EXPENSES | L118: =L73 -L99 -> 340.9579178 | M118: =M73 -M99 -> 340.9579178 | N118: =N73 -N99 -> 340.9579178 | O118: =O73 -O99 -> 69 | P118: =P73-P99 -> 54.14479782 | Q118: =Q73-Q99 -> 286.81312
B119: RETURN OVER ALL EXPENSES | L119: =L73 - L115 -> 124.3856187 | M119: =M73 - M115 -> 124.3856187 | N119: =N73 - N115 -> 124.3856187 | O119: =N112-O115 -> 0 | P119: =P73-P115 -> -93.42750132 | Q119: =Q73-Q115 -> 217.81312
T120: Operator share | U120: =U117/Z117 -> 0.9040577164
O121: Cash rent return to landlord
O122: =O119 -> 0
B140: TRUE | C140: Landlkord pays for lime
B141: TRUE | C141: Landlord owns irrigation equipmnt

Sheet Data from budgets (hidden)
A1: =Budgets!E5 -> Cotton - South Central KS_
A2: =Budgets!E6 -> None
A3: =Budgets!E7 -> None
A4: =Budgets!E8 -> None
A5: =Budgets!E9 -> None
A7: Budget Number -> | B7: =IF(B8=1, HLOOKUP($A1,'Name of budgets'!$D$1:$BU$6, 6, FALSE), "") -> 18 | C7: =IF(C8=1, HLOOKUP($A2,'Name of budgets'!$D$1:$BU$6, 6, FALSE), "") ->  | D7: =IF(D8=1, HLOOKUP($A3,'Name of budgets'!$D$1:$BU$6, 6, FALSE), "") ->  | E7: =IF(E8=1, HLOOKUP($A4,'Name of budgets'!$D$1:$BU$6, 6, FALSE), "") ->  | F7: =IF(F8=1, HLOOKUP($A5,'Name of budgets'!$D$1:$BU$6, 6, FALSE), "") -> 
B8: =IF(AND(B9=TRUE, A1<>"None"), 1, 0) -> 1 | C8: =IF(AND(C9=TRUE, A2<>"None"), 1, 0) -> 0 | D8: =IF(AND(D9=TRUE, A3<>"None"), 1, 0) -> 0 | E8: =IF(AND(E9=TRUE, A4<>"None"), 1, 0) -> 0 | F8: =IF(AND(F9=TRUE, A5<>"None"), 1, 0) -> 0
B9: TRUE | C9: TRUE | D9: TRUE | E9: TRUE | F9: TRUE
A10: 1 | B10: =IF(OR($A$1="None", $B$9=FALSE), "", VLOOKUP(Table1[[#This Row],[Column1]],'Name of budgets'!$A$7:$BU$50, B$7+3)) -> Cotton - South Central KS_ | C10: =IF(OR($A$2="None", $C$9=FALSE), "", VLOOKUP(Table1[[#This Row],[Column1]],'Name of budgets'!$A$7:$BU$50, C$7+3)) ->  | D10: =IF(OR($A$3="None", $D$9=FALSE), "", VLOOKUP(Table1[[#This Row],[Column1]],'Name of budgets'!$A$7:$BU$50, D$7+3)) ->  | E10: =IF(OR($A$4="None", $E$9=FALSE), "", VLOOKUP(Table1[[#This Row],[Column1]],'Name of budgets'!$A$7:$BU$50, E$7+3)) ->  | F10: =IF(OR($A$5="None", $F$9=FALSE), "", VLOOKUP(Table1[[#This Row],[Column1]],'Name of budgets'!$A$7:$BU$50, F$7+3)) ->  | I10: CROP
A11: 2 | B11: =IF(OR($A$1="None", $B$9=FALSE), "", VLOOKUP(Table1[[#This Row],[Column1]],'Name of budgets'!$A$7:$BU$50, B$7+3)) -> 950 | C11: =IF(OR($A$2="None", $C$9=FALSE), "", VLOOKUP(Table1[[#This Row],[Column1]],'Name of budgets'!$A$7:$BU$50, C$7+3)) ->  | D11: =IF(OR($A$3="None", $D$9=FALSE), "", VLOOKUP(Table1[[#This Row],[Column1]],'Name of budgets'!$A$7:$BU$50, D$7+3)) ->  | E11: =IF(OR($A$4="None", $E$9=FALSE), "", VLOOKUP(Table1[[#This Row],[Column1]],'Name of budgets'!$A$7:$BU$50, E$7+3)) ->  | F11: =IF(OR($A$5="None", $F$9=FALSE), "", VLOOKUP(Table1[[#This Row],[Column1]],'Name of budgets'!$A$7:$BU$50, F$7+3)) ->  | I11: Yield
A12: 3 | B12: =IF(OR($A$1="None", $B$9=FALSE), "", VLOOKUP(Table1[[#This Row],[Column1]],'Name of budgets'!$A$7:$BU$50, B$7+3)) -> 0.8 | C12: =IF(OR($A$2="None", $C$9=FALSE), "", VLOOKUP(Table1[[#This Row],[Column1]],'Name of budgets'!$A$7:$BU$50, C$7+3)) ->  | D12: =IF(OR($A$3="None", $D$9=FALSE), "", VLOOKUP(Table1[[#This Row],[Column1]],'Name of budgets'!$A$7:$BU$50, D$7+3)) ->  | E12: =IF(OR($A$4="None", $E$9=FALSE), "", VLOOKUP(Table1[[#This Row],[Column1]],'Name of budgets'!$A$7:$BU$50, E$7+3)) ->  | F12: =IF(OR($A$5="None", $F$9=FALSE), "", VLOOKUP(Table1[[#This Row],[Column1]],'Name of budgets'!$A$7:$BU$50, F$7+3)) ->  | I12: Price
A13: 4 | B13: =IF(OR($A$1="None", $B$9=FALSE), "", VLOOKUP(Table1[[#This Row],[Column1]],'Name of budgets'!$A$7:$BU$50, B$7+3)) -> 192.3 | C13: =IF(OR($A$2="None", $C$9=FALSE), "", VLOOKUP(Table1[[#This Row],[Column1]],'Name of budgets'!$A$7:$BU$50, C$7+3)) ->  | D13: =IF(OR($A$3="None", $D$9=FALSE), "", VLOOKUP(Table1[[#This Row],[Column1]],'Name of budgets'!$A$7:$BU$50, D$7+3)) ->  | E13: =IF(OR($A$4="None", $E$9=FALSE), "", VLOOKUP(Table1[[#This Row],[Column1]],'Name of budgets'!$A$7:$BU$50, E$7+3)) ->  | F13: =IF(OR($A$5="None", $F$9=FALSE), "", VLOOKUP(Table1[[#This Row],[Column1]],'Name of budgets'!$A$7:$BU$50, F$7+3)) ->  | I13: Other income
A14: 5 | B14: =IF(OR($A$1="None", $B$9=FALSE), "", VLOOKUP(Table1[[#This Row],[Column1]],'Name of budgets'!$A$7:$BU$50, B$7+3)) -> 0 | C14: =IF(OR($A$2="None", $C$9=FALSE), "", VLOOKUP(Table1[[#This Row],[Column1]],'Name of budgets'!$A$7:$BU$50, C$7+3)) ->  | D14: =IF(OR($A$3="None", $D$9=FALSE), "", VLOOKUP(Table1[[#This Row],[Column1]],'Name of budgets'!$A$7:$BU$50, D$7+3)) ->  | E14: =IF(OR($A$4="None", $E$9=FALSE), "", VLOOKUP(Table1[[#This Row],[Column1]],'Name of budgets'!$A$7:$BU$50, E$7+3)) ->  | F14: =IF(OR($A$5="None", $F$9=FALSE), "", VLOOKUP(Table1[[#This Row],[Column1]],'Name of budgets'!$A$7:$BU$50, F$7+3)) ->  | J14: <Total Revenue>
A15: 6 | B15: =IF(OR($A$1="None", $B$9=FALSE), "", VLOOKUP(Table1[[#This Row],[Column1]],'Name of budgets'!$A$7:$BU$50, B$7+3)) -> 0 | C15: =IF(OR($A$2="None", $C$9=FALSE), "", VLOOKUP(Table1[[#This Row],[Column1]],'Name of budgets'!$A$7:$BU$50, C$7+3)) ->  | D15: =IF(OR($A$3="None", $D$9=FALSE), "", VLOOKUP(Table1[[#This Row],[Column1]],'Name of budgets'!$A$7:$BU$50, D$7+3)) ->  | E15: =IF(OR($A$4="None", $E$9=FALSE), "", VLOOKUP(Table1[[#This Row],[Column1]],'Name of budgets'!$A$7:$BU$50, E$7+3)) ->  | F15: =IF(OR($A$5="None", $F$9=FALSE), "", VLOOKUP(Table1[[#This Row],[Column1]],'Name of budgets'!$A$7:$BU$50, F$7+3)) -> 
A16: 7 | B16: =IF(OR($A$1="None", $B$9=FALSE), "", VLOOKUP(Table1[[#This Row],[Column1]],'Name of budgets'!$A$7:$BU$50, B$7+3)) -> 0 | C16: =IF(OR($A$2="None", $C$9=FALSE), "", VLOOKUP(Table1[[#This Row],[Column1]],'Name of budgets'!$A$7:$BU$50, C$7+3)) ->  | D16: =IF(OR($A$3="None", $D$9=FALSE), "", VLOOKUP(Table1[[#This Row],[Column1]],'Name of budgets'!$A$7:$BU$50, D$7+3)) ->  | E16: =IF(OR($A$4="None", $E$9=FALSE), "", VLOOKUP(Table1[[#This Row],[Column1]],'Name of budgets'!$A$7:$BU$50, E$7+3)) ->  | F16: =IF(OR($A$5="None", $F$9=FALSE), "", VLOOKUP(Table1[[#This Row],[Column1]],'Name of budgets'!$A$7:$BU$50, F$7+3)) ->  | I16: Direct Expenses
A17: 8 | B17: =IF(OR($A$1="None", $B$9=FALSE), "", VLOOKUP(Table1[[#This Row],[Column1]],'Name of budgets'!$A$7:$BU$50, B$7+3)) -> 86 | C17: =IF(OR($A$2="None", $C$9=FALSE), "", VLOOKUP(Table1[[#This Row],[Column1]],'Name of budgets'!$A$7:$BU$50, C$7+3)) ->  | D17: =IF(OR($A$3="None", $D$9=FALSE), "", VLOOKUP(Table1[[#This Row],[Column1]],'Name of budgets'!$A$7:$BU$50, D$7+3)) ->  | E17: =IF(OR($A$4="None", $E$9=FALSE), "", VLOOKUP(Table1[[#This Row],[Column1]],'Name of budgets'!$A$7:$BU$50, E$7+3)) ->  | F17: =IF(OR($A$5="None", $F$9=FALSE), "", VLOOKUP(Table1[[#This Row],[Column1]],'Name of budgets'!$A$7:$BU$50, F$7+3)) ->  | J17: Seeds
A18: 9 | B18: =IF(OR($A$1="None", $B$9=FALSE), "", VLOOKUP(Table1[[#This Row],[Column1]],'Name of budgets'!$A$7:$BU$50, B$7+3)) -> 81.2 | C18: =IF(OR($A$2="None", $C$9=FALSE), "", VLOOKUP(Table1[[#This Row],[Column1]],'Name of budgets'!$A$7:$BU$50, C$7+3)) ->  | D18: =IF(OR($A$3="None", $D$9=FALSE), "", VLOOKUP(Table1[[#This Row],[Column1]],'Name of budgets'!$A$7:$BU$50, D$7+3)) ->  | E18: =IF(OR($A$4="None", $E$9=FALSE), "", VLOOKUP(Table1[[#This Row],[Column1]],'Name of budgets'!$A$7:$BU$50, E$7+3)) ->  | F18: =IF(OR($A$5="None", $F$9=FALSE), "", VLOOKUP(Table1[[#This Row],[Column1]],'Name of budgets'!$A$7:$BU$50, F$7+3)) ->  | J18: Fertilizer (less lime)
A19: 10 | B19: =IF(OR($A$1="None", $B$9=FALSE), "", VLOOKUP(Table1[[#This Row],[Column1]],'Name of budgets'!$A$7:$BU$50, B$7+3)) -> 0 | C19: =IF(OR($A$2="None", $C$9=FALSE), "", VLOOKUP(Table1[[#This Row],[Column1]],'Name of budgets'!$A$7:$BU$50, C$7+3)) ->  | D19: =IF(OR($A$3="None", $D$9=FALSE), "", VLOOKUP(Table1[[#This Row],[Column1]],'Name of budgets'!$A$7:$BU$50, D$7+3)) ->  | E19: =IF(OR($A$4="None", $E$9=FALSE), "", VLOOKUP(Table1[[#This Row],[Column1]],'Name of budgets'!$A$7:$BU$50, E$7+3)) ->  | F19: =IF(OR($A$5="None", $F$9=FALSE), "", VLOOKUP(Table1[[#This Row],[Column1]],'Name of budgets'!$A$7:$BU$50, F$7+3)) ->  | J19: --Lime
A20: 11 | B20: =IF(OR($A$1="None", $B$9=FALSE), "", VLOOKUP(Table1[[#This Row],[Column1]],'Name of budgets'!$A$7:$BU$50, B$7+3)) -> 76.550325 | C20: =IF(OR($A$2="None", $C$9=FALSE), "", VLOOKUP(Table1[[#This Row],[Column1]],'Name of budgets'!$A$7:$BU$50, C$7+3)) ->  | D20: =IF(OR($A$3="None", $D$9=FALSE), "", VLOOKUP(Table1[[#This Row],[Column1]],'Name of budgets'!$A$7:$BU$50, D$7+3)) ->  | E20: =IF(OR($A$4="None", $E$9=FALSE), "", VLOOKUP(Table1[[#This Row],[Column1]],'Name of budgets'!$A$7:$BU$50, E$7+3)) ->  | F20: =IF(OR($A$5="None", $F$9=FALSE), "", VLOOKUP(Table1[[#This Row],[Column1]],'Name of budgets'!$A$7:$BU$50, F$7+3)) ->  | J20: Herbicides
A21: 12 | B21: =IF(OR($A$1="None", $B$9=FALSE), "", VLOOKUP(Table1[[#This Row],[Column1]],'Name of budgets'!$A$7:$BU$50, B$7+3)) -> 0 | C21: =IF(OR($A$2="None", $C$9=FALSE), "", VLOOKUP(Table1[[#This Row],[Column1]],'Name of budgets'!$A$7:$BU$50, C$7+3)) ->  | D21: =IF(OR($A$3="None", $D$9=FALSE), "", VLOOKUP(Table1[[#This Row],[Column1]],'Name of budgets'!$A$7:$BU$50, D$7+3)) ->  | E21: =IF(OR($A$4="None", $E$9=FALSE), "", VLOOKUP(Table1[[#This Row],[Column1]],'Name of budgets'!$A$7:$BU$50, E$7+3)) ->  | F21: =IF(OR($A$5="None", $F$9=FALSE), "", VLOOKUP(Table1[[#This Row],[Column1]],'Name of budgets'!$A$7:$BU$50, F$7+3)) ->  | J21: Fungicides
A22: 13 | B22: =IF(OR($A$1="None", $B$9=FALSE), "", VLOOKUP(Table1[[#This Row],[Column1]],'Name of budgets'!$A$7:$BU$50, B$7+3)) -> 0 | C22: =IF(OR($A$2="None", $C$9=FALSE), "", VLOOKUP(Table1[[#This Row],[Column1]],'Name of budgets'!$A$7:$BU$50, C$7+3)) ->  | D22: =IF(OR($A$3="None", $D$9=FALSE), "", VLOOKUP(Table1[[#This Row],[Column1]],'Name of budgets'!$A$7:$BU$50, D$7+3)) ->  | E22: =IF(OR($A$4="None", $E$9=FALSE), "", VLOOKUP(Table1[[#This Row],[Column1]],'Name of budgets'!$A$7:$BU$50, E$7+3)) ->  | F22: =IF(OR($A$5="None", $F$9=FALSE), "", VLOOKUP(Table1[[#This Row],[Column1]],'Name of budgets'!$A$7:$BU$50, F$7+3)) ->  | J22: Insecticides
A23: 14 | B23: =IF(OR($A$1="None", $B$9=FALSE), "", VLOOKUP(Table1[[#This Row],[Column1]],'Name of budgets'!$A$7:$BU$50, B$7+3)) -> 11.648 | C23: =IF(OR($A$2="None", $C$9=FALSE), "", VLOOKUP(Table1[[#This Row],[Column1]],'Name of budgets'!$A$7:$BU$50, C$7+3)) ->  | D23: =IF(OR($A$3="None", $D$9=FALSE), "", VLOOKUP(Table1[[#This Row],[Column1]],'Name of budgets'!$A$7:$BU$50, D$7+3)) ->  | E23: =IF(OR($A$4="None", $E$9=FALSE), "", VLOOKUP(Table1[[#This Row],[Column1]],'Name of budgets'!$A$7:$BU$50, E$7+3)) ->  | F23: =IF(OR($A$5="None", $F$9=FALSE), "", VLOOKUP(Table1[[#This Row],[Column1]],'Name of budgets'!$A$7:$BU$50, F$7+3)) ->  | J23: Crop consulting
A24: 15 | B24: =IF(OR($A$1="None", $B$9=FALSE), "", VLOOKUP(Table1[[#This Row],[Column1]],'Name of budgets'!$A$7:$BU$50, B$7+3)) -> 23.35 | C24: =IF(OR($A$2="None", $C$9=FALSE), "", VLOOKUP(Table1[[#This Row],[Column1]],'Name of budgets'!$A$7:$BU$50, C$7+3)) ->  | D24: =IF(OR($A$3="None", $D$9=FALSE), "", VLOOKUP(Table1[[#This Row],[Column1]],'Name of budgets'!$A$7:$BU$50, D$7+3)) ->  | E24: =IF(OR($A$4="None", $E$9=FALSE), "", VLOOKUP(Table1[[#This Row],[Column1]],'Name of budgets'!$A$7:$BU$50, E$7+3)) ->  | F24: =IF(OR($A$5="None", $F$9=FALSE), "", VLOOKUP(Table1[[#This Row],[Column1]],'Name of budgets'!$A$7:$BU$50, F$7+3)) ->  | J24: Crop insurance
A25: 16 | B25: =IF(OR($A$1="None", $B$9=FALSE), "", VLOOKUP(Table1[[#This Row],[Column1]],'Name of budgets'!$A$7:$BU$50, B$7+3)) -> 70.1568 | C25: =IF(OR($A$2="None", $C$9=FALSE), "", VLOOKUP(Table1[[#This Row],[Column1]],'Name of budgets'!$A$7:$BU$50, C$7+3)) ->  | D25: =IF(OR($A$3="None", $D$9=FALSE), "", VLOOKUP(Table1[[#This Row],[Column1]],'Name of budgets'!$A$7:$BU$50, D$7+3)) ->  | E25: =IF(OR($A$4="None", $E$9=FALSE), "", VLOOKUP(Table1[[#This Row],[Column1]],'Name of budgets'!$A$7:$BU$50, E$7+3)) ->  | F25: =IF(OR($A$5="None", $F$9=FALSE), "", VLOOKUP(Table1[[#This Row],[Column1]],'Name of budgets'!$A$7:$BU$50, F$7+3)) ->  | J25: Miscellaneous
A26: 17 | B26: =IF(OR($A$1="None", $B$9=FALSE), "", VLOOKUP(Table1[[#This Row],[Column1]],'Name of budgets'!$A$7:$BU$50, B$7+3)) -> 0 | C26: =IF(OR($A$2="None", $C$9=FALSE), "", VLOOKUP(Table1[[#This Row],[Column1]],'Name of budgets'!$A$7:$BU$50, C$7+3)) ->  | D26: =IF(OR($A$3="None", $D$9=FALSE), "", VLOOKUP(Table1[[#This Row],[Column1]],'Name of budgets'!$A$7:$BU$50, D$7+3)) ->  | E26: =IF(OR($A$4="None", $E$9=FALSE), "", VLOOKUP(Table1[[#This Row],[Column1]],'Name of budgets'!$A$7:$BU$50, E$7+3)) ->  | F26: =IF(OR($A$5="None", $F$9=FALSE), "", VLOOKUP(Table1[[#This Row],[Column1]],'Name of budgets'!$A$7:$BU$50, F$7+3)) ->  | J26: Surfactant
A27: 18 | B27: =IF(OR($A$1="None", $B$9=FALSE), "", VLOOKUP(Table1[[#This Row],[Column1]],'Name of budgets'!$A$7:$BU$50, B$7+3)) -> 2.12976 | C27: =IF(OR($A$2="None", $C$9=FALSE), "", VLOOKUP(Table1[[#This Row],[Column1]],'Name of budgets'!$A$7:$BU$50, C$7+3)) ->  | D27: =IF(OR($A$3="None", $D$9=FALSE), "", VLOOKUP(Table1[[#This Row],[Column1]],'Name of budgets'!$A$7:$BU$50, D$7+3)) ->  | E27: =IF(OR($A$4="None", $E$9=FALSE), "", VLOOKUP(Table1[[#This Row],[Column1]],'Name of budgets'!$A$7:$BU$50, E$7+3)) ->  | F27: =IF(OR($A$5="None", $F$9=FALSE), "", VLOOKUP(Table1[[#This Row],[Column1]],'Name of budgets'!$A$7:$BU$50, F$7+3)) ->  | J27: Other inputs
A28: 19 | B28: =IF(OR($A$1="None", $B$9=FALSE), "", VLOOKUP(Table1[[#This Row],[Column1]],'Name of budgets'!$A$7:$BU$50, B$7+3)) -> 0 | C28: =IF(OR($A$2="None", $C$9=FALSE), "", VLOOKUP(Table1[[#This Row],[Column1]],'Name of budgets'!$A$7:$BU$50, C$7+3)) ->  | D28: =IF(OR($A$3="None", $D$9=FALSE), "", VLOOKUP(Table1[[#This Row],[Column1]],'Name of budgets'!$A$7:$BU$50, D$7+3)) ->  | E28: =IF(OR($A$4="None", $E$9=FALSE), "", VLOOKUP(Table1[[#This Row],[Column1]],'Name of budgets'!$A$7:$BU$50, E$7+3)) ->  | F28: =IF(OR($A$5="None", $F$9=FALSE), "", VLOOKUP(Table1[[#This Row],[Column1]],'Name of budgets'!$A$7:$BU$50, F$7+3)) ->  | J28: MACHINERY
A29: 20 | B29: =IF(OR($A$1="None", $B$9=FALSE), "", VLOOKUP(Table1[[#This Row],[Column1]],'Name of budgets'!$A$7:$BU$50, B$7+3)) -> 2.843429142 | C29: =IF(OR($A$2="None", $C$9=FALSE), "", VLOOKUP(Table1[[#This Row],[Column1]],'Name of budgets'!$A$7:$BU$50, C$7+3)) ->  | D29: =IF(OR($A$3="None", $D$9=FALSE), "", VLOOKUP(Table1[[#This Row],[Column1]],'Name of budgets'!$A$7:$BU$50, D$7+3)) ->  | E29: =IF(OR($A$4="None", $E$9=FALSE), "", VLOOKUP(Table1[[#This Row],[Column1]],'Name of budgets'!$A$7:$BU$50, E$7+3)) ->  | F29: =IF(OR($A$5="None", $F$9=FALSE), "", VLOOKUP(Table1[[#This Row],[Column1]],'Name of budgets'!$A$7:$BU$50, F$7+3)) ->  | J29: --fertilizer application
A30: 21 | B30: =IF(OR($A$1="None", $B$9=FALSE), "", VLOOKUP(Table1[[#This Row],[Column1]],'Name of budgets'!$A$7:$BU$50, B$7+3)) -> 49.46268719 | C30: =IF(OR($A$2="None", $C$9=FALSE), "", VLOOKUP(Table1[[#This Row],[Column1]],'Name of budgets'!$A$7:$BU$50, C$7+3)) ->  | D30: =IF(OR($A$3="None", $D$9=FALSE), "", VLOOKUP(Table1[[#This Row],[Column1]],'Name of budgets'!$A$7:$BU$50, D$7+3)) ->  | E30: =IF(OR($A$4="None", $E$9=FALSE), "", VLOOKUP(Table1[[#This Row],[Column1]],'Name of budgets'!$A$7:$BU$50, E$7+3)) ->  | F30: =IF(OR($A$5="None", $F$9=FALSE), "", VLOOKUP(Table1[[#This Row],[Column1]],'Name of budgets'!$A$7:$BU$50, F$7+3)) ->  | J30: --harvesting
A31: 22 | B31: =IF(OR($A$1="None", $B$9=FALSE), "", VLOOKUP(Table1[[#This Row],[Column1]],'Name of budgets'!$A$7:$BU$50, B$7+3)) -> 0 | C31: =IF(OR($A$2="None", $C$9=FALSE), "", VLOOKUP(Table1[[#This Row],[Column1]],'Name of budgets'!$A$7:$BU$50, C$7+3)) ->  | D31: =IF(OR($A$3="None", $D$9=FALSE), "", VLOOKUP(Table1[[#This Row],[Column1]],'Name of budgets'!$A$7:$BU$50, D$7+3)) ->  | E31: =IF(OR($A$4="None", $E$9=FALSE), "", VLOOKUP(Table1[[#This Row],[Column1]],'Name of budgets'!$A$7:$BU$50, E$7+3)) ->  | F31: =IF(OR($A$5="None", $F$9=FALSE), "", VLOOKUP(Table1[[#This Row],[Column1]],'Name of budgets'!$A$7:$BU$50, F$7+3)) ->  | J31: --hauling
A32: 23 | B32: =IF(OR($A$1="None", $B$9=FALSE), "", VLOOKUP(Table1[[#This Row],[Column1]],'Name of budgets'!$A$7:$BU$50, B$7+3)) -> 0 | C32: =IF(OR($A$2="None", $C$9=FALSE), "", VLOOKUP(Table1[[#This Row],[Column1]],'Name of budgets'!$A$7:$BU$50, C$7+3)) ->  | D32: =IF(OR($A$3="None", $D$9=FALSE), "", VLOOKUP(Table1[[#This Row],[Column1]],'Name of budgets'!$A$7:$BU$50, D$7+3)) ->  | E32: =IF(OR($A$4="None", $E$9=FALSE), "", VLOOKUP(Table1[[#This Row],[Column1]],'Name of budgets'!$A$7:$BU$50, E$7+3)) ->  | F32: =IF(OR($A$5="None", $F$9=FALSE), "", VLOOKUP(Table1[[#This Row],[Column1]],'Name of budgets'!$A$7:$BU$50, F$7+3)) ->  | J32: --miscellaneous
A33: 24 | B33: =IF(OR($A$1="None", $B$9=FALSE), "", VLOOKUP(Table1[[#This Row],[Column1]],'Name of budgets'!$A$7:$BU$50, B$7+3)) -> 5.925371323 | C33: =IF(OR($A$2="None", $C$9=FALSE), "", VLOOKUP(Table1[[#This Row],[Column1]],'Name of budgets'!$A$7:$BU$50, C$7+3)) ->  | D33: =IF(OR($A$3="None", $D$9=FALSE), "", VLOOKUP(Table1[[#This Row],[Column1]],'Name of budgets'!$A$7:$BU$50, D$7+3)) ->  | E33: =IF(OR($A$4="None", $E$9=FALSE), "", VLOOKUP(Table1[[#This Row],[Column1]],'Name of budgets'!$A$7:$BU$50, E$7+3)) ->  | F33: =IF(OR($A$5="None", $F$9=FALSE), "", VLOOKUP(Table1[[#This Row],[Column1]],'Name of budgets'!$A$7:$BU$50, F$7+3)) ->  | J33: --planting
A34: 25 | B34: =IF(OR($A$1="None", $B$9=FALSE), "", VLOOKUP(Table1[[#This Row],[Column1]],'Name of budgets'!$A$7:$BU$50, B$7+3)) -> 10.36240744 | C34: =IF(OR($A$2="None", $C$9=FALSE), "", VLOOKUP(Table1[[#This Row],[Column1]],'Name of budgets'!$A$7:$BU$50, C$7+3)) ->  | D34: =IF(OR($A$3="None", $D$9=FALSE), "", VLOOKUP(Table1[[#This Row],[Column1]],'Name of budgets'!$A$7:$BU$50, D$7+3)) ->  | E34: =IF(OR($A$4="None", $E$9=FALSE), "", VLOOKUP(Table1[[#This Row],[Column1]],'Name of budgets'!$A$7:$BU$50, E$7+3)) ->  | F34: =IF(OR($A$5="None", $F$9=FALSE), "", VLOOKUP(Table1[[#This Row],[Column1]],'Name of budgets'!$A$7:$BU$50, F$7+3)) ->  | J34: --spraying
A35: 26 | B35: =IF(OR($A$1="None", $B$9=FALSE), "", VLOOKUP(Table1[[#This Row],[Column1]],'Name of budgets'!$A$7:$BU$50, B$7+3)) -> 3.989920715 | C35: =IF(OR($A$2="None", $C$9=FALSE), "", VLOOKUP(Table1[[#This Row],[Column1]],'Name of budgets'!$A$7:$BU$50, C$7+3)) ->  | D35: =IF(OR($A$3="None", $D$9=FALSE), "", VLOOKUP(Table1[[#This Row],[Column1]],'Name of budgets'!$A$7:$BU$50, D$7+3)) ->  | E35: =IF(OR($A$4="None", $E$9=FALSE), "", VLOOKUP(Table1[[#This Row],[Column1]],'Name of budgets'!$A$7:$BU$50, E$7+3)) ->  | F35: =IF(OR($A$5="None", $F$9=FALSE), "", VLOOKUP(Table1[[#This Row],[Column1]],'Name of budgets'!$A$7:$BU$50, F$7+3)) ->  | J35: --tillage
A36: 27 | B36: =IF(OR($A$1="None", $B$9=FALSE), "", VLOOKUP(Table1[[#This Row],[Column1]],'Name of budgets'!$A$7:$BU$50, B$7+3)) -> 0 | C36: =IF(OR($A$2="None", $C$9=FALSE), "", VLOOKUP(Table1[[#This Row],[Column1]],'Name of budgets'!$A$7:$BU$50, C$7+3)) ->  | D36: =IF(OR($A$3="None", $D$9=FALSE), "", VLOOKUP(Table1[[#This Row],[Column1]],'Name of budgets'!$A$7:$BU$50, D$7+3)) ->  | E36: =IF(OR($A$4="None", $E$9=FALSE), "", VLOOKUP(Table1[[#This Row],[Column1]],'Name of budgets'!$A$7:$BU$50, E$7+3)) ->  | F36: =IF(OR($A$5="None", $F$9=FALSE), "", VLOOKUP(Table1[[#This Row],[Column1]],'Name of budgets'!$A$7:$BU$50, F$7+3)) ->  | J36: --other
A37: 28 | B37: =IF(OR($A$1="None", $B$9=FALSE), "", VLOOKUP(Table1[[#This Row],[Column1]],'Name of budgets'!$A$7:$BU$50, B$7+3)) -> 164.2102244 | C37: =IF(OR($A$2="None", $C$9=FALSE), "", VLOOKUP(Table1[[#This Row],[Column1]],'Name of budgets'!$A$7:$BU$50, C$7+3)) ->  | D37: =IF(OR($A$3="None", $D$9=FALSE), "", VLOOKUP(Table1[[#This Row],[Column1]],'Name of budgets'!$A$7:$BU$50, D$7+3)) ->  | E37: =IF(OR($A$4="None", $E$9=FALSE), "", VLOOKUP(Table1[[#This Row],[Column1]],'Name of budgets'!$A$7:$BU$50, E$7+3)) ->  | F37: =IF(OR($A$5="None", $F$9=FALSE), "", VLOOKUP(Table1[[#This Row],[Column1]],'Name of budgets'!$A$7:$BU$50, F$7+3)) ->  | J37: --custom operations
A38: 29 | B38: =IF(OR($A$1="None", $B$9=FALSE), "", VLOOKUP(Table1[[#This Row],[Column1]],'Name of budgets'!$A$7:$BU$50, B$7+3)) -> 0 | C38: =IF(OR($A$2="None", $C$9=FALSE), "", VLOOKUP(Table1[[#This Row],[Column1]],'Name of budgets'!$A$7:$BU$50, C$7+3)) ->  | D38: =IF(OR($A$3="None", $D$9=FALSE), "", VLOOKUP(Table1[[#This Row],[Column1]],'Name of budgets'!$A$7:$BU$50, D$7+3)) ->  | E38: =IF(OR($A$4="None", $E$9=FALSE), "", VLOOKUP(Table1[[#This Row],[Column1]],'Name of budgets'!$A$7:$BU$50, E$7+3)) ->  | F38: =IF(OR($A$5="None", $F$9=FALSE), "", VLOOKUP(Table1[[#This Row],[Column1]],'Name of budgets'!$A$7:$BU$50, F$7+3)) ->  | J38: Irrigation
A39: 30 | B39: =IF(OR($A$1="None", $B$9=FALSE), "", VLOOKUP(Table1[[#This Row],[Column1]],'Name of budgets'!$A$7:$BU$50, B$7+3)) -> 0 | C39: =IF(OR($A$2="None", $C$9=FALSE), "", VLOOKUP(Table1[[#This Row],[Column1]],'Name of budgets'!$A$7:$BU$50, C$7+3)) ->  | D39: =IF(OR($A$3="None", $D$9=FALSE), "", VLOOKUP(Table1[[#This Row],[Column1]],'Name of budgets'!$A$7:$BU$50, D$7+3)) ->  | E39: =IF(OR($A$4="None", $E$9=FALSE), "", VLOOKUP(Table1[[#This Row],[Column1]],'Name of budgets'!$A$7:$BU$50, E$7+3)) ->  | F39: =IF(OR($A$5="None", $F$9=FALSE), "", VLOOKUP(Table1[[#This Row],[Column1]],'Name of budgets'!$A$7:$BU$50, F$7+3)) ->  | J39: Interest on direct expenses
A40: 31 | B40: =IF(OR($A$1="None", $B$9=FALSE), "", VLOOKUP(Table1[[#This Row],[Column1]],'Name of budgets'!$A$7:$BU$50, B$7+3)) -> 0 | C40: =IF(OR($A$2="None", $C$9=FALSE), "", VLOOKUP(Table1[[#This Row],[Column1]],'Name of budgets'!$A$7:$BU$50, C$7+3)) ->  | D40: =IF(OR($A$3="None", $D$9=FALSE), "", VLOOKUP(Table1[[#This Row],[Column1]],'Name of budgets'!$A$7:$BU$50, D$7+3)) ->  | E40: =IF(OR($A$4="None", $E$9=FALSE), "", VLOOKUP(Table1[[#This Row],[Column1]],'Name of budgets'!$A$7:$BU$50, E$7+3)) ->  | F40: =IF(OR($A$5="None", $F$9=FALSE), "", VLOOKUP(Table1[[#This Row],[Column1]],'Name of budgets'!$A$7:$BU$50, F$7+3)) ->  | J40: <Total Direct Expenses>
A41: 32 | B41: =IF(OR($A$1="None", $B$9=FALSE), "", VLOOKUP(Table1[[#This Row],[Column1]],'Name of budgets'!$A$7:$BU$50, B$7+3)) -> 0 | C41: =IF(OR($A$2="None", $C$9=FALSE), "", VLOOKUP(Table1[[#This Row],[Column1]],'Name of budgets'!$A$7:$BU$50, C$7+3)) ->  | D41: =IF(OR($A$3="None", $D$9=FALSE), "", VLOOKUP(Table1[[#This Row],[Column1]],'Name of budgets'!$A$7:$BU$50, D$7+3)) ->  | E41: =IF(OR($A$4="None", $E$9=FALSE), "", VLOOKUP(Table1[[#This Row],[Column1]],'Name of budgets'!$A$7:$BU$50, E$7+3)) ->  | F41: =IF(OR($A$5="None", $F$9=FALSE), "", VLOOKUP(Table1[[#This Row],[Column1]],'Name of budgets'!$A$7:$BU$50, F$7+3)) -> 
A42: 33 | B42: =IF(OR($A$1="None", $B$9=FALSE), "", VLOOKUP(Table1[[#This Row],[Column1]],'Name of budgets'!$A$7:$BU$50, B$7+3)) -> 0 | C42: =IF(OR($A$2="None", $C$9=FALSE), "", VLOOKUP(Table1[[#This Row],[Column1]],'Name of budgets'!$A$7:$BU$50, C$7+3)) ->  | D42: =IF(OR($A$3="None", $D$9=FALSE), "", VLOOKUP(Table1[[#This Row],[Column1]],'Name of budgets'!$A$7:$BU$50, D$7+3)) ->  | E42: =IF(OR($A$4="None", $E$9=FALSE), "", VLOOKUP(Table1[[#This Row],[Column1]],'Name of budgets'!$A$7:$BU$50, E$7+3)) ->  | F42: =IF(OR($A$5="None", $F$9=FALSE), "", VLOOKUP(Table1[[#This Row],[Column1]],'Name of budgets'!$A$7:$BU$50, F$7+3)) ->  | I42: Fixed expenses
A43: 34 | B43: =IF(OR($A$1="None", $B$9=FALSE), "", VLOOKUP(Table1[[#This Row],[Column1]],'Name of budgets'!$A$7:$BU$50, B$7+3)) -> 0 | C43: =IF(OR($A$2="None", $C$9=FALSE), "", VLOOKUP(Table1[[#This Row],[Column1]],'Name of budgets'!$A$7:$BU$50, C$7+3)) ->  | D43: =IF(OR($A$3="None", $D$9=FALSE), "", VLOOKUP(Table1[[#This Row],[Column1]],'Name of budgets'!$A$7:$BU$50, D$7+3)) ->  | E43: =IF(OR($A$4="None", $E$9=FALSE), "", VLOOKUP(Table1[[#This Row],[Column1]],'Name of budgets'!$A$7:$BU$50, E$7+3)) ->  | F43: =IF(OR($A$5="None", $F$9=FALSE), "", VLOOKUP(Table1[[#This Row],[Column1]],'Name of budgets'!$A$7:$BU$50, F$7+3)) ->  | J43: MACHINERY
A44: 35 | B44: =IF(OR($A$1="None", $B$9=FALSE), "", VLOOKUP(Table1[[#This Row],[Column1]],'Name of budgets'!$A$7:$BU$50, B$7+3)) -> 3.678775225 | C44: =IF(OR($A$2="None", $C$9=FALSE), "", VLOOKUP(Table1[[#This Row],[Column1]],'Name of budgets'!$A$7:$BU$50, C$7+3)) ->  | D44: =IF(OR($A$3="None", $D$9=FALSE), "", VLOOKUP(Table1[[#This Row],[Column1]],'Name of budgets'!$A$7:$BU$50, D$7+3)) ->  | E44: =IF(OR($A$4="None", $E$9=FALSE), "", VLOOKUP(Table1[[#This Row],[Column1]],'Name of budgets'!$A$7:$BU$50, E$7+3)) ->  | F44: =IF(OR($A$5="None", $F$9=FALSE), "", VLOOKUP(Table1[[#This Row],[Column1]],'Name of budgets'!$A$7:$BU$50, F$7+3)) ->  | J44: --fertilizer application
A45: 36 | B45: =IF(OR($A$1="None", $B$9=FALSE), "", VLOOKUP(Table1[[#This Row],[Column1]],'Name of budgets'!$A$7:$BU$50, B$7+3)) -> 117.7057563 | C45: =IF(OR($A$2="None", $C$9=FALSE), "", VLOOKUP(Table1[[#This Row],[Column1]],'Name of budgets'!$A$7:$BU$50, C$7+3)) ->  | D45: =IF(OR($A$3="None", $D$9=FALSE), "", VLOOKUP(Table1[[#This Row],[Column1]],'Name of budgets'!$A$7:$BU$50, D$7+3)) ->  | E45: =IF(OR($A$4="None", $E$9=FALSE), "", VLOOKUP(Table1[[#This Row],[Column1]],'Name of budgets'!$A$7:$BU$50, E$7+3)) ->  | F45: =IF(OR($A$5="None", $F$9=FALSE), "", VLOOKUP(Table1[[#This Row],[Column1]],'Name of budgets'!$A$7:$BU$50, F$7+3)) ->  | J45: --harvesting
A46: 37 | B46: =IF(OR($A$1="None", $B$9=FALSE), "", VLOOKUP(Table1[[#This Row],[Column1]],'Name of budgets'!$A$7:$BU$50, B$7+3)) -> 0 | C46: =IF(OR($A$2="None", $C$9=FALSE), "", VLOOKUP(Table1[[#This Row],[Column1]],'Name of budgets'!$A$7:$BU$50, C$7+3)) ->  | D46: =IF(OR($A$3="None", $D$9=FALSE), "", VLOOKUP(Table1[[#This Row],[Column1]],'Name of budgets'!$A$7:$BU$50, D$7+3)) ->  | E46: =IF(OR($A$4="None", $E$9=FALSE), "", VLOOKUP(Table1[[#This Row],[Column1]],'Name of budgets'!$A$7:$BU$50, E$7+3)) ->  | F46: =IF(OR($A$5="None", $F$9=FALSE), "", VLOOKUP(Table1[[#This Row],[Column1]],'Name of budgets'!$A$7:$BU$50, F$7+3)) ->  | J46: --hauling
A47: 38 | B47: =IF(OR($A$1="None", $B$9=FALSE), "", VLOOKUP(Table1[[#This Row],[Column1]],'Name of budgets'!$A$7:$BU$50, B$7+3)) -> 0 | C47: =IF(OR($A$2="None", $C$9=FALSE), "", VLOOKUP(Table1[[#This Row],[Column1]],'Name of budgets'!$A$7:$BU$50, C$7+3)) ->  | D47: =IF(OR($A$3="None", $D$9=FALSE), "", VLOOKUP(Table1[[#This Row],[Column1]],'Name of budgets'!$A$7:$BU$50, D$7+3)) ->  | E47: =IF(OR($A$4="None", $E$9=FALSE), "", VLOOKUP(Table1[[#This Row],[Column1]],'Name of budgets'!$A$7:$BU$50, E$7+3)) ->  | F47: =IF(OR($A$5="None", $F$9=FALSE), "", VLOOKUP(Table1[[#This Row],[Column1]],'Name of budgets'!$A$7:$BU$50, F$7+3)) ->  | J47: --miscellaneous
A48: 39 | B48: =IF(OR($A$1="None", $B$9=FALSE), "", VLOOKUP(Table1[[#This Row],[Column1]],'Name of budgets'!$A$7:$BU$50, B$7+3)) -> 6.937870621 | C48: =IF(OR($A$2="None", $C$9=FALSE), "", VLOOKUP(Table1[[#This Row],[Column1]],'Name of budgets'!$A$7:$BU$50, C$7+3)) ->  | D48: =IF(OR($A$3="None", $D$9=FALSE), "", VLOOKUP(Table1[[#This Row],[Column1]],'Name of budgets'!$A$7:$BU$50, D$7+3)) ->  | E48: =IF(OR($A$4="None", $E$9=FALSE), "", VLOOKUP(Table1[[#This Row],[Column1]],'Name of budgets'!$A$7:$BU$50, E$7+3)) ->  | F48: =IF(OR($A$5="None", $F$9=FALSE), "", VLOOKUP(Table1[[#This Row],[Column1]],'Name of budgets'!$A$7:$BU$50, F$7+3)) ->  | J48: --planting
A49: 40 | B49: =IF(OR($A$1="None", $B$9=FALSE), "", VLOOKUP(Table1[[#This Row],[Column1]],'Name of budgets'!$A$7:$BU$50, B$7+3)) -> 12.8665601 | C49: =IF(OR($A$2="None", $C$9=FALSE), "", VLOOKUP(Table1[[#This Row],[Column1]],'Name of budgets'!$A$7:$BU$50, C$7+3)) ->  | D49: =IF(OR($A$3="None", $D$9=FALSE), "", VLOOKUP(Table1[[#This Row],[Column1]],'Name of budgets'!$A$7:$BU$50, D$7+3)) ->  | E49: =IF(OR($A$4="None", $E$9=FALSE), "", VLOOKUP(Table1[[#This Row],[Column1]],'Name of budgets'!$A$7:$BU$50, E$7+3)) ->  | F49: =IF(OR($A$5="None", $F$9=FALSE), "", VLOOKUP(Table1[[#This Row],[Column1]],'Name of budgets'!$A$7:$BU$50, F$7+3)) ->  | J49: --spraying
A50: 41 | B50: =IF(OR($A$1="None", $B$9=FALSE), "", VLOOKUP(Table1[[#This Row],[Column1]],'Name of budgets'!$A$7:$BU$50, B$7+3)) -> 6.383336906 | C50: =IF(OR($A$2="None", $C$9=FALSE), "", VLOOKUP(Table1[[#This Row],[Column1]],'Name of budgets'!$A$7:$BU$50, C$7+3)) ->  | D50: =IF(OR($A$3="None", $D$9=FALSE), "", VLOOKUP(Table1[[#This Row],[Column1]],'Name of budgets'!$A$7:$BU$50, D$7+3)) ->  | E50: =IF(OR($A$4="None", $E$9=FALSE), "", VLOOKUP(Table1[[#This Row],[Column1]],'Name of budgets'!$A$7:$BU$50, E$7+3)) ->  | F50: =IF(OR($A$5="None", $F$9=FALSE), "", VLOOKUP(Table1[[#This Row],[Column1]],'Name of budgets'!$A$7:$BU$50, F$7+3)) ->  | J50: --tillage
A51: 42 | B51: =IF(OR($A$1="None", $B$9=FALSE), "", VLOOKUP(Table1[[#This Row],[Column1]],'Name of budgets'!$A$7:$BU$50, B$7+3)) -> 0 | C51: =IF(OR($A$2="None", $C$9=FALSE), "", VLOOKUP(Table1[[#This Row],[Column1]],'Name of budgets'!$A$7:$BU$50, C$7+3)) ->  | D51: =IF(OR($A$3="None", $D$9=FALSE), "", VLOOKUP(Table1[[#This Row],[Column1]],'Name of budgets'!$A$7:$BU$50, D$7+3)) ->  | E51: =IF(OR($A$4="None", $E$9=FALSE), "", VLOOKUP(Table1[[#This Row],[Column1]],'Name of budgets'!$A$7:$BU$50, E$7+3)) ->  | F51: =IF(OR($A$5="None", $F$9=FALSE), "", VLOOKUP(Table1[[#This Row],[Column1]],'Name of budgets'!$A$7:$BU$50, F$7+3)) ->  | J51: --other
A52: 43 | B52: =IF(OR($A$1="None", $B$9=FALSE), "", VLOOKUP(Table1[[#This Row],[Column1]],'Name of budgets'!$A$7:$BU$50, B$7+3)) -> 0 | C52: =IF(OR($A$2="None", $C$9=FALSE), "", VLOOKUP(Table1[[#This Row],[Column1]],'Name of budgets'!$A$7:$BU$50, C$7+3)) ->  | D52: =IF(OR($A$3="None", $D$9=FALSE), "", VLOOKUP(Table1[[#This Row],[Column1]],'Name of budgets'!$A$7:$BU$50, D$7+3)) ->  | E52: =IF(OR($A$4="None", $E$9=FALSE), "", VLOOKUP(Table1[[#This Row],[Column1]],'Name of budgets'!$A$7:$BU$50, E$7+3)) ->  | F52: =IF(OR($A$5="None", $F$9=FALSE), "", VLOOKUP(Table1[[#This Row],[Column1]],'Name of budgets'!$A$7:$BU$50, F$7+3)) ->  | J52: Irrigation
A53: 44 | B53: =IF(OR($A$1="None", $B$9=FALSE), "", VLOOKUP(Table1[[#This Row],[Column1]],'Name of budgets'!$A$7:$BU$50, B$7+3)) -> 69 | C53: =IF(OR($A$2="None", $C$9=FALSE), "", VLOOKUP(Table1[[#This Row],[Column1]],'Name of budgets'!$A$7:$BU$50, C$7+3)) ->  | D53: =IF(OR($A$3="None", $D$9=FALSE), "", VLOOKUP(Table1[[#This Row],[Column1]],'Name of budgets'!$A$7:$BU$50, D$7+3)) ->  | E53: =IF(OR($A$4="None", $E$9=FALSE), "", VLOOKUP(Table1[[#This Row],[Column1]],'Name of budgets'!$A$7:$BU$50, E$7+3)) ->  | F53: =IF(OR($A$5="None", $F$9=FALSE), "", VLOOKUP(Table1[[#This Row],[Column1]],'Name of budgets'!$A$7:$BU$50, F$7+3)) ->  | J53: Cash rent
A56: Direct Expenses | B56: =SUM(B17:B38) -> 587.8289252 | C56: =SUM(C17:C38) -> 0 | D56: 0 | E56: 0 | F56: 0
A57: interest rate | B57: =Budgets!W3 -> 0.08 | C57: =B57 -> 0.08 | D57: =C57 -> 0.08 | E57: 0.08 | F57: 0.08
A59: Interest expense | B59: =B56*B57/2 -> 23.51315701 | C59: =C56*C57/2 -> 0 | D59: 0 | E59: 0 | F59: 0

Sheet Output
A1: Cumulative distribution data,
A2: Tenant - cash | C2: Tenant - share | E2: Tenant - Price flex | G2: Tenant - Yld flex | I2: Tenant - Rev flex | K2: LL - cash | M2: LL - share | O2: LL - Price flex | Q2: LL - Yld flex | S2: LL - Rev flex
A3: -120.8240328 | B3: 0.004975124378 | C3: -88.43148655 | D3: 0.004975124378 | E3: -90.8240328 | F3: 0.004975124378 | G3: -90.8240328 | H3: 0.004975124378 | I3: -90.8240328 | J3: 0.004975124378 | K3: 100 | L3: 0.004975124378 | M3: 67.60745376 | N3: 0.004975124378 | O3: 70 | P3: 0.004975124378 | Q3: 70 | R3: 0.004975124378 | S3: 70 | T3: 0.004975124378 | AH3: Notes about CDF distirbutions:
A4: -104.2884754 | B4: 0.009950248756 | C4: -77.51801868 | D4: 0.009950248756 | E4: -74.2884754 | F4: 0.009950248756 | G4: -74.2884754 | H4: 0.009950248756 | I4: -74.2884754 | J4: 0.009950248756 | K4: 100 | L4: 0.009950248756 | M4: 73.22954327 | N4: 0.009950248756 | O4: 70 | P4: 0.009950248756 | Q4: 70 | R4: 0.009950248756 | S4: 70 | T4: 0.009950248756 | AH4: Distributions completely to the right of another distribution are always preferred
A5: -88.37423892 | B5: 0.01990049751 | C5: -67.0146226 | D5: 0.01990049751 | E5: -58.37423892 | F5: 0.01990049751 | G5: -58.37423892 | H5: 0.01990049751 | I5: -58.37423892 | J5: 0.01990049751 | K5: 100 | L5: 0.01990049751 | M5: 78.64038367 | N5: 0.01990049751 | O5: 70 | P5: 0.01990049751 | Q5: 70 | R5: 0.01990049751 | S5: 70 | T5: 0.01990049751 | AH5: Distributions that cross do not have a clear cut favorite. It depends upon the risk preferences of the individual
A6: -74.37109184 | B6: 0.02985074627 | C6: -57.77254552 | D6: 0.02985074627 | E6: -44.37109184 | F6: 0.02985074627 | G6: -44.37109184 | H6: 0.02985074627 | I6: -44.37109184 | J6: 0.02985074627 | K6: 100 | L6: 0.02985074627 | M6: 83.40145368 | N6: 0.02985074627 | O6: 70 | P6: 0.02985074627 | Q6: 70 | R6: 0.02985074627 | S6: 70 | T6: 0.02985074627 | AH6: The more vertical a distribution, the less risk it has.
A7: -74.00603713 | B7: 0.03980099502 | C7: -57.53160942 | D7: 0.03980099502 | E7: -44.00603713 | F7: 0.03980099502 | G7: -44.00603713 | H7: 0.03980099502 | I7: -44.00603713 | J7: 0.03980099502 | K7: 100 | L7: 0.03980099502 | M7: 83.52557228 | N7: 0.03980099502 | O7: 70 | P7: 0.03980099502 | Q7: 70 | R7: 0.03980099502 | S7: 70 | T7: 0.03980099502
A8: -60.82232574 | B8: 0.04975124378 | C8: -48.8303599 | D8: 0.04975124378 | E8: -30.82232574 | F8: 0.04975124378 | G8: -30.82232574 | H8: 0.04975124378 | I8: -30.82232574 | J8: 0.04975124378 | K8: 100 | L8: 0.04975124378 | M8: 88.00803416 | N8: 0.04975124378 | O8: 70 | P8: 0.04975124378 | Q8: 70 | R8: 0.04975124378 | S8: 70 | T8: 0.04975124378
A9: -51.16156331 | B9: 0.05970149254 | C9: -42.45425669 | D9: 0.05970149254 | E9: -21.16156331 | F9: 0.05970149254 | G9: -21.16156331 | H9: 0.05970149254 | I9: -21.16156331 | J9: 0.05970149254 | K9: 100 | L9: 0.05970149254 | M9: 91.29269338 | N9: 0.05970149254 | O9: 70 | P9: 0.05970149254 | Q9: 70 | R9: 0.05970149254 | S9: 70 | T9: 0.05970149254
A10: -49.0844034 | B10: 0.06965174129 | C10: -41.08333115 | D10: 0.06965174129 | E10: -19.0844034 | F10: 0.06965174129 | G10: -19.0844034 | H10: 0.06965174129 | I10: -19.0844034 | J10: 0.06965174129 | K10: 100 | L10: 0.06965174129 | M10: 91.99892775 | N10: 0.06965174129 | O10: 70 | P10: 0.06965174129 | Q10: 70 | R10: 0.06965174129 | S10: 70 | T10: 0.06965174129
A11: -46.62297431 | B11: 0.07960199005 | C11: -39.45878796 | D11: 0.07960199005 | E11: -16.62297431 | F11: 0.07960199005 | G11: -16.62297431 | H11: 0.07960199005 | I11: -16.62297431 | J11: 0.07960199005 | K11: 100 | L11: 0.07960199005 | M11: 92.83581364 | N11: 0.07960199005 | O11: 70 | P11: 0.07960199005 | Q11: 70 | R11: 0.07960199005 | S11: 70 | T11: 0.07960199005 | AJ11: Net Return to Tenant
A12: -38.72976906 | B12: 0.08955223881 | C12: -34.24927249 | D12: 0.08955223881 | E12: -8.729769055 | F12: 0.08955223881 | G12: -9.012940007 | H12: 0.08955223881 | I12: -8.729769055 | J12: 0.08955223881 | K12: 100 | L12: 0.08955223881 | M12: 95.51950343 | N12: 0.08955223881 | O12: 70 | P12: 0.08955223881 | Q12: 70 | R12: 0.08955223881 | S12: 70 | T12: 0.08955223881 | AJ12: P=20% | AK12: P=40% | AL12: P=50% | AM12: P=60% | AN12: P=80%
A13: -36.34939379 | B13: 0.09950248756 | C13: -32.67822481 | D13: 0.09950248756 | E13: -6.349393791 | F13: 0.09950248756 | G13: -6.349393791 | H13: 0.09950248756 | I13: -6.349393791 | J13: 0.09950248756 | K13: 100 | L13: 0.09950248756 | M13: 96.32883102 | N13: 0.09950248756 | O13: 70 | P13: 0.09950248756 | Q13: 70 | R13: 0.09950248756 | S13: 70 | T13: 0.09950248756 | AI13: Cash | AJ13: =A23 -> 2.496541373 | AK13: =A43 -> 56.67269608 | AL13: =A53 -> 81.64781234 | AM13: =A63 -> 107.8119061 | AN13: =A83 -> 150.6582221
A14: -30.8300177 | B14: 0.1094527363 | C14: -29.03543659 | D14: 0.1094527363 | E14: -0.8300176972 | F14: 0.1094527363 | G14: -0.8300176972 | H14: 0.1094527363 | I14: -0.8300176972 | J14: 0.1094527363 | K14: 100 | L14: 0.1094527363 | M14: 98.20541889 | N14: 0.1094527363 | O14: 70 | P14: 0.1094527363 | Q14: 70 | R14: 0.1094527363 | S14: 70 | T14: 0.1094527363 | AI14: Share | AJ14: =C23 -> -7.039907603 | AK14: =C43 -> 28.71635451 | AL14: =C53 -> 45.19993124 | AM14: =C63 -> 62.46823312 | AN14: =C83 -> 90.74680166
A15: -29.85804148 | B15: 0.1194029851 | C15: -28.39393228 | D15: 0.1194029851 | E15: 0.1419585219 | F15: 0.1194029851 | G15: 0.1419585219 | H15: 0.1194029851 | I15: 0.1419585219 | J15: 0.1194029851 | K15: 100 | L15: 0.1194029851 | M15: 98.53589081 | N15: 0.1194029851 | O15: 70 | P15: 0.1194029851 | Q15: 70 | R15: 0.1194029851 | S15: 70 | T15: 0.1194029851 | AI15: Price Flex | AJ15: =E23 -> 32.49654137 | AK15: =E43 -> 86.67269608 | AL15: =E53 -> 111.6478123 | AM15: =E63 -> 137.7797867 | AN15: =E83 -> 177.3206153
A16: -23.44138443 | B16: 0.1293532338 | C16: -24.15893864 | D16: 0.1293532338 | E16: 6.558615565 | F16: 0.1293532338 | G16: 6.558615565 | H16: 0.1293532338 | I16: 6.558615565 | J16: 0.1293532338 | K16: 100 | L16: 0.1293532338 | M16: 100.7175542 | N16: 0.1293532338 | O16: 70 | P16: 0.1293532338 | Q16: 70 | R16: 0.1293532338 | S16: 70 | T16: 0.1293532338 | AI16: Yield Flex | AJ16: =G23 -> 32.49654137 | AK16: =G43 -> 86.47830318 | AL16: =G53 -> 111.6478123 | AM16: =G63 -> 136.7589838 | AN16: =G83 -> 180.2250013
A17: -19.38643224 | B17: 0.1393034826 | C17: -21.48267019 | D17: 0.1393034826 | E17: 10.61356776 | F17: 0.1393034826 | G17: 10.61356776 | H17: 0.1393034826 | I17: 10.61356776 | J17: 0.1393034826 | K17: 100 | L17: 0.1393034826 | M17: 102.0962379 | N17: 0.1393034826 | O17: 70 | P17: 0.1393034826 | Q17: 70 | R17: 0.1393034826 | S17: 70 | T17: 0.1393034826 | AI17: Rev Flex | AJ17: =G24 -> 33.30744744 | AK17: =G44 -> 89.21972443 | AL17: =G54 -> 113.7343408 | AM17: =G64 -> 137.8119061 | AN17: =G84 -> 186.1228858
A18: -12.90332296 | B18: 0.1492537313 | C18: -17.20381806 | D18: 0.1492537313 | E18: 17.09667704 | F18: 0.1492537313 | G18: 17.09667704 | H18: 0.1492537313 | I18: 17.09667704 | J18: 0.1492537313 | K18: 100 | L18: 0.1492537313 | M18: 104.3004951 | N18: 0.1492537313 | O18: 70 | P18: 0.1492537313 | Q18: 70 | R18: 0.1492537313 | S18: 70 | T18: 0.1492537313
A19: -3.577283705 | B19: 0.1592039801 | C19: -11.04863215 | D19: 0.1592039801 | E19: 26.4227163 | F19: 0.1592039801 | G19: 25.36824845 | H19: 0.1592039801 | I19: 26.4227163 | J19: 0.1592039801 | K19: 100 | L19: 0.1592039801 | M19: 107.4713484 | N19: 0.1592039801 | O19: 70 | P19: 0.1592039801 | Q19: 70 | R19: 0.1592039801 | S19: 70 | T19: 0.1592039801
A20: -0.8245869711 | B20: 0.1691542289 | C20: -9.23185231 | D20: 0.1691542289 | E20: 29.17541303 | F20: 0.1691542289 | G20: 29.11608408 | H20: 0.1691542289 | I20: 29.17541303 | J20: 0.1691542289 | K20: 100 | L20: 0.1691542289 | M20: 108.4072653 | N20: 0.1691542289 | O20: 70 | P20: 0.1691542289 | Q20: 70 | R20: 0.1691542289 | S20: 70 | T20: 0.1691542289
A21: 0.1584346071 | B21: 0.1791044776 | C21: -8.583058068 | D21: 0.1791044776 | E21: 29.75913002 | F21: 0.1791044776 | G21: 30.15843461 | H21: 0.1791044776 | I21: 30.15843461 | J21: 0.1791044776 | K21: 100 | L21: 0.1791044776 | M21: 108.7414927 | N21: 0.1791044776 | O21: 70 | P21: 0.1791044776 | Q21: 70 | R21: 0.1791044776 | S21: 70 | T21: 0.1791044776
A22: 1.483679673 | B22: 0.1890547264 | C22: -7.708396325 | D22: 0.1890547264 | E22: 31.48367967 | F22: 0.1890547264 | G22: 31.48367967 | H22: 0.1890547264 | I22: 31.48367967 | J22: 0.1890547264 | K22: 100 | L22: 0.1890547264 | M22: 109.192076 | N22: 0.1890547264 | O22: 70 | P22: 0.1890547264 | Q22: 70 | R22: 0.1890547264 | S22: 70 | T22: 0.1890547264
A23: 2.496541373 | B23: 0.1990049751 | C23: -7.039907603 | D23: 0.1990049751 | E23: 32.49654137 | F23: 0.1990049751 | G23: 32.49654137 | H23: 0.1990049751 | I23: 32.49654137 | J23: 0.1990049751 | K23: 100 | L23: 0.1990049751 | M23: 109.536449 | N23: 0.1990049751 | O23: 70 | P23: 0.1990049751 | Q23: 70 | R23: 0.1990049751 | S23: 70 | T23: 0.1990049751
A24: 3.307447442 | B24: 0.2089552239 | C24: -6.504709597 | D24: 0.2089552239 | E24: 33.30744744 | F24: 0.2089552239 | G24: 33.30744744 | H24: 0.2089552239 | I24: 33.30744744 | J24: 0.2089552239 | K24: 100 | L24: 0.2089552239 | M24: 109.812157 | N24: 0.2089552239 | O24: 70 | P24: 0.2089552239 | Q24: 70 | R24: 0.2089552239 | S24: 70 | T24: 0.2089552239
A25: 8.841692778 | B25: 0.2189054726 | C25: -2.852107675 | D25: 0.2189054726 | E25: 37.81166845 | F25: 0.2189054726 | G25: 38.84169278 | H25: 0.2189054726 | I25: 38.84169278 | J25: 0.2189054726 | K25: 100 | L25: 0.2189054726 | M25: 111.6938005 | N25: 0.2189054726 | O25: 70 | P25: 0.2189054726 | Q25: 70 | R25: 0.2189054726 | S25: 70 | T25: 0.2189054726
A26: 10.01421316 | B26: 0.2288557214 | C26: -2.07824422 | D26: 0.2288557214 | E26: 40.01421316 | F26: 0.2288557214 | G26: 40.01421316 | H26: 0.2288557214 | I26: 40.01421316 | J26: 0.2288557214 | K26: 100 | L26: 0.2288557214 | M26: 112.0924574 | N26: 0.2288557214 | O26: 70 | P26: 0.2288557214 | Q26: 70 | R26: 0.2288557214 | S26: 70 | T26: 0.2288557214
A27: 11.61401171 | B27: 0.2388059701 | C27: -1.022377182 | D27: 0.2388059701 | E27: 41.61401171 | F27: 0.2388059701 | G27: 41.61401171 | H27: 0.2388059701 | I27: 41.61401171 | J27: 0.2388059701 | K27: 100 | L27: 0.2388059701 | M27: 112.6363889 | N27: 0.2388059701 | O27: 70 | P27: 0.2388059701 | Q27: 70 | R27: 0.2388059701 | S27: 70 | T27: 0.2388059701
A28: 12.97658778 | B28: 0.2487562189 | C28: -0.1230769747 | D28: 0.2487562189 | E28: 42.97658778 | F28: 0.2487562189 | G28: 42.97658778 | H28: 0.2487562189 | I28: 42.97658778 | J28: 0.2487562189 | K28: 100 | L28: 0.2487562189 | M28: 113.0996648 | N28: 0.2487562189 | O28: 70 | P28: 0.2487562189 | Q28: 70 | R28: 0.2487562189 | S28: 70 | T28: 0.2487562189
A29: 18.61588013 | B29: 0.2587064677 | C29: 3.598855975 | D29: 0.2587064677 | E29: 48.61588013 | F29: 0.2587064677 | G29: 48.56546016 | H29: 0.2587064677 | I29: 48.61588013 | J29: 0.2587064677 | K29: 100 | L29: 0.2587064677 | M29: 115.0170242 | N29: 0.2587064677 | O29: 70 | P29: 0.2587064677 | Q29: 70 | R29: 0.2587064677 | S29: 70 | T29: 0.2587064677
A30: 20.34935772 | B30: 0.2686567164 | C30: 4.742951188 | D30: 0.2686567164 | E30: 49.61600994 | F30: 0.2686567164 | G30: 48.98887299 | H30: 0.2686567164 | I30: 50.34935772 | J30: 0.2686567164 | K30: 100 | L30: 0.2686567164 | M30: 115.6064065 | N30: 0.2686567164 | O30: 70 | P30: 0.2686567164 | Q30: 70 | R30: 0.2686567164 | S30: 70 | T30: 0.2686567164
A31: 21.85581032 | B31: 0.2786069652 | C31: 5.737209899 | D31: 0.2786069652 | E31: 51.85581032 | F31: 0.2786069652 | G31: 51.85581032 | H31: 0.2786069652 | I31: 51.85581032 | J31: 0.2786069652 | K31: 100 | L31: 0.2786069652 | M31: 116.1186004 | N31: 0.2786069652 | O31: 70 | P31: 0.2786069652 | Q31: 70 | R31: 0.2786069652 | S31: 70 | T31: 0.2786069652
A32: 24.70659428 | B32: 0.2885572139 | C32: 7.618727318 | D32: 0.2885572139 | E32: 54.70659428 | F32: 0.2885572139 | G32: 54.63570464 | H32: 0.2885572139 | I32: 54.70659428 | J32: 0.2885572139 | K32: 100 | L32: 0.2885572139 | M32: 117.087867 | N32: 0.2885572139 | O32: 70 | P32: 0.2885572139 | Q32: 70 | R32: 0.2885572139 | S32: 70 | T32: 0.2885572139
A33: 27.46592859 | B33: 0.2985074627 | C33: 9.439887958 | D33: 0.2985074627 | E33: 56.81928643 | F33: 0.2985074627 | G33: 57.46592859 | H33: 0.2985074627 | I33: 57.46592859 | J33: 0.2985074627 | K33: 100 | L33: 0.2985074627 | M33: 118.0260406 | N33: 0.2985074627 | O33: 70 | P33: 0.2985074627 | Q33: 70 | R33: 0.2985074627 | S33: 70 | T33: 0.2985074627
A34: 27.6850512 | B34: 0.3084577114 | C34: 9.584508883 | D34: 0.3084577114 | E34: 57.6850512 | F34: 0.3084577114 | G34: 57.6850512 | H34: 0.3084577114 | I34: 57.6850512 | J34: 0.3084577114 | K34: 100 | L34: 0.3084577114 | M34: 118.1005423 | N34: 0.3084577114 | O34: 70 | P34: 0.3084577114 | Q34: 70 | R34: 0.3084577114 | S34: 70 | T34: 0.3084577114
A35: 33.16540336 | B35: 0.3184079602 | C35: 13.20154131 | D35: 0.3184079602 | E35: 61.08746879 | F35: 0.3184079602 | G35: 62.86958905 | H35: 0.3184079602 | I35: 63.16540336 | J35: 0.3184079602 | K35: 100 | L35: 0.3184079602 | M35: 119.9638621 | N35: 0.3184079602 | O35: 70 | P35: 0.3184079602 | Q35: 70 | R35: 0.3184079602 | S35: 70 | T35: 0.3184079602
A36: 34.94388656 | B36: 0.328358209 | C36: 14.37534022 | D36: 0.328358209 | E36: 64.94388656 | F36: 0.328358209 | G36: 64.60994965 | H36: 0.328358209 | I36: 64.94388656 | J36: 0.328358209 | K36: 100 | L36: 0.328358209 | M36: 120.5685463 | N36: 0.328358209 | O36: 70 | P36: 0.328358209 | Q36: 70 | R36: 0.328358209 | S36: 70 | T36: 0.328358209 | AJ36: Net Return to Landlord
A37: 37.18843762 | B37: 0.3383084577 | C37: 15.85674392 | D37: 0.3383084577 | E37: 65.95358341 | F37: 0.3383084577 | G37: 67.18843762 | H37: 0.3383084577 | I37: 67.18843762 | J37: 0.3383084577 | K37: 100 | L37: 0.3383084577 | M37: 121.3316937 | N37: 0.3383084577 | O37: 70 | P37: 0.3383084577 | Q37: 70 | R37: 0.3383084577 | S37: 70 | T37: 0.3383084577 | AJ37: P=20% | AK37: P=40% | AL37: P=50% | AM37: P=60% | AN37: P=80%
A38: 38.07738236 | B38: 0.3482587065 | C38: 16.44344745 | D38: 0.3482587065 | E38: 67.61039141 | F38: 0.3482587065 | G38: 68.00001954 | H38: 0.3482587065 | I38: 68.07738236 | J38: 0.3482587065 | K38: 100 | L38: 0.3482587065 | M38: 121.6339349 | N38: 0.3482587065 | O38: 70 | P38: 0.3482587065 | Q38: 70 | R38: 0.3482587065 | S38: 70 | T38: 0.3482587065 | AI38: Cash | AJ38: =K23 -> 100 | AK38: =K43 -> 100 | AL38: =K53 -> 100 | AM38: =K63 -> 100 | AN38: =K83 -> 100
A39: 39.95504215 | B39: 0.3582089552 | C39: 17.68270291 | D39: 0.3582089552 | E39: 69.95504215 | F39: 0.3582089552 | G39: 68.79115881 | H39: 0.3582089552 | I39: 69.95504215 | J39: 0.3582089552 | K39: 100 | L39: 0.3582089552 | M39: 122.2723392 | N39: 0.3582089552 | O39: 70 | P39: 0.3582089552 | Q39: 70 | R39: 0.3582089552 | S39: 70 | T39: 0.3582089552 | AI39: Share | AJ39: =M23 -> 109.536449 | AK39: =M43 -> 127.9563416 | AL39: =M53 -> 136.4478811 | AM39: =M63 -> 145.343673 | AN39: =M83 -> 159.9114204
A40: 43.05934074 | B40: 0.368159204 | C40: 19.73153998 | D40: 0.368159204 | E40: 73.05934074 | F40: 0.368159204 | G40: 72.64877794 | H40: 0.368159204 | I40: 73.05934074 | J40: 0.368159204 | K40: 100 | L40: 0.368159204 | M40: 123.3278008 | N40: 0.368159204 | O40: 70 | P40: 0.368159204 | Q40: 70 | R40: 0.368159204 | S40: 70 | T40: 0.368159204 | AI40: Price Flex | AJ40: =O23 -> 70 | AK40: =O43 -> 70 | AL40: =O53 -> 70 | AM40: =O63 -> 70.35420181 | AN40: =O83 -> 74.04362849
A41: 44.29157485 | B41: 0.3781094527 | C41: 20.54481449 | D41: 0.3781094527 | E41: 74.29157485 | F41: 0.3781094527 | G41: 74.29157485 | H41: 0.3781094527 | I41: 74.29157485 | J41: 0.3781094527 | K41: 100 | L41: 0.3781094527 | M41: 123.7467604 | N41: 0.3781094527 | O41: 70 | P41: 0.3781094527 | Q41: 70 | R41: 0.3781094527 | S41: 70 | T41: 0.3781094527 | AI41: Yield Flex | AJ41: =Q23 -> 70 | AK41: =Q43 -> 70 | AL41: =Q53 -> 70 | AM41: =Q63 -> 70 | AN41: =Q83 -> 72.07429751
A42: 53.43177863 | B42: 0.3880597015 | C42: 26.57734898 | D42: 0.3880597015 | E42: 83.43177863 | F42: 0.3880597015 | G42: 80.47098908 | H42: 0.3880597015 | I42: 83.43177863 | J42: 0.3880597015 | K42: 100 | L42: 0.3880597015 | M42: 126.8544296 | N42: 0.3880597015 | O42: 70 | P42: 0.3880597015 | Q42: 70 | R42: 0.3880597015 | S42: 70 | T42: 0.3880597015 | AI42: Rev Flex | AJ42: =S23 -> 70 | AK42: =S43 -> 70 | AL42: =S53 -> 70 | AM42: =S63 -> 70 | AN42: =S83 -> 72.1312531
A43: 56.67269608 | B43: 0.3980099502 | C43: 28.71635451 | D43: 0.3980099502 | E43: 86.67269608 | F43: 0.3980099502 | G43: 86.47830318 | H43: 0.3980099502 | I43: 86.67269608 | J43: 0.3980099502 | K43: 100 | L43: 0.3980099502 | M43: 127.9563416 | N43: 0.3980099502 | O43: 70 | P43: 0.3980099502 | Q43: 70 | R43: 0.3980099502 | S43: 70 | T43: 0.3980099502
A44: 59.21972443 | B44: 0.407960199 | C44: 30.39739321 | D44: 0.407960199 | E44: 89.07995222 | F44: 0.407960199 | G44: 89.21972443 | H44: 0.407960199 | I44: 89.21972443 | J44: 0.407960199 | K44: 100 | L44: 0.407960199 | M44: 128.8223312 | N44: 0.407960199 | O44: 70 | P44: 0.407960199 | Q44: 70 | R44: 0.407960199 | S44: 70 | T44: 0.407960199
A45: 61.15105632 | B45: 0.4179104478 | C45: 31.67207226 | D45: 0.4179104478 | E45: 91.09930649 | F45: 0.4179104478 | G45: 91.15105632 | H45: 0.4179104478 | I45: 91.15105632 | J45: 0.4179104478 | K45: 100 | L45: 0.4179104478 | M45: 129.4789841 | N45: 0.4179104478 | O45: 70 | P45: 0.4179104478 | Q45: 70 | R45: 0.4179104478 | S45: 70 | T45: 0.4179104478
A46: 64.08792225 | B46: 0.4278606965 | C46: 33.61040377 | D46: 0.4278606965 | E46: 94.08792225 | F46: 0.4278606965 | G46: 94.08792225 | H46: 0.4278606965 | I46: 94.08792225 | J46: 0.4278606965 | K46: 100 | L46: 0.4278606965 | M46: 130.4775185 | N46: 0.4278606965 | O46: 70 | P46: 0.4278606965 | Q46: 70 | R46: 0.4278606965 | S46: 70 | T46: 0.4278606965
A47: 66.58096767 | B47: 0.4378109453 | C47: 35.25581376 | D47: 0.4378109453 | E47: 95.83687761 | F47: 0.4378109453 | G47: 95.9602127 | H47: 0.4378109453 | I47: 96.58096767 | J47: 0.4378109453 | K47: 100 | L47: 0.4378109453 | M47: 131.3251539 | N47: 0.4378109453 | O47: 70 | P47: 0.4378109453 | Q47: 70 | R47: 0.4378109453 | S47: 70 | T47: 0.4378109453
A48: 69.04816738 | B48: 0.447761194 | C48: 36.88416556 | D48: 0.447761194 | E48: 96.58096767 | F48: 0.447761194 | G48: 99.04816738 | H48: 0.447761194 | I48: 99.04816738 | J48: 0.447761194 | K48: 100 | L48: 0.447761194 | M48: 132.1640018 | N48: 0.447761194 | O48: 70 | P48: 0.447761194 | Q48: 70 | R48: 0.447761194 | S48: 70 | T48: 0.447761194
A49: 71.50773668 | B49: 0.4577114428 | C49: 38.5074813 | D49: 0.4577114428 | E49: 100.043494 | F49: 0.4577114428 | G49: 101.5077367 | H49: 0.4577114428 | I49: 101.5077367 | J49: 0.4577114428 | K49: 100 | L49: 0.4577114428 | M49: 133.0002554 | N49: 0.4577114428 | O49: 70 | P49: 0.4577114428 | Q49: 70 | R49: 0.4577114428 | S49: 70 | T49: 0.4577114428
A50: 75.32162463 | B50: 0.4676616915 | C50: 41.02464734 | D50: 0.4676616915 | E50: 104.3691997 | F50: 0.4676616915 | G50: 105.3216246 | H50: 0.4676616915 | I50: 105.3216246 | J50: 0.4676616915 | K50: 100 | L50: 0.4676616915 | M50: 134.2969773 | N50: 0.4676616915 | O50: 70 | P50: 0.4676616915 | Q50: 70 | R50: 0.4676616915 | S50: 70 | T50: 0.4676616915
A51: 79.32919452 | B51: 0.4776119403 | C51: 43.66964348 | D51: 0.4776119403 | E51: 106.6276289 | F51: 0.4776119403 | G51: 109.3291945 | H51: 0.4776119403 | I51: 109.3291945 | J51: 0.4776119403 | K51: 100 | L51: 0.4776119403 | M51: 135.659551 | N51: 0.4776119403 | O51: 70 | P51: 0.4776119403 | Q51: 70 | R51: 0.4776119403 | S51: 70 | T51: 0.4776119403
A52: 80.20276897 | B52: 0.4875621891 | C52: 44.24620261 | D52: 0.4875621891 | E52: 110.202769 | F52: 0.4875621891 | G52: 110.202769 | H52: 0.4875621891 | I52: 110.202769 | J52: 0.4875621891 | K52: 100 | L52: 0.4875621891 | M52: 135.9565664 | N52: 0.4875621891 | O52: 70 | P52: 0.4875621891 | Q52: 70 | R52: 0.4875621891 | S52: 70 | T52: 0.4875621891
A53: 81.64781234 | B53: 0.4975124378 | C53: 45.19993124 | D53: 0.4975124378 | E53: 111.6478123 | F53: 0.4975124378 | G53: 111.6478123 | H53: 0.4975124378 | I53: 111.6478123 | J53: 0.4975124378 | K53: 100 | L53: 0.4975124378 | M53: 136.4478811 | N53: 0.4975124378 | O53: 70 | P53: 0.4975124378 | Q53: 70 | R53: 0.4975124378 | S53: 70 | T53: 0.4975124378
A54: 84.96847901 | B54: 0.5074626866 | C54: 47.39157124 | D54: 0.5074626866 | E54: 114.0724233 | F54: 0.5074626866 | G54: 113.7343408 | H54: 0.5074626866 | I54: 114.968479 | J54: 0.5074626866 | K54: 100 | L54: 0.5074626866 | M54: 137.5769078 | N54: 0.5074626866 | O54: 70 | P54: 0.5074626866 | Q54: 70 | R54: 0.5074626866 | S54: 70 | T54: 0.5074626866
A55: 88.82862003 | B55: 0.5174129353 | C55: 49.93926431 | D55: 0.5174129353 | E55: 115.1960934 | F55: 0.5174129353 | G55: 117.8634116 | H55: 0.5174129353 | I55: 118.82862 | J55: 0.5174129353 | K55: 100 | L55: 0.5174129353 | M55: 138.8893557 | N55: 0.5174129353 | O55: 70 | P55: 0.5174129353 | Q55: 70 | R55: 0.5174129353 | S55: 70 | T55: 0.5174129353
A56: 91.28731299 | B56: 0.5273631841 | C56: 51.56200167 | D56: 0.5273631841 | E56: 117.0745944 | F56: 0.5273631841 | G56: 119.9249153 | H56: 0.5273631841 | I56: 121.287313 | J56: 0.5273631841 | K56: 100 | L56: 0.5273631841 | M56: 139.7253113 | N56: 0.5273631841 | O56: 70 | P56: 0.5273631841 | Q56: 70 | R56: 0.5273631841 | S56: 70 | T56: 0.5273631841
A57: 92.12290098 | B57: 0.5373134328 | C57: 52.11348974 | D57: 0.5373134328 | E57: 122.122901 | F57: 0.5373134328 | G57: 121.9903379 | H57: 0.5373134328 | I57: 122.122901 | J57: 0.5373134328 | K57: 100 | L57: 0.5373134328 | M57: 140.0094112 | N57: 0.5373134328 | O57: 70 | P57: 0.5373134328 | Q57: 70 | R57: 0.5373134328 | S57: 70 | T57: 0.5373134328
A58: 94.40371389 | B58: 0.5472636816 | C58: 53.61882626 | D58: 0.5472636816 | E58: 124.4037139 | F58: 0.5472636816 | G58: 123.2161135 | H58: 0.5472636816 | I58: 124.4037139 | J58: 0.5472636816 | K58: 100 | L58: 0.5472636816 | M58: 140.7848876 | N58: 0.5472636816 | O58: 70 | P58: 0.5472636816 | Q58: 70 | R58: 0.5472636816 | S58: 70 | T58: 0.5472636816
A59: 95.92181106 | B59: 0.5572139303 | C59: 54.62077039 | D59: 0.5572139303 | E59: 125.3758027 | F59: 0.5572139303 | G59: 125.1627529 | H59: 0.5572139303 | I59: 125.3758027 | J59: 0.5572139303 | K59: 100 | L59: 0.5572139303 | M59: 141.3010407 | N59: 0.5572139303 | O59: 70 | P59: 0.5572139303 | Q59: 70 | R59: 0.5572139303 | S59: 70 | T59: 0.5572139303
A60: 99.99261259 | B60: 0.5671641791 | C60: 57.3074994 | D60: 0.5671641791 | E60: 126.2444192 | F60: 0.5671641791 | G60: 129.9926126 | H60: 0.5671641791 | I60: 128.5832665 | J60: 0.5671641791 | K60: 100 | L60: 0.5671641791 | M60: 142.6851132 | N60: 0.5671641791 | O60: 70.05174983 | P60: 0.5671641791 | Q60: 70 | R60: 0.5671641791 | S60: 70 | T60: 0.5671641791
A61: 103.6667132 | B61: 0.5771144279 | C61: 59.73240579 | D61: 0.5771144279 | E61: 131.5326313 | F61: 0.5771144279 | G61: 133.6667132 | H61: 0.5771144279 | I61: 133.6667132 | J61: 0.5771144279 | K61: 100 | L61: 0.5771144279 | M61: 143.9343074 | N61: 0.5771144279 | O61: 70.08909227 | P61: 0.5771144279 | Q61: 70 | R61: 0.5771144279 | S61: 70 | T61: 0.5771144279
A62: 107.1710026 | B62: 0.5870646766 | C62: 62.04523684 | D62: 0.5870646766 | E62: 135.4804427 | F62: 0.5870646766 | G62: 135.9695463 | H62: 0.5870646766 | I62: 137.0686501 | J62: 0.5870646766 | K62: 100 | L62: 0.5870646766 | M62: 145.1257658 | N62: 0.5870646766 | O62: 70.19898603 | P62: 0.5870646766 | Q62: 70 | R62: 0.5870646766 | S62: 70 | T62: 0.5870646766
A63: 107.8119061 | B63: 0.5970149254 | C63: 62.46823312 | D63: 0.5970149254 | E63: 137.7797867 | F63: 0.5970149254 | G63: 136.7589838 | H63: 0.5970149254 | I63: 137.8119061 | J63: 0.5970149254 | K63: 100 | L63: 0.5970149254 | M63: 145.343673 | N63: 0.5970149254 | O63: 70.35420181 | P63: 0.5970149254 | Q63: 70 | R63: 0.5970149254 | S63: 70 | T63: 0.5970149254
A64: 110.1151089 | B64: 0.6069651741 | C64: 63.98834698 | D64: 0.6069651741 | E64: 139.229616 | F64: 0.6069651741 | G64: 137.8119061 | H64: 0.6069651741 | I64: 140.1151089 | J64: 0.6069651741 | K64: 100 | L64: 0.6069651741 | M64: 146.1267619 | N64: 0.6069651741 | O64: 70.45916833 | P64: 0.6069651741 | Q64: 70 | R64: 0.6069651741 | S64: 70 | T64: 0.6069651741
A65: 111.7227631 | B65: 0.6169154229 | C65: 65.04939874 | D65: 0.6169154229 | E65: 141.7227631 | F65: 0.6169154229 | G65: 140.1151089 | H65: 0.6169154229 | I65: 141.7227631 | J65: 0.6169154229 | K65: 100 | L65: 0.6169154229 | M65: 146.6733644 | N65: 0.6169154229 | O65: 70.64664215 | P65: 0.6169154229 | Q65: 70 | R65: 0.6169154229 | S65: 70 | T65: 0.6169154229
A66: 117.7767085 | B66: 0.6268656716 | C66: 69.04500269 | D66: 0.6268656716 | E66: 144.1072755 | F66: 0.6268656716 | G66: 145.3736715 | H66: 0.6268656716 | I66: 147.7767085 | J66: 0.6268656716 | K66: 100 | L66: 0.6268656716 | M66: 148.7317058 | N66: 0.6268656716 | O66: 70.73334778 | P66: 0.6268656716 | Q66: 70 | R66: 0.6268656716 | S66: 70 | T66: 0.6268656716
A67: 119.5916541 | B67: 0.6368159204 | C67: 70.24286681 | D67: 0.6368159204 | E67: 145.5228073 | F67: 0.6368159204 | G67: 149.28221 | H67: 0.6368159204 | I67: 149.5916541 | J67: 0.6368159204 | K67: 100 | L67: 0.6368159204 | M67: 149.3487873 | N67: 0.6368159204 | O67: 70.88549292 | P67: 0.6368159204 | Q67: 70 | R67: 0.6368159204 | S67: 70 | T67: 0.6368159204
A68: 120.4826748 | B68: 0.6467661692 | C68: 70.83094048 | D68: 0.6467661692 | E68: 147.3175401 | F68: 0.6467661692 | G68: 149.5916541 | H68: 0.6467661692 | I68: 150.4826748 | J68: 0.6467661692 | K68: 100 | L68: 0.6467661692 | M68: 149.6517344 | N68: 0.6467661692 | O68: 70.95623156 | P68: 0.6467661692 | Q68: 70 | R68: 0.6467661692 | S68: 70 | T68: 0.6467661692 | AI68: Notes about Land valuation:
A69: 121.9402126 | B69: 0.6567164179 | C69: 71.79291542 | D69: 0.6567164179 | E69: 149.8462654 | F69: 0.6567164179 | G69: 150.4826748 | H69: 0.6567164179 | I69: 151.5363523 | J69: 0.6567164179 | K69: 100 | L69: 0.6567164179 | M69: 150.1472972 | N69: 0.6567164179 | O69: 71.03002433 | P69: 0.6567164179 | Q69: 70.03681849 | R69: 0.6567164179 | S69: 70 | T69: 0.6567164179 | AI69: The land value is estimated from the formula Price = A / i where A is the annual net return and (i) is the interest rate
A70: 122.8465866 | B70: 0.6666666667 | C70: 72.39112227 | D70: 0.6666666667 | E70: 152.8349189 | F70: 0.6666666667 | G70: 151.9402126 | H70: 0.6666666667 | I70: 152.8465866 | J70: 0.6666666667 | K70: 100 | L70: 0.6666666667 | M70: 150.4554644 | N70: 0.6666666667 | O70: 71.16099658 | P70: 0.6666666667 | Q70: 70.07088964 | R70: 0.6666666667 | S70: 70 | T70: 0.6666666667
A71: 125.10122 | B71: 0.6766169154 | C71: 73.87918029 | D71: 0.6766169154 | E71: 153.4051606 | F71: 0.6766169154 | G71: 154.8021647 | H71: 0.6766169154 | I71: 154.8021647 | J71: 0.6766169154 | K71: 100 | L71: 0.6766169154 | M71: 151.2220397 | N71: 0.6766169154 | O71: 71.3304034 | P71: 0.6766169154 | Q71: 70.1943929 | R71: 0.6766169154 | S71: 70 | T71: 0.6766169154 | AI71: The blue line labeled 75% likely: This shows the possible land values that a farmer could pay at different interest rates
A72: 126.8547046 | B72: 0.6865671642 | C72: 75.03648013 | D72: 0.6865671642 | E72: 155.10122 | F72: 0.6865671642 | G72: 156.8547046 | H72: 0.6865671642 | I72: 156.8322292 | J72: 0.6865671642 | K72: 100 | L72: 0.6865671642 | M72: 151.8182245 | N72: 0.6865671642 | O72: 71.62305708 | P72: 0.6865671642 | Q72: 70.31255266 | R72: 0.6865671642 | S72: 70 | T72: 0.6865671642 | AI72: and earn enough profits so that the land has a positive net present value 75% of the time. That also means that
A73: 128.5985081 | B73: 0.6965174129 | C73: 76.18739043 | D73: 0.6965174129 | E73: 156.225673 | F73: 0.6965174129 | G73: 158.5985081 | H73: 0.6965174129 | I73: 158.5985081 | J73: 0.6965174129 | K73: 100 | L73: 0.6965174129 | M73: 152.4111177 | N73: 0.6965174129 | O73: 71.79215155 | P73: 0.6965174129 | Q73: 70.41201881 | R73: 0.6965174129 | S73: 70 | T73: 0.6965174129 | AI73: 25% of the time, the land will be a bad investment
A74: 133.3480659 | B74: 0.7064676617 | C74: 79.3220986 | D74: 0.7064676617 | E74: 163.3480659 | F74: 0.7064676617 | G74: 161.4939785 | H74: 0.7064676617 | I74: 163.3480659 | J74: 0.7064676617 | K74: 100 | L74: 0.7064676617 | M74: 154.0259673 | N74: 0.7064676617 | O74: 71.97410967 | P74: 0.7064676617 | Q74: 70.57877489 | R74: 0.7064676617 | S74: 70.02247542 | T74: 0.7064676617
A75: 136.1215085 | B75: 0.7164179104 | C75: 81.15257073 | D75: 0.7164179104 | E75: 165.7288251 | F75: 0.7164179104 | G75: 162.6708235 | H75: 0.7164179104 | I75: 164.4465383 | J75: 0.7164179104 | K75: 100 | L75: 0.7164179104 | M75: 154.9689378 | N75: 0.7164179104 | O75: 72.15569306 | P75: 0.7164179104 | Q75: 70.65226129 | R75: 0.7164179104 | S75: 70.29218492 | T75: 0.7164179104 | AI75: The gray line labeled 25% likely: This shows the possible land values that a farmer could pay at different interest rates
A76: 138.3334983 | B76: 0.7263681592 | C76: 82.61248394 | D76: 0.7263681592 | E76: 168.3027236 | F76: 0.7263681592 | G76: 165.0520514 | H76: 0.7263681592 | I76: 168.3334983 | J76: 0.7263681592 | K76: 100 | L76: 0.7263681592 | M76: 155.7210143 | N76: 0.7263681592 | O76: 72.49961916 | P76: 0.7263681592 | Q76: 70.78892683 | R76: 0.7263681592 | S76: 70.68544524 | T76: 0.7263681592 | AI76: and ean enough profits so that the land had a positive net return 25% of the time. That also means that 75% of the time
A77: 143.1115646 | B77: 0.736318408 | C77: 85.76600773 | D77: 0.736318408 | E77: 169.0212442 | F77: 0.736318408 | G77: 171.2183357 | H77: 0.736318408 | I77: 170.9803115 | J77: 0.736318408 | K77: 100 | L77: 0.736318408 | M77: 157.3455569 | N77: 0.736318408 | O77: 72.69155977 | P77: 0.736318408 | Q77: 70.9652084 | R77: 0.736318408 | S77: 71.03250849 | T77: 0.736318408 | AI77: the land will have a negative net present value and not be a good investment.
A78: 144.3069386 | B78: 0.7462686567 | C78: 86.55495456 | D78: 0.7462686567 | E78: 173.0051059 | F78: 0.7462686567 | G78: 172.226415 | H78: 0.7462686567 | I78: 173.6684841 | J78: 0.7462686567 | K78: 100 | L78: 0.7462686567 | M78: 157.751984 | N78: 0.7462686567 | O78: 72.90438598 | P78: 0.7462686567 | Q78: 71.13063176 | R78: 0.7462686567 | S78: 71.06039938 | T78: 0.7462686567
A79: 144.967601 | B79: 0.7562189055 | C79: 86.99099176 | D79: 0.7562189055 | E79: 173.2820452 | F79: 0.7562189055 | G79: 172.9420809 | H79: 0.7562189055 | I79: 174.3069386 | J79: 0.7562189055 | K79: 100 | L79: 0.7562189055 | M79: 157.9766093 | N79: 0.7562189055 | O79: 72.97581368 | P79: 0.7562189055 | Q79: 71.32954402 | R79: 0.7562189055 | S79: 71.31944825 | T79: 0.7562189055
A80: 146.2983678 | B80: 0.7661691542 | C80: 87.86929786 | D80: 0.7661691542 | E80: 174.3609241 | F80: 0.7661691542 | G80: 173.1115646 | H80: 0.7661691542 | I80: 174.967601 | J80: 0.7661691542 | K80: 100 | L80: 0.7661691542 | M80: 158.42907 | N80: 0.7661691542 | O80: 73.21826357 | P80: 0.7661691542 | Q80: 71.65653144 | R80: 0.7661691542 | S80: 71.40934613 | T80: 0.7661691542
A81: 148.4138822 | B81: 0.776119403 | C81: 89.26553735 | D81: 0.776119403 | E81: 175.0782113 | F81: 0.776119403 | G81: 176.0524616 | H81: 0.776119403 | I81: 177.2197096 | J81: 0.776119403 | K81: 100 | L81: 0.776119403 | M81: 159.1483449 | N81: 0.776119403 | O81: 73.44805994 | P81: 0.776119403 | Q81: 71.70342835 | R81: 0.776119403 | S81: 71.74456463 | T81: 0.776119403
A82: 150.2250013 | B82: 0.7860696517 | C82: 90.46087595 | D82: 0.7860696517 | E82: 176.8170747 | F82: 0.7860696517 | G82: 178.4138822 | H82: 0.7860696517 | I82: 178.8354411 | J82: 0.7860696517 | K82: 100 | L82: 0.7860696517 | M82: 159.7641253 | N82: 0.7860696517 | O82: 73.75969536 | P82: 0.7860696517 | Q82: 71.9480196 | R82: 0.7860696517 | S82: 71.97461712 | T82: 0.7860696517
A83: 150.6582221 | B83: 0.7960199005 | C83: 90.74680166 | D83: 0.7960199005 | E83: 177.3206153 | F83: 0.7960199005 | G83: 180.2250013 | H83: 0.7960199005 | I83: 179.6257136 | J83: 0.7960199005 | K83: 100 | L83: 0.7960199005 | M83: 159.9114204 | N83: 0.7960199005 | O83: 74.04362849 | P83: 0.7960199005 | Q83: 72.07429751 | R83: 0.7960199005 | S83: 72.1312531 | T83: 0.7960199005
A84: 156.1228858 | B84: 0.8059701493 | C84: 94.35347973 | D84: 0.8059701493 | E84: 179.7169311 | F84: 0.8059701493 | G84: 186.1228858 | H84: 0.8059701493 | I84: 183.0045049 | J84: 0.8059701493 | K84: 100 | L84: 0.8059701493 | M84: 161.7694061 | N84: 0.8059701493 | O84: 74.07934806 | P84: 0.8059701493 | Q84: 72.12221046 | R84: 0.8059701493 | S84: 72.37581063 | T84: 0.8059701493
A85: 159.942271 | B85: 0.815920398 | C85: 96.87427396 | D85: 0.815920398 | E85: 187.756888 | F85: 0.815920398 | G85: 188.524281 | H85: 0.815920398 | I85: 187.8243674 | J85: 0.815920398 | K85: 100 | L85: 0.815920398 | M85: 163.0679971 | N85: 0.815920398 | O85: 74.2740869 | P85: 0.815920398 | Q85: 72.36068516 | R85: 0.815920398 | S85: 72.62988371 | T85: 0.815920398
A86: 175.9760426 | B86: 0.8258706468 | C86: 107.4565632 | D86: 0.8258706468 | E86: 200.8061136 | F86: 0.8258706468 | G86: 204.8454108 | H86: 0.8258706468 | I86: 203.5191759 | J86: 0.8258706468 | K86: 100 | L86: 0.8258706468 | M86: 168.5194794 | N86: 0.8258706468 | O86: 74.60972798 | P86: 0.8258706468 | Q86: 72.403037 | R86: 0.8258706468 | S86: 73.09033318 | T86: 0.8258706468
A87: 178.7716728 | B87: 0.8358208955 | C87: 109.3016791 | D87: 0.8358208955 | E87: 204.0515777 | F87: 0.8358208955 | G87: 207.3856945 | H87: 0.8358208955 | I87: 205.0818101 | J87: 0.8358208955 | K87: 100 | L87: 0.8358208955 | M87: 169.4699937 | N87: 0.8358208955 | O87: 74.90918699 | P87: 0.8358208955 | Q87: 72.66604044 | R87: 0.8358208955 | S87: 73.34006918 | T87: 0.8358208955
A88: 179.5329121 | B88: 0.8457711443 | C88: 109.804097 | D88: 0.8457711443 | E88: 205.5725425 | F88: 0.8457711443 | G88: 209.4424803 | H88: 0.8457711443 | I88: 207.2929285 | J88: 0.8457711443 | K88: 100 | L88: 0.8457711443 | M88: 169.728815 | N88: 0.8457711443 | O88: 75.18693445 | P88: 0.8457711443 | Q88: 72.73126378 | R88: 0.8457711443 | S88: 73.59953872 | T88: 0.8457711443
A89: 185.935806 | B89: 0.855721393 | C89: 114.0300071 | D89: 0.855721393 | E89: 209.6039229 | F89: 0.855721393 | G89: 215.1747424 | H89: 0.855721393 | I89: 212.3750743 | J89: 0.855721393 | K89: 100 | L89: 0.855721393 | M89: 171.905799 | N89: 0.855721393 | O89: 75.53140633 | P89: 0.855721393 | Q89: 72.91271827 | R89: 0.855721393 | S89: 73.71763832 | T89: 0.855721393
A90: 189.3455475 | B90: 0.8656716418 | C90: 116.2804365 | D90: 0.8656716418 | E90: 211.0376849 | F90: 0.8656716418 | G90: 218.491982 | H90: 0.8656716418 | I90: 216.0947479 | J90: 0.8656716418 | K90: 100 | L90: 0.8656716418 | M90: 173.0651111 | N90: 0.8656716418 | O90: 75.57571659 | P90: 0.8656716418 | Q90: 73.25067219 | R90: 0.8656716418 | S90: 74.20404487 | T90: 0.8656716418
A91: 193.6201922 | B91: 0.8756218905 | C91: 119.101702 | D91: 0.8756218905 | E91: 220.6878588 | F91: 0.8756218905 | G91: 220.4397042 | H91: 0.8756218905 | I91: 220.0206535 | J91: 0.8756218905 | K91: 100 | L91: 0.8756218905 | M91: 174.5184903 | N91: 0.8756218905 | O91: 75.81626971 | P91: 0.8756218905 | Q91: 73.450685 | R91: 0.8756218905 | S91: 75.04056202 | T91: 0.8756218905
A92: 198.989335 | B92: 0.8855721393 | C92: 122.6453362 | D92: 0.8855721393 | E92: 228.5942118 | F92: 0.8855721393 | G92: 223.6201922 | H92: 0.8855721393 | I92: 222.4795754 | J92: 0.8855721393 | K92: 100 | L92: 0.8855721393 | M92: 176.3439988 | N92: 0.8855721393 | O92: 76.09121959 | P92: 0.8855721393 | Q92: 73.55496806 | R92: 0.8855721393 | S92: 75.53106004 | T92: 0.8855721393
A93: 203.2447824 | B93: 0.8955223881 | C93: 125.4539315 | D93: 0.8955223881 | E93: 231.2150971 | F93: 0.8955223881 | G93: 233.2447824 | H93: 0.8955223881 | I93: 228.5744474 | J93: 0.8955223881 | K93: 100 | L93: 0.8955223881 | M93: 177.7908509 | N93: 0.8955223881 | O93: 76.21813214 | P93: 0.8955223881 | Q93: 73.8749938 | R93: 0.8955223881 | S93: 75.73317317 | T93: 0.8955223881
A94: 209.2427563 | B94: 0.9054726368 | C94: 129.4125942 | D94: 0.9054726368 | E94: 234.9973947 | F94: 0.9054726368 | G94: 235.6628196 | H94: 0.9054726368 | I94: 233.7116962 | J94: 0.9054726368 | K94: 100 | L94: 0.9054726368 | M94: 179.830162 | N94: 0.9054726368 | O94: 76.33188307 | P94: 0.9054726368 | Q94: 74.23332064 | R94: 0.9054726368 | S94: 76.20495703 | T94: 0.9054726368
A95: 212.9829396 | B95: 0.9154228856 | C95: 131.8811152 | D95: 0.9154228856 | E95: 236.7732865 | F95: 0.9154228856 | G95: 241.284808 | H95: 0.9154228856 | I95: 237.4190418 | J95: 0.9154228856 | K95: 100 | L95: 0.9154228856 | M95: 181.1018244 | N95: 0.9154228856 | O95: 76.833811 | P95: 0.9154228856 | Q95: 74.66937202 | R95: 0.9154228856 | S95: 76.50975961 | T95: 0.9154228856
A96: 215.9214662 | B96: 0.9253731343 | C96: 133.8205428 | D96: 0.9253731343 | E96: 238.2581061 | F96: 0.9253731343 | G96: 243.5629656 | H96: 0.9253731343 | I96: 239.3739945 | J96: 0.9253731343 | K96: 100 | L96: 0.9253731343 | M96: 182.1009234 | N96: 0.9253731343 | O96: 77.76765533 | P96: 0.9253731343 | Q96: 75.0593212 | R96: 0.9253731343 | S96: 76.82945656 | T96: 0.9253731343
A97: 217.6082474 | B97: 0.9353233831 | C97: 134.9338184 | D97: 0.9353233831 | E97: 243.1572341 | F97: 0.9353233831 | G97: 247.3717103 | H97: 0.9353233831 | I97: 241.4032904 | J97: 0.9353233831 | K97: 100 | L97: 0.9353233831 | M97: 182.674429 | N97: 0.9353233831 | O97: 78.30727618 | P97: 0.9353233831 | Q97: 75.33694362 | R97: 0.9353233831 | S97: 76.9282102 | T97: 0.9353233831
A98: 223.2910555 | B98: 0.9452736318 | C98: 138.6844717 | D98: 0.9452736318 | E98: 247.0729233 | F98: 0.9452736318 | G98: 248.9439432 | H98: 0.9452736318 | I98: 245.0933508 | J98: 0.9452736318 | K98: 100 | L98: 0.9452736318 | M98: 184.6065838 | N98: 0.9452736318 | O98: 79.11360418 | P98: 0.9452736318 | Q98: 75.52178882 | R98: 0.9452736318 | S98: 77.62909576 | T98: 0.9452736318
A99: 232.4040351 | B99: 0.9552238806 | C99: 144.6990383 | D99: 0.9552238806 | E99: 257.745026 | F99: 0.9552238806 | G99: 258.1707145 | H99: 0.9552238806 | I99: 254.0860583 | J99: 0.9552238806 | K99: 100 | L99: 0.9552238806 | M99: 187.7049968 | N99: 0.9552238806 | O99: 80.57701918 | P99: 0.9552238806 | Q99: 76.3190602 | R99: 0.9552238806 | S99: 78.29985878 | T99: 0.9552238806
A100: 240.1120586 | B100: 0.9651741294 | C100: 149.7863337 | D100: 0.9651741294 | E100: 258.6817273 | F100: 0.9651741294 | G100: 266.3936892 | H100: 0.9651741294 | I100: 261.7284227 | J100: 0.9651741294 | K100: 100 | L100: 0.9651741294 | M100: 190.3257248 | N100: 0.9651741294 | O100: 81.43033126 | P100: 0.9651741294 | Q100: 77.05549439 | R100: 0.9651741294 | S100: 78.38363587 | T100: 0.9651741294
A101: 240.8006878 | B101: 0.9751243781 | C101: 150.240829 | D101: 0.9751243781 | E101: 265.2686722 | F101: 0.9751243781 | G101: 270.1120586 | H101: 0.9751243781 | I101: 262.1881816 | J101: 0.9751243781 | K101: 100 | L101: 0.9751243781 | M101: 190.5598588 | N101: 0.9751243781 | O101: 81.64810906 | P101: 0.9751243781 | Q101: 77.52052651 | R101: 0.9751243781 | S101: 78.61250619 | T101: 0.9751243781
A102: 287.162813 | B102: 0.9950248756 | C102: 180.8398317 | D102: 0.9950248756 | E102: 311.6314067 | F102: 0.9950248756 | G102: 309.6422865 | H102: 0.9950248756 | I102: 303.7230932 | J102: 0.9950248756 | K102: 100 | L102: 0.9950248756 | M102: 206.3229813 | N102: 0.9950248756 | O102: 83.04896914 | P102: 0.9950248756 | Q102: 79.10233423 | R102: 0.9950248756 | S102: 84.62378415 | T102: 0.9950248756
A103: 7922.995744 | B103: 49.26865672 | C103: 4360.4147 | D103: 49.26865672 | E103: 10753.37772 | F103: 49.26865672 | G103: 10831.0384 | H103: 49.26865672 | I103: 10804.14721 | J103: 49.26865672 | K103: 10000 | L103: 49.26865672 | M103: 13562.58104 | N103: 49.26865672 | O103: 7178.333061 | P103: 49.26865672 | Q103: 7097.999732 | R103: 49.26865672 | S103: 7124.955621 | T103: 49.26865672
C106: cash rent | D106: ='Calc for flex leases'!H14 -> 69
C107: Property taxes | D107: 0
A109: Land valuation part
B110: interest rate | C110: 75% likely | D110: 50% likely | E110: 25% likely
B111: 0.01 | C111: =($A$28+$D$106-$D$107)/B111 -> 8197.658778 | D111: =($A$53+$D$106-$D$107)/$B111 -> 15064.78123 | E111: =($A$78+$D$106-$D$107)/$B111 -> 21330.69386
B112: 0.02 | C112: =($A$28+$D$106-$D$107)/B112 -> 4098.829389 | D112: =($A$53+$D$106-$D$107)/$B112 -> 7532.390617 | E112: =($A$78+$D$106-$D$107)/$B112 -> 10665.34693
B113: 0.03 | C113: 2732.552926 | D113: 5021.593745 | E113: 7110.231286
B114: 0.04 | C114: 2049.414694 | D114: 3766.195309 | E114: 5332.673465
B115: 0.05 | C115: 1639.531756 | D115: 3012.956247 | E115: 4266.138772
B116: 0.06 | C116: 1366.276463 | D116: 2510.796872 | E116: 3555.115643
B117: 0.07 | C117: 1171.094111 | D117: 2152.111605 | E117: 3047.24198
B118: 0.08 | C118: 1024.707347 | D118: 1883.097654 | E118: 2666.336732
B119: 0.09 | C119: 910.8509753 | D119: 1673.864582 | E119: 2370.077095
B120: 0.1 | C120: 819.7658778 | D120: =($A$53+$D$106-$D$107)/$B120 -> 1506.478123 | E120: 2133.069386

Sheet Sheet7 (hidden)

Sheet Output variables (hidden)
W25: Cumulative distribution data,
W26: Tenant - cash | Y26: Tenant - share | AA26: Tenant - Price flex | AC26: Tenant - Yld flex | AE26: Tenant - Revenue flex | AG26: LL - cash | AI26: LL - share | AK26: LL - Price flex | AM26: LL - Yield flex | AO26: LL - Revenue flex
W27: -120.8240328 | X27: 0.004975124378 | Y27: -88.43148655 | Z27: 0.004975124378 | AA27: -90.8240328 | AB27: 0.004975124378 | AC27: -90.8240328 | AD27: 0.004975124378 | AE27: -90.8240328 | AF27: 0.004975124378 | AG27: 100 | AH27: 0.004975124378 | AI27: 67.60745376 | AJ27: 0.004975124378 | AK27: 70 | AL27: 0.004975124378 | AM27: 70 | AN27: 0.004975124378 | AO27: 70 | AP27: 0.004975124378
W28: -104.2884754 | X28: 0.009950248756 | Y28: -77.51801868 | Z28: 0.009950248756 | AA28: -74.2884754 | AB28: 0.009950248756 | AC28: -74.2884754 | AD28: 0.009950248756 | AE28: -74.2884754 | AF28: 0.009950248756 | AG28: 100 | AH28: 0.009950248756 | AI28: 73.22954327 | AJ28: 0.009950248756 | AK28: 70 | AL28: 0.009950248756 | AM28: 70 | AN28: 0.009950248756 | AO28: 70 | AP28: 0.009950248756
W29: -88.37423892 | X29: 0.01990049751 | Y29: -67.0146226 | Z29: 0.01990049751 | AA29: -58.37423892 | AB29: 0.01990049751 | AC29: -58.37423892 | AD29: 0.01990049751 | AE29: -58.37423892 | AF29: 0.01990049751 | AG29: 100 | AH29: 0.01990049751 | AI29: 78.64038367 | AJ29: 0.01990049751 | AK29: 70 | AL29: 0.01990049751 | AM29: 70 | AN29: 0.01990049751 | AO29: 70 | AP29: 0.01990049751
W30: -74.37109184 | X30: 0.02985074627 | Y30: -57.77254552 | Z30: 0.02985074627 | AA30: -44.37109184 | AB30: 0.02985074627 | AC30: -44.37109184 | AD30: 0.02985074627 | AE30: -44.37109184 | AF30: 0.02985074627 | AG30: 100 | AH30: 0.02985074627 | AI30: 83.40145368 | AJ30: 0.02985074627 | AK30: 70 | AL30: 0.02985074627 | AM30: 70 | AN30: 0.02985074627 | AO30: 70 | AP30: 0.02985074627
W31: -74.00603713 | X31: 0.03980099502 | Y31: -57.53160942 | Z31: 0.03980099502 | AA31: -44.00603713 | AB31: 0.03980099502 | AC31: -44.00603713 | AD31: 0.03980099502 | AE31: -44.00603713 | AF31: 0.03980099502 | AG31: 100 | AH31: 0.03980099502 | AI31: 83.52557228 | AJ31: 0.03980099502 | AK31: 70 | AL31: 0.03980099502 | AM31: 70 | AN31: 0.03980099502 | AO31: 70 | AP31: 0.03980099502
W32: -60.82232574 | X32: 0.04975124378 | Y32: -48.8303599 | Z32: 0.04975124378 | AA32: -30.82232574 | AB32: 0.04975124378 | AC32: -30.82232574 | AD32: 0.04975124378 | AE32: -30.82232574 | AF32: 0.04975124378 | AG32: 100 | AH32: 0.04975124378 | AI32: 88.00803416 | AJ32: 0.04975124378 | AK32: 70 | AL32: 0.04975124378 | AM32: 70 | AN32: 0.04975124378 | AO32: 70 | AP32: 0.04975124378
W33: -51.16156331 | X33: 0.05970149254 | Y33: -42.45425669 | Z33: 0.05970149254 | AA33: -21.16156331 | AB33: 0.05970149254 | AC33: -21.16156331 | AD33: 0.05970149254 | AE33: -21.16156331 | AF33: 0.05970149254 | AG33: 100 | AH33: 0.05970149254 | AI33: 91.29269338 | AJ33: 0.05970149254 | AK33: 70 | AL33: 0.05970149254 | AM33: 70 | AN33: 0.05970149254 | AO33: 70 | AP33: 0.05970149254
W34: -49.0844034 | X34: 0.06965174129 | Y34: -41.08333115 | Z34: 0.06965174129 | AA34: -19.0844034 | AB34: 0.06965174129 | AC34: -19.0844034 | AD34: 0.06965174129 | AE34: -19.0844034 | AF34: 0.06965174129 | AG34: 100 | AH34: 0.06965174129 | AI34: 91.99892775 | AJ34: 0.06965174129 | AK34: 70 | AL34: 0.06965174129 | AM34: 70 | AN34: 0.06965174129 | AO34: 70 | AP34: 0.06965174129
W35: -46.62297431 | X35: 0.07960199005 | Y35: -39.45878796 | Z35: 0.07960199005 | AA35: -16.62297431 | AB35: 0.07960199005 | AC35: -16.62297431 | AD35: 0.07960199005 | AE35: -16.62297431 | AF35: 0.07960199005 | AG35: 100 | AH35: 0.07960199005 | AI35: 92.83581364 | AJ35: 0.07960199005 | AK35: 70 | AL35: 0.07960199005 | AM35: 70 | AN35: 0.07960199005 | AO35: 70 | AP35: 0.07960199005
W36: -38.72976906 | X36: 0.08955223881 | Y36: -34.24927249 | Z36: 0.08955223881 | AA36: -8.729769055 | AB36: 0.08955223881 | AC36: -9.012940007 | AD36: 0.08955223881 | AE36: -8.729769055 | AF36: 0.08955223881 | AG36: 100 | AH36: 0.08955223881 | AI36: 95.51950343 | AJ36: 0.08955223881 | AK36: 70 | AL36: 0.08955223881 | AM36: 70 | AN36: 0.08955223881 | AO36: 70 | AP36: 0.08955223881
W37: -36.34939379 | X37: 0.09950248756 | Y37: -32.67822481 | Z37: 0.09950248756 | AA37: -6.349393791 | AB37: 0.09950248756 | AC37: -6.349393791 | AD37: 0.09950248756 | AE37: -6.349393791 | AF37: 0.09950248756 | AG37: 100 | AH37: 0.09950248756 | AI37: 96.32883102 | AJ37: 0.09950248756 | AK37: 70 | AL37: 0.09950248756 | AM37: 70 | AN37: 0.09950248756 | AO37: 70 | AP37: 0.09950248756
W38: -30.8300177 | X38: 0.1094527363 | Y38: -29.03543659 | Z38: 0.1094527363 | AA38: -0.8300176972 | AB38: 0.1094527363 | AC38: -0.8300176972 | AD38: 0.1094527363 | AE38: -0.8300176972 | AF38: 0.1094527363 | AG38: 100 | AH38: 0.1094527363 | AI38: 98.20541889 | AJ38: 0.1094527363 | AK38: 70 | AL38: 0.1094527363 | AM38: 70 | AN38: 0.1094527363 | AO38: 70 | AP38: 0.1094527363
W39: -29.85804148 | X39: 0.1194029851 | Y39: -28.39393228 | Z39: 0.1194029851 | AA39: 0.1419585219 | AB39: 0.1194029851 | AC39: 0.1419585219 | AD39: 0.1194029851 | AE39: 0.1419585219 | AF39: 0.1194029851 | AG39: 100 | AH39: 0.1194029851 | AI39: 98.53589081 | AJ39: 0.1194029851 | AK39: 70 | AL39: 0.1194029851 | AM39: 70 | AN39: 0.1194029851 | AO39: 70 | AP39: 0.1194029851
W40: -23.44138443 | X40: 0.1293532338 | Y40: -24.15893864 | Z40: 0.1293532338 | AA40: 6.558615565 | AB40: 0.1293532338 | AC40: 6.558615565 | AD40: 0.1293532338 | AE40: 6.558615565 | AF40: 0.1293532338 | AG40: 100 | AH40: 0.1293532338 | AI40: 100.7175542 | AJ40: 0.1293532338 | AK40: 70 | AL40: 0.1293532338 | AM40: 70 | AN40: 0.1293532338 | AO40: 70 | AP40: 0.1293532338
W41: -19.38643224 | X41: 0.1393034826 | Y41: -21.48267019 | Z41: 0.1393034826 | AA41: 10.61356776 | AB41: 0.1393034826 | AC41: 10.61356776 | AD41: 0.1393034826 | AE41: 10.61356776 | AF41: 0.1393034826 | AG41: 100 | AH41: 0.1393034826 | AI41: 102.0962379 | AJ41: 0.1393034826 | AK41: 70 | AL41: 0.1393034826 | AM41: 70 | AN41: 0.1393034826 | AO41: 70 | AP41: 0.1393034826
W42: -12.90332296 | X42: 0.1492537313 | Y42: -17.20381806 | Z42: 0.1492537313 | AA42: 17.09667704 | AB42: 0.1492537313 | AC42: 17.09667704 | AD42: 0.1492537313 | AE42: 17.09667704 | AF42: 0.1492537313 | AG42: 100 | AH42: 0.1492537313 | AI42: 104.3004951 | AJ42: 0.1492537313 | AK42: 70 | AL42: 0.1492537313 | AM42: 70 | AN42: 0.1492537313 | AO42: 70 | AP42: 0.1492537313
W43: -3.577283705 | X43: 0.1592039801 | Y43: -11.04863215 | Z43: 0.1592039801 | AA43: 26.4227163 | AB43: 0.1592039801 | AC43: 25.36824845 | AD43: 0.1592039801 | AE43: 26.4227163 | AF43: 0.1592039801 | AG43: 100 | AH43: 0.1592039801 | AI43: 107.4713484 | AJ43: 0.1592039801 | AK43: 70 | AL43: 0.1592039801 | AM43: 70 | AN43: 0.1592039801 | AO43: 70 | AP43: 0.1592039801
W44: -0.8245869711 | X44: 0.1691542289 | Y44: -9.23185231 | Z44: 0.1691542289 | AA44: 29.17541303 | AB44: 0.1691542289 | AC44: 29.11608408 | AD44: 0.1691542289 | AE44: 29.17541303 | AF44: 0.1691542289 | AG44: 100 | AH44: 0.1691542289 | AI44: 108.4072653 | AJ44: 0.1691542289 | AK44: 70 | AL44: 0.1691542289 | AM44: 70 | AN44: 0.1691542289 | AO44: 70 | AP44: 0.1691542289
W45: 0.1584346071 | X45: 0.1791044776 | Y45: -8.583058068 | Z45: 0.1791044776 | AA45: 29.75913002 | AB45: 0.1791044776 | AC45: 30.15843461 | AD45: 0.1791044776 | AE45: 30.15843461 | AF45: 0.1791044776 | AG45: 100 | AH45: 0.1791044776 | AI45: 108.7414927 | AJ45: 0.1791044776 | AK45: 70 | AL45: 0.1791044776 | AM45: 70 | AN45: 0.1791044776 | AO45: 70 | AP45: 0.1791044776
W46: 1.483679673 | X46: 0.1890547264 | Y46: -7.708396325 | Z46: 0.1890547264 | AA46: 31.48367967 | AB46: 0.1890547264 | AC46: 31.48367967 | AD46: 0.1890547264 | AE46: 31.48367967 | AF46: 0.1890547264 | AG46: 100 | AH46: 0.1890547264 | AI46: 109.192076 | AJ46: 0.1890547264 | AK46: 70 | AL46: 0.1890547264 | AM46: 70 | AN46: 0.1890547264 | AO46: 70 | AP46: 0.1890547264
W47: 2.496541373 | X47: 0.1990049751 | Y47: -7.039907603 | Z47: 0.1990049751 | AA47: 32.49654137 | AB47: 0.1990049751 | AC47: 32.49654137 | AD47: 0.1990049751 | AE47: 32.49654137 | AF47: 0.1990049751 | AG47: 100 | AH47: 0.1990049751 | AI47: 109.536449 | AJ47: 0.1990049751 | AK47: 70 | AL47: 0.1990049751 | AM47: 70 | AN47: 0.1990049751 | AO47: 70 | AP47: 0.1990049751
W48: 3.307447442 | X48: 0.2089552239 | Y48: -6.504709597 | Z48: 0.2089552239 | AA48: 33.30744744 | AB48: 0.2089552239 | AC48: 33.30744744 | AD48: 0.2089552239 | AE48: 33.30744744 | AF48: 0.2089552239 | AG48: 100 | AH48: 0.2089552239 | AI48: 109.812157 | AJ48: 0.2089552239 | AK48: 70 | AL48: 0.2089552239 | AM48: 70 | AN48: 0.2089552239 | AO48: 70 | AP48: 0.2089552239
W49: 8.841692778 | X49: 0.2189054726 | Y49: -2.852107675 | Z49: 0.2189054726 | AA49: 37.81166845 | AB49: 0.2189054726 | AC49: 38.84169278 | AD49: 0.2189054726 | AE49: 38.84169278 | AF49: 0.2189054726 | AG49: 100 | AH49: 0.2189054726 | AI49: 111.6938005 | AJ49: 0.2189054726 | AK49: 70 | AL49: 0.2189054726 | AM49: 70 | AN49: 0.2189054726 | AO49: 70 | AP49: 0.2189054726
W50: 10.01421316 | X50: 0.2288557214 | Y50: -2.07824422 | Z50: 0.2288557214 | AA50: 40.01421316 | AB50: 0.2288557214 | AC50: 40.01421316 | AD50: 0.2288557214 | AE50: 40.01421316 | AF50: 0.2288557214 | AG50: 100 | AH50: 0.2288557214 | AI50: 112.0924574 | AJ50: 0.2288557214 | AK50: 70 | AL50: 0.2288557214 | AM50: 70 | AN50: 0.2288557214 | AO50: 70 | AP50: 0.2288557214
W51: 11.61401171 | X51: 0.2388059701 | Y51: -1.022377182 | Z51: 0.2388059701 | AA51: 41.61401171 | AB51: 0.2388059701 | AC51: 41.61401171 | AD51: 0.2388059701 | AE51: 41.61401171 | AF51: 0.2388059701 | AG51: 100 | AH51: 0.2388059701 | AI51: 112.6363889 | AJ51: 0.2388059701 | AK51: 70 | AL51: 0.2388059701 | AM51: 70 | AN51: 0.2388059701 | AO51: 70 | AP51: 0.2388059701
W52: 12.97658778 | X52: 0.2487562189 | Y52: -0.1230769747 | Z52: 0.2487562189 | AA52: 42.97658778 | AB52: 0.2487562189 | AC52: 42.97658778 | AD52: 0.2487562189 | AE52: 42.97658778 | AF52: 0.2487562189 | AG52: 100 | AH52: 0.2487562189 | AI52: 113.0996648 | AJ52: 0.2487562189 | AK52: 70 | AL52: 0.2487562189 | AM52: 70 | AN52: 0.2487562189 | AO52: 70 | AP52: 0.2487562189
W53: 18.61588013 | X53: 0.2587064677 | Y53: 3.598855975 | Z53: 0.2587064677 | AA53: 48.61588013 | AB53: 0.2587064677 | AC53: 48.56546016 | AD53: 0.2587064677 | AE53: 48.61588013 | AF53: 0.2587064677 | AG53: 100 | AH53: 0.2587064677 | AI53: 115.0170242 | AJ53: 0.2587064677 | AK53: 70 | AL53: 0.2587064677 | AM53: 70 | AN53: 0.2587064677 | AO53: 70 | AP53: 0.2587064677
W54: 20.34935772 | X54: 0.2686567164 | Y54: 4.742951188 | Z54: 0.2686567164 | AA54: 49.61600994 | AB54: 0.2686567164 | AC54: 48.98887299 | AD54: 0.2686567164 | AE54: 50.34935772 | AF54: 0.2686567164 | AG54: 100 | AH54: 0.2686567164 | AI54: 115.6064065 | AJ54: 0.2686567164 | AK54: 70 | AL54: 0.2686567164 | AM54: 70 | AN54: 0.2686567164 | AO54: 70 | AP54: 0.2686567164
W55: 21.85581032 | X55: 0.2786069652 | Y55: 5.737209899 | Z55: 0.2786069652 | AA55: 51.85581032 | AB55: 0.2786069652 | AC55: 51.85581032 | AD55: 0.2786069652 | AE55: 51.85581032 | AF55: 0.2786069652 | AG55: 100 | AH55: 0.2786069652 | AI55: 116.1186004 | AJ55: 0.2786069652 | AK55: 70 | AL55: 0.2786069652 | AM55: 70 | AN55: 0.2786069652 | AO55: 70 | AP55: 0.2786069652
W56: 24.70659428 | X56: 0.2885572139 | Y56: 7.618727318 | Z56: 0.2885572139 | AA56: 54.70659428 | AB56: 0.2885572139 | AC56: 54.63570464 | AD56: 0.2885572139 | AE56: 54.70659428 | AF56: 0.2885572139 | AG56: 100 | AH56: 0.2885572139 | AI56: 117.087867 | AJ56: 0.2885572139 | AK56: 70 | AL56: 0.2885572139 | AM56: 70 | AN56: 0.2885572139 | AO56: 70 | AP56: 0.2885572139
W57: 27.46592859 | X57: 0.2985074627 | Y57: 9.439887958 | Z57: 0.2985074627 | AA57: 56.81928643 | AB57: 0.2985074627 | AC57: 57.46592859 | AD57: 0.2985074627 | AE57: 57.46592859 | AF57: 0.2985074627 | AG57: 100 | AH57: 0.2985074627 | AI57: 118.0260406 | AJ57: 0.2985074627 | AK57: 70 | AL57: 0.2985074627 | AM57: 70 | AN57: 0.2985074627 | AO57: 70 | AP57: 0.2985074627
W58: 27.6850512 | X58: 0.3084577114 | Y58: 9.584508883 | Z58: 0.3084577114 | AA58: 57.6850512 | AB58: 0.3084577114 | AC58: 57.6850512 | AD58: 0.3084577114 | AE58: 57.6850512 | AF58: 0.3084577114 | AG58: 100 | AH58: 0.3084577114 | AI58: 118.1005423 | AJ58: 0.3084577114 | AK58: 70 | AL58: 0.3084577114 | AM58: 70 | AN58: 0.3084577114 | AO58: 70 | AP58: 0.3084577114
W59: 33.16540336 | X59: 0.3184079602 | Y59: 13.20154131 | Z59: 0.3184079602 | AA59: 61.08746879 | AB59: 0.3184079602 | AC59: 62.86958905 | AD59: 0.3184079602 | AE59: 63.16540336 | AF59: 0.3184079602 | AG59: 100 | AH59: 0.3184079602 | AI59: 119.9638621 | AJ59: 0.3184079602 | AK59: 70 | AL59: 0.3184079602 | AM59: 70 | AN59: 0.3184079602 | AO59: 70 | AP59: 0.3184079602
W60: 34.94388656 | X60: 0.328358209 | Y60: 14.37534022 | Z60: 0.328358209 | AA60: 64.94388656 | AB60: 0.328358209 | AC60: 64.60994965 | AD60: 0.328358209 | AE60: 64.94388656 | AF60: 0.328358209 | AG60: 100 | AH60: 0.328358209 | AI60: 120.5685463 | AJ60: 0.328358209 | AK60: 70 | AL60: 0.328358209 | AM60: 70 | AN60: 0.328358209 | AO60: 70 | AP60: 0.328358209
W61: 37.18843762 | X61: 0.3383084577 | Y61: 15.85674392 | Z61: 0.3383084577 | AA61: 65.95358341 | AB61: 0.3383084577 | AC61: 67.18843762 | AD61: 0.3383084577 | AE61: 67.18843762 | AF61: 0.3383084577 | AG61: 100 | AH61: 0.3383084577 | AI61: 121.3316937 | AJ61: 0.3383084577 | AK61: 70 | AL61: 0.3383084577 | AM61: 70 | AN61: 0.3383084577 | AO61: 70 | AP61: 0.3383084577
W62: 38.07738236 | X62: 0.3482587065 | Y62: 16.44344745 | Z62: 0.3482587065 | AA62: 67.61039141 | AB62: 0.3482587065 | AC62: 68.00001954 | AD62: 0.3482587065 | AE62: 68.07738236 | AF62: 0.3482587065 | AG62: 100 | AH62: 0.3482587065 | AI62: 121.6339349 | AJ62: 0.3482587065 | AK62: 70 | AL62: 0.3482587065 | AM62: 70 | AN62: 0.3482587065 | AO62: 70 | AP62: 0.3482587065
W63: 39.95504215 | X63: 0.3582089552 | Y63: 17.68270291 | Z63: 0.3582089552 | AA63: 69.95504215 | AB63: 0.3582089552 | AC63: 68.79115881 | AD63: 0.3582089552 | AE63: 69.95504215 | AF63: 0.3582089552 | AG63: 100 | AH63: 0.3582089552 | AI63: 122.2723392 | AJ63: 0.3582089552 | AK63: 70 | AL63: 0.3582089552 | AM63: 70 | AN63: 0.3582089552 | AO63: 70 | AP63: 0.3582089552
W64: 43.05934074 | X64: 0.368159204 | Y64: 19.73153998 | Z64: 0.368159204 | AA64: 73.05934074 | AB64: 0.368159204 | AC64: 72.64877794 | AD64: 0.368159204 | AE64: 73.05934074 | AF64: 0.368159204 | AG64: 100 | AH64: 0.368159204 | AI64: 123.3278008 | AJ64: 0.368159204 | AK64: 70 | AL64: 0.368159204 | AM64: 70 | AN64: 0.368159204 | AO64: 70 | AP64: 0.368159204
W65: 44.29157485 | X65: 0.3781094527 | Y65: 20.54481449 | Z65: 0.3781094527 | AA65: 74.29157485 | AB65: 0.3781094527 | AC65: 74.29157485 | AD65: 0.3781094527 | AE65: 74.29157485 | AF65: 0.3781094527 | AG65: 100 | AH65: 0.3781094527 | AI65: 123.7467604 | AJ65: 0.3781094527 | AK65: 70 | AL65: 0.3781094527 | AM65: 70 | AN65: 0.3781094527 | AO65: 70 | AP65: 0.3781094527
W66: 53.43177863 | X66: 0.3880597015 | Y66: 26.57734898 | Z66: 0.3880597015 | AA66: 83.43177863 | AB66: 0.3880597015 | AC66: 80.47098908 | AD66: 0.3880597015 | AE66: 83.43177863 | AF66: 0.3880597015 | AG66: 100 | AH66: 0.3880597015 | AI66: 126.8544296 | AJ66: 0.3880597015 | AK66: 70 | AL66: 0.3880597015 | AM66: 70 | AN66: 0.3880597015 | AO66: 70 | AP66: 0.3880597015
W67: 56.67269608 | X67: 0.3980099502 | Y67: 28.71635451 | Z67: 0.3980099502 | AA67: 86.67269608 | AB67: 0.3980099502 | AC67: 86.47830318 | AD67: 0.3980099502 | AE67: 86.67269608 | AF67: 0.3980099502 | AG67: 100 | AH67: 0.3980099502 | AI67: 127.9563416 | AJ67: 0.3980099502 | AK67: 70 | AL67: 0.3980099502 | AM67: 70 | AN67: 0.3980099502 | AO67: 70 | AP67: 0.3980099502
W68: 59.21972443 | X68: 0.407960199 | Y68: 30.39739321 | Z68: 0.407960199 | AA68: 89.07995222 | AB68: 0.407960199 | AC68: 89.21972443 | AD68: 0.407960199 | AE68: 89.21972443 | AF68: 0.407960199 | AG68: 100 | AH68: 0.407960199 | AI68: 128.8223312 | AJ68: 0.407960199 | AK68: 70 | AL68: 0.407960199 | AM68: 70 | AN68: 0.407960199 | AO68: 70 | AP68: 0.407960199
W69: 61.15105632 | X69: 0.4179104478 | Y69: 31.67207226 | Z69: 0.4179104478 | AA69: 91.09930649 | AB69: 0.4179104478 | AC69: 91.15105632 | AD69: 0.4179104478 | AE69: 91.15105632 | AF69: 0.4179104478 | AG69: 100 | AH69: 0.4179104478 | AI69: 129.4789841 | AJ69: 0.4179104478 | AK69: 70 | AL69: 0.4179104478 | AM69: 70 | AN69: 0.4179104478 | AO69: 70 | AP69: 0.4179104478
W70: 64.08792225 | X70: 0.4278606965 | Y70: 33.61040377 | Z70: 0.4278606965 | AA70: 94.08792225 | AB70: 0.4278606965 | AC70: 94.08792225 | AD70: 0.4278606965 | AE70: 94.08792225 | AF70: 0.4278606965 | AG70: 100 | AH70: 0.4278606965 | AI70: 130.4775185 | AJ70: 0.4278606965 | AK70: 70 | AL70: 0.4278606965 | AM70: 70 | AN70: 0.4278606965 | AO70: 70 | AP70: 0.4278606965
W71: 66.58096767 | X71: 0.4378109453 | Y71: 35.25581376 | Z71: 0.4378109453 | AA71: 95.83687761 | AB71: 0.4378109453 | AC71: 95.9602127 | AD71: 0.4378109453 | AE71: 96.58096767 | AF71: 0.4378109453 | AG71: 100 | AH71: 0.4378109453 | AI71: 131.3251539 | AJ71: 0.4378109453 | AK71: 70 | AL71: 0.4378109453 | AM71: 70 | AN71: 0.4378109453 | AO71: 70 | AP71: 0.4378109453
W72: 69.04816738 | X72: 0.447761194 | Y72: 36.88416556 | Z72: 0.447761194 | AA72: 96.58096767 | AB72: 0.447761194 | AC72: 99.04816738 | AD72: 0.447761194 | AE72: 99.04816738 | AF72: 0.447761194 | AG72: 100 | AH72: 0.447761194 | AI72: 132.1640018 | AJ72: 0.447761194 | AK72: 70 | AL72: 0.447761194 | AM72: 70 | AN72: 0.447761194 | AO72: 70 | AP72: 0.447761194
W73: 71.50773668 | X73: 0.4577114428 | Y73: 38.5074813 | Z73: 0.4577114428 | AA73: 100.043494 | AB73: 0.4577114428 | AC73: 101.5077367 | AD73: 0.4577114428 | AE73: 101.5077367 | AF73: 0.4577114428 | AG73: 100 | AH73: 0.4577114428 | AI73: 133.0002554 | AJ73: 0.4577114428 | AK73: 70 | AL73: 0.4577114428 | AM73: 70 | AN73: 0.4577114428 | AO73: 70 | AP73: 0.4577114428
W74: 75.32162463 | X74: 0.4676616915 | Y74: 41.02464734 | Z74: 0.4676616915 | AA74: 104.3691997 | AB74: 0.4676616915 | AC74: 105.3216246 | AD74: 0.4676616915 | AE74: 105.3216246 | AF74: 0.4676616915 | AG74: 100 | AH74: 0.4676616915 | AI74: 134.2969773 | AJ74: 0.4676616915 | AK74: 70 | AL74: 0.4676616915 | AM74: 70 | AN74: 0.4676616915 | AO74: 70 | AP74: 0.4676616915
W75: 79.32919452 | X75: 0.4776119403 | Y75: 43.66964348 | Z75: 0.4776119403 | AA75: 106.6276289 | AB75: 0.4776119403 | AC75: 109.3291945 | AD75: 0.4776119403 | AE75: 109.3291945 | AF75: 0.4776119403 | AG75: 100 | AH75: 0.4776119403 | AI75: 135.659551 | AJ75: 0.4776119403 | AK75: 70 | AL75: 0.4776119403 | AM75: 70 | AN75: 0.4776119403 | AO75: 70 | AP75: 0.4776119403
W76: 80.20276897 | X76: 0.4875621891 | Y76: 44.24620261 | Z76: 0.4875621891 | AA76: 110.202769 | AB76: 0.4875621891 | AC76: 110.202769 | AD76: 0.4875621891 | AE76: 110.202769 | AF76: 0.4875621891 | AG76: 100 | AH76: 0.4875621891 | AI76: 135.9565664 | AJ76: 0.4875621891 | AK76: 70 | AL76: 0.4875621891 | AM76: 70 | AN76: 0.4875621891 | AO76: 70 | AP76: 0.4875621891
W77: 81.64781234 | X77: 0.4975124378 | Y77: 45.19993124 | Z77: 0.4975124378 | AA77: 111.6478123 | AB77: 0.4975124378 | AC77: 111.6478123 | AD77: 0.4975124378 | AE77: 111.6478123 | AF77: 0.4975124378 | AG77: 100 | AH77: 0.4975124378 | AI77: 136.4478811 | AJ77: 0.4975124378 | AK77: 70 | AL77: 0.4975124378 | AM77: 70 | AN77: 0.4975124378 | AO77: 70 | AP77: 0.4975124378
W78: 84.96847901 | X78: 0.5074626866 | Y78: 47.39157124 | Z78: 0.5074626866 | AA78: 114.0724233 | AB78: 0.5074626866 | AC78: 113.7343408 | AD78: 0.5074626866 | AE78: 114.968479 | AF78: 0.5074626866 | AG78: 100 | AH78: 0.5074626866 | AI78: 137.5769078 | AJ78: 0.5074626866 | AK78: 70 | AL78: 0.5074626866 | AM78: 70 | AN78: 0.5074626866 | AO78: 70 | AP78: 0.5074626866
W79: 88.82862003 | X79: 0.5174129353 | Y79: 49.93926431 | Z79: 0.5174129353 | AA79: 115.1960934 | AB79: 0.5174129353 | AC79: 117.8634116 | AD79: 0.5174129353 | AE79: 118.82862 | AF79: 0.5174129353 | AG79: 100 | AH79: 0.5174129353 | AI79: 138.8893557 | AJ79: 0.5174129353 | AK79: 70 | AL79: 0.5174129353 | AM79: 70 | AN79: 0.5174129353 | AO79: 70 | AP79: 0.5174129353
W80: 91.28731299 | X80: 0.5273631841 | Y80: 51.56200167 | Z80: 0.5273631841 | AA80: 117.0745944 | AB80: 0.5273631841 | AC80: 119.9249153 | AD80: 0.5273631841 | AE80: 121.287313 | AF80: 0.5273631841 | AG80: 100 | AH80: 0.5273631841 | AI80: 139.7253113 | AJ80: 0.5273631841 | AK80: 70 | AL80: 0.5273631841 | AM80: 70 | AN80: 0.5273631841 | AO80: 70 | AP80: 0.5273631841
W81: 92.12290098 | X81: 0.5373134328 | Y81: 52.11348974 | Z81: 0.5373134328 | AA81: 122.122901 | AB81: 0.5373134328 | AC81: 121.9903379 | AD81: 0.5373134328 | AE81: 122.122901 | AF81: 0.5373134328 | AG81: 100 | AH81: 0.5373134328 | AI81: 140.0094112 | AJ81: 0.5373134328 | AK81: 70 | AL81: 0.5373134328 | AM81: 70 | AN81: 0.5373134328 | AO81: 70 | AP81: 0.5373134328
W82: 94.40371389 | X82: 0.5472636816 | Y82: 53.61882626 | Z82: 0.5472636816 | AA82: 124.4037139 | AB82: 0.5472636816 | AC82: 123.2161135 | AD82: 0.5472636816 | AE82: 124.4037139 | AF82: 0.5472636816 | AG82: 100 | AH82: 0.5472636816 | AI82: 140.7848876 | AJ82: 0.5472636816 | AK82: 70 | AL82: 0.5472636816 | AM82: 70 | AN82: 0.5472636816 | AO82: 70 | AP82: 0.5472636816
W83: 95.92181106 | X83: 0.5572139303 | Y83: 54.62077039 | Z83: 0.5572139303 | AA83: 125.3758027 | AB83: 0.5572139303 | AC83: 125.1627529 | AD83: 0.5572139303 | AE83: 125.3758027 | AF83: 0.5572139303 | AG83: 100 | AH83: 0.5572139303 | AI83: 141.3010407 | AJ83: 0.5572139303 | AK83: 70 | AL83: 0.5572139303 | AM83: 70 | AN83: 0.5572139303 | AO83: 70 | AP83: 0.5572139303
W84: 99.99261259 | X84: 0.5671641791 | Y84: 57.3074994 | Z84: 0.5671641791 | AA84: 126.2444192 | AB84: 0.5671641791 | AC84: 129.9926126 | AD84: 0.5671641791 | AE84: 128.5832665 | AF84: 0.5671641791 | AG84: 100 | AH84: 0.5671641791 | AI84: 142.6851132 | AJ84: 0.5671641791 | AK84: 70.05174983 | AL84: 0.5671641791 | AM84: 70 | AN84: 0.5671641791 | AO84: 70 | AP84: 0.5671641791
W85: 103.6667132 | X85: 0.5771144279 | Y85: 59.73240579 | Z85: 0.5771144279 | AA85: 131.5326313 | AB85: 0.5771144279 | AC85: 133.6667132 | AD85: 0.5771144279 | AE85: 133.6667132 | AF85: 0.5771144279 | AG85: 100 | AH85: 0.5771144279 | AI85: 143.9343074 | AJ85: 0.5771144279 | AK85: 70.08909227 | AL85: 0.5771144279 | AM85: 70 | AN85: 0.5771144279 | AO85: 70 | AP85: 0.5771144279
W86: 107.1710026 | X86: 0.5870646766 | Y86: 62.04523684 | Z86: 0.5870646766 | AA86: 135.4804427 | AB86: 0.5870646766 | AC86: 135.9695463 | AD86: 0.5870646766 | AE86: 137.0686501 | AF86: 0.5870646766 | AG86: 100 | AH86: 0.5870646766 | AI86: 145.1257658 | AJ86: 0.5870646766 | AK86: 70.19898603 | AL86: 0.5870646766 | AM86: 70 | AN86: 0.5870646766 | AO86: 70 | AP86: 0.5870646766
W87: 107.8119061 | X87: 0.5970149254 | Y87: 62.46823312 | Z87: 0.5970149254 | AA87: 137.7797867 | AB87: 0.5970149254 | AC87: 136.7589838 | AD87: 0.5970149254 | AE87: 137.8119061 | AF87: 0.5970149254 | AG87: 100 | AH87: 0.5970149254 | AI87: 145.343673 | AJ87: 0.5970149254 | AK87: 70.35420181 | AL87: 0.5970149254 | AM87: 70 | AN87: 0.5970149254 | AO87: 70 | AP87: 0.5970149254
W88: 110.1151089 | X88: 0.6069651741 | Y88: 63.98834698 | Z88: 0.6069651741 | AA88: 139.229616 | AB88: 0.6069651741 | AC88: 137.8119061 | AD88: 0.6069651741 | AE88: 140.1151089 | AF88: 0.6069651741 | AG88: 100 | AH88: 0.6069651741 | AI88: 146.1267619 | AJ88: 0.6069651741 | AK88: 70.45916833 | AL88: 0.6069651741 | AM88: 70 | AN88: 0.6069651741 | AO88: 70 | AP88: 0.6069651741
W89: 111.7227631 | X89: 0.6169154229 | Y89: 65.04939874 | Z89: 0.6169154229 | AA89: 141.7227631 | AB89: 0.6169154229 | AC89: 140.1151089 | AD89: 0.6169154229 | AE89: 141.7227631 | AF89: 0.6169154229 | AG89: 100 | AH89: 0.6169154229 | AI89: 146.6733644 | AJ89: 0.6169154229 | AK89: 70.64664215 | AL89: 0.6169154229 | AM89: 70 | AN89: 0.6169154229 | AO89: 70 | AP89: 0.6169154229
W90: 117.7767085 | X90: 0.6268656716 | Y90: 69.04500269 | Z90: 0.6268656716 | AA90: 144.1072755 | AB90: 0.6268656716 | AC90: 145.3736715 | AD90: 0.6268656716 | AE90: 147.7767085 | AF90: 0.6268656716 | AG90: 100 | AH90: 0.6268656716 | AI90: 148.7317058 | AJ90: 0.6268656716 | AK90: 70.73334778 | AL90: 0.6268656716 | AM90: 70 | AN90: 0.6268656716 | AO90: 70 | AP90: 0.6268656716
W91: 119.5916541 | X91: 0.6368159204 | Y91: 70.24286681 | Z91: 0.6368159204 | AA91: 145.5228073 | AB91: 0.6368159204 | AC91: 149.28221 | AD91: 0.6368159204 | AE91: 149.5916541 | AF91: 0.6368159204 | AG91: 100 | AH91: 0.6368159204 | AI91: 149.3487873 | AJ91: 0.6368159204 | AK91: 70.88549292 | AL91: 0.6368159204 | AM91: 70 | AN91: 0.6368159204 | AO91: 70 | AP91: 0.6368159204
W92: 120.4826748 | X92: 0.6467661692 | Y92: 70.83094048 | Z92: 0.6467661692 | AA92: 147.3175401 | AB92: 0.6467661692 | AC92: 149.5916541 | AD92: 0.6467661692 | AE92: 150.4826748 | AF92: 0.6467661692 | AG92: 100 | AH92: 0.6467661692 | AI92: 149.6517344 | AJ92: 0.6467661692 | AK92: 70.95623156 | AL92: 0.6467661692 | AM92: 70 | AN92: 0.6467661692 | AO92: 70 | AP92: 0.6467661692
W93: 121.9402126 | X93: 0.6567164179 | Y93: 71.79291542 | Z93: 0.6567164179 | AA93: 149.8462654 | AB93: 0.6567164179 | AC93: 150.4826748 | AD93: 0.6567164179 | AE93: 151.5363523 | AF93: 0.6567164179 | AG93: 100 | AH93: 0.6567164179 | AI93: 150.1472972 | AJ93: 0.6567164179 | AK93: 71.03002433 | AL93: 0.6567164179 | AM93: 70.03681849 | AN93: 0.6567164179 | AO93: 70 | AP93: 0.6567164179
W94: 122.8465866 | X94: 0.6666666667 | Y94: 72.39112227 | Z94: 0.6666666667 | AA94: 152.8349189 | AB94: 0.6666666667 | AC94: 151.9402126 | AD94: 0.6666666667 | AE94: 152.8465866 | AF94: 0.6666666667 | AG94: 100 | AH94: 0.6666666667 | AI94: 150.4554644 | AJ94: 0.6666666667 | AK94: 71.16099658 | AL94: 0.6666666667 | AM94: 70.07088964 | AN94: 0.6666666667 | AO94: 70 | AP94: 0.6666666667
W95: 125.10122 | X95: 0.6766169154 | Y95: 73.87918029 | Z95: 0.6766169154 | AA95: 153.4051606 | AB95: 0.6766169154 | AC95: 154.8021647 | AD95: 0.6766169154 | AE95: 154.8021647 | AF95: 0.6766169154 | AG95: 100 | AH95: 0.6766169154 | AI95: 151.2220397 | AJ95: 0.6766169154 | AK95: 71.3304034 | AL95: 0.6766169154 | AM95: 70.1943929 | AN95: 0.6766169154 | AO95: 70 | AP95: 0.6766169154
W96: 126.8547046 | X96: 0.6865671642 | Y96: 75.03648013 | Z96: 0.6865671642 | AA96: 155.10122 | AB96: 0.6865671642 | AC96: 156.8547046 | AD96: 0.6865671642 | AE96: 156.8322292 | AF96: 0.6865671642 | AG96: 100 | AH96: 0.6865671642 | AI96: 151.8182245 | AJ96: 0.6865671642 | AK96: 71.62305708 | AL96: 0.6865671642 | AM96: 70.31255266 | AN96: 0.6865671642 | AO96: 70 | AP96: 0.6865671642
W97: 128.5985081 | X97: 0.6965174129 | Y97: 76.18739043 | Z97: 0.6965174129 | AA97: 156.225673 | AB97: 0.6965174129 | AC97: 158.5985081 | AD97: 0.6965174129 | AE97: 158.5985081 | AF97: 0.6965174129 | AG97: 100 | AH97: 0.6965174129 | AI97: 152.4111177 | AJ97: 0.6965174129 | AK97: 71.79215155 | AL97: 0.6965174129 | AM97: 70.41201881 | AN97: 0.6965174129 | AO97: 70 | AP97: 0.6965174129
W98: 133.3480659 | X98: 0.7064676617 | Y98: 79.3220986 | Z98: 0.7064676617 | AA98: 163.3480659 | AB98: 0.7064676617 | AC98: 161.4939785 | AD98: 0.7064676617 | AE98: 163.3480659 | AF98: 0.7064676617 | AG98: 100 | AH98: 0.7064676617 | AI98: 154.0259673 | AJ98: 0.7064676617 | AK98: 71.97410967 | AL98: 0.7064676617 | AM98: 70.57877489 | AN98: 0.7064676617 | AO98: 70.02247542 | AP98: 0.7064676617
W99: 136.1215085 | X99: 0.7164179104 | Y99: 81.15257073 | Z99: 0.7164179104 | AA99: 165.7288251 | AB99: 0.7164179104 | AC99: 162.6708235 | AD99: 0.7164179104 | AE99: 164.4465383 | AF99: 0.7164179104 | AG99: 100 | AH99: 0.7164179104 | AI99: 154.9689378 | AJ99: 0.7164179104 | AK99: 72.15569306 | AL99: 0.7164179104 | AM99: 70.65226129 | AN99: 0.7164179104 | AO99: 70.29218492 | AP99: 0.7164179104
W100: 138.3334983 | X100: 0.7263681592 | Y100: 82.61248394 | Z100: 0.7263681592 | AA100: 168.3027236 | AB100: 0.7263681592 | AC100: 165.0520514 | AD100: 0.7263681592 | AE100: 168.3334983 | AF100: 0.7263681592 | AG100: 100 | AH100: 0.7263681592 | AI100: 155.7210143 | AJ100: 0.7263681592 | AK100: 72.49961916 | AL100: 0.7263681592 | AM100: 70.78892683 | AN100: 0.7263681592 | AO100: 70.68544524 | AP100: 0.7263681592
W101: 143.1115646 | X101: 0.736318408 | Y101: 85.76600773 | Z101: 0.736318408 | AA101: 169.0212442 | AB101: 0.736318408 | AC101: 171.2183357 | AD101: 0.736318408 | AE101: 170.9803115 | AF101: 0.736318408 | AG101: 100 | AH101: 0.736318408 | AI101: 157.3455569 | AJ101: 0.736318408 | AK101: 72.69155977 | AL101: 0.736318408 | AM101: 70.9652084 | AN101: 0.736318408 | AO101: 71.03250849 | AP101: 0.736318408
W102: 144.3069386 | X102: 0.7462686567 | Y102: 86.55495456 | Z102: 0.7462686567 | AA102: 173.0051059 | AB102: 0.7462686567 | AC102: 172.226415 | AD102: 0.7462686567 | AE102: 173.6684841 | AF102: 0.7462686567 | AG102: 100 | AH102: 0.7462686567 | AI102: 157.751984 | AJ102: 0.7462686567 | AK102: 72.90438598 | AL102: 0.7462686567 | AM102: 71.13063176 | AN102: 0.7462686567 | AO102: 71.06039938 | AP102: 0.7462686567
W103: 144.967601 | X103: 0.7562189055 | Y103: 86.99099176 | Z103: 0.7562189055 | AA103: 173.2820452 | AB103: 0.7562189055 | AC103: 172.9420809 | AD103: 0.7562189055 | AE103: 174.3069386 | AF103: 0.7562189055 | AG103: 100 | AH103: 0.7562189055 | AI103: 157.9766093 | AJ103: 0.7562189055 | AK103: 72.97581368 | AL103: 0.7562189055 | AM103: 71.32954402 | AN103: 0.7562189055 | AO103: 71.31944825 | AP103: 0.7562189055
W104: 146.2983678 | X104: 0.7661691542 | Y104: 87.86929786 | Z104: 0.7661691542 | AA104: 174.3609241 | AB104: 0.7661691542 | AC104: 173.1115646 | AD104: 0.7661691542 | AE104: 174.967601 | AF104: 0.7661691542 | AG104: 100 | AH104: 0.7661691542 | AI104: 158.42907 | AJ104: 0.7661691542 | AK104: 73.21826357 | AL104: 0.7661691542 | AM104: 71.65653144 | AN104: 0.7661691542 | AO104: 71.40934613 | AP104: 0.7661691542
W105: 148.4138822 | X105: 0.776119403 | Y105: 89.26553735 | Z105: 0.776119403 | AA105: 175.0782113 | AB105: 0.776119403 | AC105: 176.0524616 | AD105: 0.776119403 | AE105: 177.2197096 | AF105: 0.776119403 | AG105: 100 | AH105: 0.776119403 | AI105: 159.1483449 | AJ105: 0.776119403 | AK105: 73.44805994 | AL105: 0.776119403 | AM105: 71.70342835 | AN105: 0.776119403 | AO105: 71.74456463 | AP105: 0.776119403
W106: 150.2250013 | X106: 0.7860696517 | Y106: 90.46087595 | Z106: 0.7860696517 | AA106: 176.8170747 | AB106: 0.7860696517 | AC106: 178.4138822 | AD106: 0.7860696517 | AE106: 178.8354411 | AF106: 0.7860696517 | AG106: 100 | AH106: 0.7860696517 | AI106: 159.7641253 | AJ106: 0.7860696517 | AK106: 73.75969536 | AL106: 0.7860696517 | AM106: 71.9480196 | AN106: 0.7860696517 | AO106: 71.97461712 | AP106: 0.7860696517
W107: 150.6582221 | X107: 0.7960199005 | Y107: 90.74680166 | Z107: 0.7960199005 | AA107: 177.3206153 | AB107: 0.7960199005 | AC107: 180.2250013 | AD107: 0.7960199005 | AE107: 179.6257136 | AF107: 0.7960199005 | AG107: 100 | AH107: 0.7960199005 | AI107: 159.9114204 | AJ107: 0.7960199005 | AK107: 74.04362849 | AL107: 0.7960199005 | AM107: 72.07429751 | AN107: 0.7960199005 | AO107: 72.1312531 | AP107: 0.7960199005
W108: 156.1228858 | X108: 0.8059701493 | Y108: 94.35347973 | Z108: 0.8059701493 | AA108: 179.7169311 | AB108: 0.8059701493 | AC108: 186.1228858 | AD108: 0.8059701493 | AE108: 183.0045049 | AF108: 0.8059701493 | AG108: 100 | AH108: 0.8059701493 | AI108: 161.7694061 | AJ108: 0.8059701493 | AK108: 74.07934806 | AL108: 0.8059701493 | AM108: 72.12221046 | AN108: 0.8059701493 | AO108: 72.37581063 | AP108: 0.8059701493
W109: 159.942271 | X109: 0.815920398 | Y109: 96.87427396 | Z109: 0.815920398 | AA109: 187.756888 | AB109: 0.815920398 | AC109: 188.524281 | AD109: 0.815920398 | AE109: 187.8243674 | AF109: 0.815920398 | AG109: 100 | AH109: 0.815920398 | AI109: 163.0679971 | AJ109: 0.815920398 | AK109: 74.2740869 | AL109: 0.815920398 | AM109: 72.36068516 | AN109: 0.815920398 | AO109: 72.62988371 | AP109: 0.815920398
W110: 175.9760426 | X110: 0.8258706468 | Y110: 107.4565632 | Z110: 0.8258706468 | AA110: 200.8061136 | AB110: 0.8258706468 | AC110: 204.8454108 | AD110: 0.8258706468 | AE110: 203.5191759 | AF110: 0.8258706468 | AG110: 100 | AH110: 0.8258706468 | AI110: 168.5194794 | AJ110: 0.8258706468 | AK110: 74.60972798 | AL110: 0.8258706468 | AM110: 72.403037 | AN110: 0.8258706468 | AO110: 73.09033318 | AP110: 0.8258706468
W111: 178.7716728 | X111: 0.8358208955 | Y111: 109.3016791 | Z111: 0.8358208955 | AA111: 204.0515777 | AB111: 0.8358208955 | AC111: 207.3856945 | AD111: 0.8358208955 | AE111: 205.0818101 | AF111: 0.8358208955 | AG111: 100 | AH111: 0.8358208955 | AI111: 169.4699937 | AJ111: 0.8358208955 | AK111: 74.90918699 | AL111: 0.8358208955 | AM111: 72.66604044 | AN111: 0.8358208955 | AO111: 73.34006918 | AP111: 0.8358208955
W112: 179.5329121 | X112: 0.8457711443 | Y112: 109.804097 | Z112: 0.8457711443 | AA112: 205.5725425 | AB112: 0.8457711443 | AC112: 209.4424803 | AD112: 0.8457711443 | AE112: 207.2929285 | AF112: 0.8457711443 | AG112: 100 | AH112: 0.8457711443 | AI112: 169.728815 | AJ112: 0.8457711443 | AK112: 75.18693445 | AL112: 0.8457711443 | AM112: 72.73126378 | AN112: 0.8457711443 | AO112: 73.59953872 | AP112: 0.8457711443
W113: 185.935806 | X113: 0.855721393 | Y113: 114.0300071 | Z113: 0.855721393 | AA113: 209.6039229 | AB113: 0.855721393 | AC113: 215.1747424 | AD113: 0.855721393 | AE113: 212.3750743 | AF113: 0.855721393 | AG113: 100 | AH113: 0.855721393 | AI113: 171.905799 | AJ113: 0.855721393 | AK113: 75.53140633 | AL113: 0.855721393 | AM113: 72.91271827 | AN113: 0.855721393 | AO113: 73.71763832 | AP113: 0.855721393
W114: 189.3455475 | X114: 0.8656716418 | Y114: 116.2804365 | Z114: 0.8656716418 | AA114: 211.0376849 | AB114: 0.8656716418 | AC114: 218.491982 | AD114: 0.8656716418 | AE114: 216.0947479 | AF114: 0.8656716418 | AG114: 100 | AH114: 0.8656716418 | AI114: 173.0651111 | AJ114: 0.8656716418 | AK114: 75.57571659 | AL114: 0.8656716418 | AM114: 73.25067219 | AN114: 0.8656716418 | AO114: 74.20404487 | AP114: 0.8656716418
W115: 193.6201922 | X115: 0.8756218905 | Y115: 119.101702 | Z115: 0.8756218905 | AA115: 220.6878588 | AB115: 0.8756218905 | AC115: 220.4397042 | AD115: 0.8756218905 | AE115: 220.0206535 | AF115: 0.8756218905 | AG115: 100 | AH115: 0.8756218905 | AI115: 174.5184903 | AJ115: 0.8756218905 | AK115: 75.81626971 | AL115: 0.8756218905 | AM115: 73.450685 | AN115: 0.8756218905 | AO115: 75.04056202 | AP115: 0.8756218905
W116: 198.989335 | X116: 0.8855721393 | Y116: 122.6453362 | Z116: 0.8855721393 | AA116: 228.5942118 | AB116: 0.8855721393 | AC116: 223.6201922 | AD116: 0.8855721393 | AE116: 222.4795754 | AF116: 0.8855721393 | AG116: 100 | AH116: 0.8855721393 | AI116: 176.3439988 | AJ116: 0.8855721393 | AK116: 76.09121959 | AL116: 0.8855721393 | AM116: 73.55496806 | AN116: 0.8855721393 | AO116: 75.53106004 | AP116: 0.8855721393
W117: 203.2447824 | X117: 0.8955223881 | Y117: 125.4539315 | Z117: 0.8955223881 | AA117: 231.2150971 | AB117: 0.8955223881 | AC117: 233.2447824 | AD117: 0.8955223881 | AE117: 228.5744474 | AF117: 0.8955223881 | AG117: 100 | AH117: 0.8955223881 | AI117: 177.7908509 | AJ117: 0.8955223881 | AK117: 76.21813214 | AL117: 0.8955223881 | AM117: 73.8749938 | AN117: 0.8955223881 | AO117: 75.73317317 | AP117: 0.8955223881
W118: 209.2427563 | X118: 0.9054726368 | Y118: 129.4125942 | Z118: 0.9054726368 | AA118: 234.9973947 | AB118: 0.9054726368 | AC118: 235.6628196 | AD118: 0.9054726368 | AE118: 233.7116962 | AF118: 0.9054726368 | AG118: 100 | AH118: 0.9054726368 | AI118: 179.830162 | AJ118: 0.9054726368 | AK118: 76.33188307 | AL118: 0.9054726368 | AM118: 74.23332064 | AN118: 0.9054726368 | AO118: 76.20495703 | AP118: 0.9054726368
W119: 212.9829396 | X119: 0.9154228856 | Y119: 131.8811152 | Z119: 0.9154228856 | AA119: 236.7732865 | AB119: 0.9154228856 | AC119: 241.284808 | AD119: 0.9154228856 | AE119: 237.4190418 | AF119: 0.9154228856 | AG119: 100 | AH119: 0.9154228856 | AI119: 181.1018244 | AJ119: 0.9154228856 | AK119: 76.833811 | AL119: 0.9154228856 | AM119: 74.66937202 | AN119: 0.9154228856 | AO119: 76.50975961 | AP119: 0.9154228856
W120: 215.9214662 | X120: 0.9253731343 | Y120: 133.8205428 | Z120: 0.9253731343 | AA120: 238.2581061 | AB120: 0.9253731343 | AC120: 243.5629656 | AD120: 0.9253731343 | AE120: 239.3739945 | AF120: 0.9253731343 | AG120: 100 | AH120: 0.9253731343 | AI120: 182.1009234 | AJ120: 0.9253731343 | AK120: 77.76765533 | AL120: 0.9253731343 | AM120: 75.0593212 | AN120: 0.9253731343 | AO120: 76.82945656 | AP120: 0.9253731343
W121: 217.6082474 | X121: 0.9353233831 | Y121: 134.9338184 | Z121: 0.9353233831 | AA121: 243.1572341 | AB121: 0.9353233831 | AC121: 247.3717103 | AD121: 0.9353233831 | AE121: 241.4032904 | AF121: 0.9353233831 | AG121: 100 | AH121: 0.9353233831 | AI121: 182.674429 | AJ121: 0.9353233831 | AK121: 78.30727618 | AL121: 0.9353233831 | AM121: 75.33694362 | AN121: 0.9353233831 | AO121: 76.9282102 | AP121: 0.9353233831
W122: 223.2910555 | X122: 0.9452736318 | Y122: 138.6844717 | Z122: 0.9452736318 | AA122: 247.0729233 | AB122: 0.9452736318 | AC122: 248.9439432 | AD122: 0.9452736318 | AE122: 245.0933508 | AF122: 0.9452736318 | AG122: 100 | AH122: 0.9452736318 | AI122: 184.6065838 | AJ122: 0.9452736318 | AK122: 79.11360418 | AL122: 0.9452736318 | AM122: 75.52178882 | AN122: 0.9452736318 | AO122: 77.62909576 | AP122: 0.9452736318
W123: 232.4040351 | X123: 0.9552238806 | Y123: 144.6990383 | Z123: 0.9552238806 | AA123: 257.745026 | AB123: 0.9552238806 | AC123: 258.1707145 | AD123: 0.9552238806 | AE123: 254.0860583 | AF123: 0.9552238806 | AG123: 100 | AH123: 0.9552238806 | AI123: 187.7049968 | AJ123: 0.9552238806 | AK123: 80.57701918 | AL123: 0.9552238806 | AM123: 76.3190602 | AN123: 0.9552238806 | AO123: 78.29985878 | AP123: 0.9552238806
W124: 240.1120586 | X124: 0.9651741294 | Y124: 149.7863337 | Z124: 0.9651741294 | AA124: 258.6817273 | AB124: 0.9651741294 | AC124: 266.3936892 | AD124: 0.9651741294 | AE124: 261.7284227 | AF124: 0.9651741294 | AG124: 100 | AH124: 0.9651741294 | AI124: 190.3257248 | AJ124: 0.9651741294 | AK124: 81.43033126 | AL124: 0.9651741294 | AM124: 77.05549439 | AN124: 0.9651741294 | AO124: 78.38363587 | AP124: 0.9651741294
W125: 240.8006878 | X125: 0.9751243781 | Y125: 150.240829 | Z125: 0.9751243781 | AA125: 265.2686722 | AB125: 0.9751243781 | AC125: 270.1120586 | AD125: 0.9751243781 | AE125: 262.1881816 | AF125: 0.9751243781 | AG125: 100 | AH125: 0.9751243781 | AI125: 190.5598588 | AJ125: 0.9751243781 | AK125: 81.64810906 | AL125: 0.9751243781 | AM125: 77.52052651 | AN125: 0.9751243781 | AO125: 78.61250619 | AP125: 0.9751243781
W126: 287.162813 | X126: 0.9950248756 | Y126: 180.8398317 | Z126: 0.9950248756 | AA126: 311.6314067 | AB126: 0.9950248756 | AC126: 309.6422865 | AD126: 0.9950248756 | AE126: 303.7230932 | AF126: 0.9950248756 | AG126: 100 | AH126: 0.9950248756 | AI126: 206.3229813 | AJ126: 0.9950248756 | AK126: 83.04896914 | AL126: 0.9950248756 | AM126: 79.10233423 | AN126: 0.9950248756 | AO126: 84.62378415 | AP126: 0.9950248756
W127: =SUM($W$27:$W$126) -> 7922.995744 | X127: =SUM($X$27:$X$126) -> 49.26865672 | Y127: =SUM($Y$27:$Y$126) -> 4360.4147 | Z127: =SUM($Z$27:$Z$126) -> 49.26865672 | AA127: =SUM($AA$27:$AA$126) -> 10753.37772 | AB127: =SUM($AB$27:$AB$126) -> 49.26865672 | AC127: =SUM($AC$27:$AC$126) -> 10831.0384 | AD127: =SUM($AD$27:$AD$126) -> 49.26865672 | AE127: =SUM($AE$27:$AE$126) -> 10804.14721 | AF127: =SUM($AF$27:$AF$126) -> 49.26865672 | AG127: =SUM($AG$27:$AG$126) -> 10000 | AH127: =SUM($AH$27:$AH$126) -> 49.26865672 | AI127: =SUM($AI$27:$AI$126) -> 13562.58104 | AJ127: =SUM($AJ$27:$AJ$126) -> 49.26865672 | AK127: =SUM($AK$27:$AK$126) -> 7178.333061 | AL127: =SUM($AL$27:$AL$126) -> 49.26865672 | AM127: =SUM($AM$27:$AM$126) -> 7097.999732 | AN127: =SUM($AN$27:$AN$126) -> 49.26865672 | AO127: =SUM($AO$27:$AO$126) -> 7124.955621 | AP127: =SUM($AP$27:$AP$126) -> 49.26865672

Sheet Input variables (hidden)
W25: Cumulative distribution data, Crop Price and Yield Simulation - Flexible leases
W26: Yield -- Corn - North Central KS_ | Y26: Price -- Corn - North Central KS_ | AA26: Yield -- Soybeans - North Central KS_ | AC26: Price -- Soybeans - North Central KS_
W27: 82.88286495 | X27: 0.004975124378 | Y27: 3.663930465 | Z27: 0.004975124378 | AA27: 31.00024494 | AB27: 0.004975124378 | AC27: 9.223846851 | AD27: 0.004975124378
W28: 84.31643135 | X28: 0.009950248756 | Y28: 3.708968194 | Z28: 0.009950248756 | AA28: 31.11499671 | AB28: 0.009950248756 | AC28: 9.315829893 | AD28: 0.009950248756
W29: 86.50903104 | X29: 0.01990049751 | Y29: 3.842906181 | Z29: 0.01990049751 | AA29: 32.00864048 | AB29: 0.01990049751 | AC29: 9.460265455 | AD29: 0.01990049751
W30: 88.73133662 | X30: 0.02985074627 | Y30: 3.900345282 | Z30: 0.02985074627 | AA30: 32.40203764 | AB30: 0.02985074627 | AC30: 9.572101238 | AD30: 0.02985074627
W31: 90.01326499 | X31: 0.03980099502 | Y31: 3.967711969 | Z31: 0.03980099502 | AA31: 32.88920754 | AB31: 0.03980099502 | AC31: 9.634028636 | AD31: 0.03980099502
W32: 91.59407813 | X32: 0.04975124378 | Y32: 4.017912814 | Z32: 0.04975124378 | AA32: 33.2326075 | AB32: 0.04975124378 | AC32: 9.724781715 | AD32: 0.04975124378
W33: 92.9569897 | X33: 0.05970149254 | Y33: 4.089092355 | Z33: 0.05970149254 | AA33: 33.56978166 | AB33: 0.05970149254 | AC33: 9.814345937 | AD33: 0.05970149254
W34: 93.94451405 | X34: 0.06965174129 | Y34: 4.123574398 | Z34: 0.06965174129 | AA34: 33.8983646 | AB34: 0.06965174129 | AC34: 9.855341503 | AD34: 0.06965174129
W35: 94.94321943 | X35: 0.07960199005 | Y35: 4.169278261 | Z35: 0.07960199005 | AA35: 34.13965771 | AB35: 0.07960199005 | AC35: 9.933296711 | AD35: 0.07960199005
W36: 95.80407349 | X36: 0.08955223881 | Y36: 4.221519577 | Z36: 0.08955223881 | AA36: 34.33955891 | AB36: 0.08955223881 | AC36: 9.985984938 | AD36: 0.08955223881
W37: 96.50249641 | X37: 0.09950248756 | Y37: 4.264827615 | Z37: 0.09950248756 | AA37: 34.63581723 | AB37: 0.09950248756 | AC37: 10.03538083 | AD37: 0.09950248756
W38: 97.47840336 | X38: 0.1094527363 | Y38: 4.29743927 | Z38: 0.1094527363 | AA38: 34.88956905 | AB38: 0.1094527363 | AC38: 10.09521917 | AD38: 0.1094527363
W39: 98.10410303 | X39: 0.1194029851 | Y39: 4.339548763 | Z39: 0.1194029851 | AA39: 35.13653399 | AB39: 0.1194029851 | AC39: 10.14781654 | AD39: 0.1194029851
W40: 98.95710953 | X40: 0.1293532338 | Y40: 4.362632336 | Z40: 0.1293532338 | AA40: 35.24594071 | AB40: 0.1293532338 | AC40: 10.18807194 | AD40: 0.1293532338
W41: 99.44307688 | X41: 0.1393034826 | Y41: 4.40650238 | Z41: 0.1393034826 | AA41: 35.52743654 | AB41: 0.1393034826 | AC41: 10.22969297 | AD41: 0.1393034826
W42: 100.3530243 | X42: 0.1492537313 | Y42: 4.434653278 | Z42: 0.1492537313 | AA42: 35.67287719 | AB42: 0.1492537313 | AC42: 10.27186085 | AD42: 0.1492537313
W43: 101.0596274 | X43: 0.1592039801 | Y43: 4.456476141 | Z43: 0.1592039801 | AA43: 35.84873254 | AB43: 0.1592039801 | AC43: 10.33251396 | AD43: 0.1592039801
W44: 101.5876894 | X44: 0.1691542289 | Y44: 4.486285498 | Z44: 0.1691542289 | AA44: 36.0975955 | AB44: 0.1691542289 | AC44: 10.36908126 | AD44: 0.1691542289
W45: 102.2744073 | X45: 0.1791044776 | Y45: 4.519325762 | Z45: 0.1791044776 | AA45: 36.27117018 | AB45: 0.1791044776 | AC45: 10.409012 | AD45: 0.1791044776
W46: 102.872916 | X46: 0.1890547264 | Y46: 4.554988772 | Z46: 0.1890547264 | AA46: 36.41942119 | AB46: 0.1890547264 | AC46: 10.43434211 | AD46: 0.1890547264
W47: 103.4682305 | X47: 0.1990049751 | Y47: 4.571883685 | Z47: 0.1990049751 | AA47: 36.60490592 | AB47: 0.1990049751 | AC47: 10.47175208 | AD47: 0.1990049751
W48: 104.2410269 | X48: 0.2089552239 | Y48: 4.60813097 | Z48: 0.2089552239 | AA48: 36.72804525 | AB48: 0.2089552239 | AC48: 10.52081785 | AD48: 0.2089552239
W49: 104.6107124 | X49: 0.2189054726 | Y49: 4.632787644 | Z49: 0.2189054726 | AA49: 36.92735705 | AB49: 0.2189054726 | AC49: 10.54711292 | AD49: 0.2189054726
W50: 105.2849792 | X50: 0.2288557214 | Y50: 4.65363952 | Z50: 0.2288557214 | AA50: 37.0952021 | AB50: 0.2288557214 | AC50: 10.58900632 | AD50: 0.2288557214
W51: 105.9048658 | X51: 0.2388059701 | Y51: 4.684574131 | Z51: 0.2388059701 | AA51: 37.21808089 | AB51: 0.2388059701 | AC51: 10.62993646 | AD51: 0.2388059701
W52: 106.346775 | X52: 0.2487562189 | Y52: 4.702209236 | Z52: 0.2487562189 | AA52: 37.36655195 | AB52: 0.2487562189 | AC52: 10.65498527 | AD52: 0.2487562189
W53: 106.7674741 | X53: 0.2587064677 | Y53: 4.726286337 | Z53: 0.2587064677 | AA53: 37.54523064 | AB53: 0.2587064677 | AC53: 10.68654495 | AD53: 0.2587064677
W54: 107.4477783 | X54: 0.2686567164 | Y54: 4.75394306 | Z54: 0.2686567164 | AA54: 37.6643953 | AB54: 0.2686567164 | AC54: 10.72900738 | AD54: 0.2686567164
W55: 107.8624847 | X55: 0.2786069652 | Y55: 4.781804142 | Z55: 0.2786069652 | AA55: 37.80379519 | AB55: 0.2786069652 | AC55: 10.7549176 | AD55: 0.2786069652
W56: 108.2609446 | X56: 0.2885572139 | Y56: 4.801922185 | Z56: 0.2885572139 | AA56: 37.96577179 | AB56: 0.2885572139 | AC56: 10.78792848 | AD56: 0.2885572139
W57: 108.88382 | X57: 0.2985074627 | Y57: 4.820753948 | Z57: 0.2985074627 | AA57: 38.06991644 | AB57: 0.2985074627 | AC57: 10.81391099 | AD57: 0.2985074627
W58: 109.3354801 | X58: 0.3084577114 | Y58: 4.848615327 | Z58: 0.3084577114 | AA58: 38.2544376 | AB58: 0.3084577114 | AC58: 10.84672675 | AD58: 0.3084577114
W59: 109.8959361 | X59: 0.3184079602 | Y59: 4.869819703 | Z59: 0.3184079602 | AA59: 38.37452214 | AB59: 0.3184079602 | AC59: 10.87471537 | AD59: 0.3184079602
W60: 110.3707686 | X60: 0.328358209 | Y60: 4.889934527 | Z60: 0.328358209 | AA60: 38.46399395 | AB60: 0.328358209 | AC60: 10.90352194 | AD60: 0.328358209
W61: 110.6522009 | X61: 0.3383084577 | Y61: 4.907541521 | Z61: 0.3383084577 | AA61: 38.60000804 | AB61: 0.3383084577 | AC61: 10.92936031 | AD61: 0.3383084577
W62: 111.1085602 | X62: 0.3482587065 | Y62: 4.925340713 | Z62: 0.3482587065 | AA62: 38.76097987 | AB62: 0.3482587065 | AC62: 10.9688671 | AD62: 0.3482587065
W63: 111.638487 | X63: 0.3582089552 | Y63: 4.952598927 | Z63: 0.3582089552 | AA63: 38.84373168 | AB63: 0.3582089552 | AC63: 10.99560313 | AD63: 0.3582089552
W64: 112.1173628 | X64: 0.368159204 | Y64: 4.968786753 | Z64: 0.368159204 | AA64: 39.00107481 | AB64: 0.368159204 | AC64: 11.02473641 | AD64: 0.368159204
W65: 112.4149131 | X65: 0.3781094527 | Y65: 4.991852319 | Z65: 0.3781094527 | AA65: 39.13271198 | AB65: 0.3781094527 | AC65: 11.04915518 | AD65: 0.3781094527
W66: 112.9595728 | X66: 0.3880597015 | Y66: 5.011608519 | Z66: 0.3880597015 | AA66: 39.24096851 | AB66: 0.3880597015 | AC66: 11.07370159 | AD66: 0.3880597015
W67: 113.4204632 | X67: 0.3980099502 | Y67: 5.027917503 | Z67: 0.3980099502 | AA67: 39.37524704 | AB67: 0.3980099502 | AC67: 11.1020894 | AD67: 0.3980099502
W68: 113.8003494 | X68: 0.407960199 | Y68: 5.050556513 | Z68: 0.407960199 | AA68: 39.48821166 | AB68: 0.407960199 | AC68: 11.13154128 | AD68: 0.407960199
W69: 114.2783921 | X69: 0.4179104478 | Y69: 5.065602829 | Z69: 0.4179104478 | AA69: 39.56305499 | AB69: 0.4179104478 | AC69: 11.15655799 | AD69: 0.4179104478
W70: 114.603084 | X70: 0.4278606965 | Y70: 5.086061554 | Z70: 0.4278606965 | AA70: 39.6728656 | AB70: 0.4278606965 | AC70: 11.17340069 | AD70: 0.4278606965
W71: 114.9977136 | X71: 0.4378109453 | Y71: 5.102650875 | Z71: 0.4378109453 | AA71: 39.78985142 | AB71: 0.4378109453 | AC71: 11.20622341 | AD71: 0.4378109453
W72: 115.4774801 | X72: 0.447761194 | Y72: 5.12307187 | Z72: 0.447761194 | AA72: 39.91351336 | AB72: 0.447761194 | AC72: 11.22735397 | AD72: 0.447761194
W73: 115.8813526 | X73: 0.4577114428 | Y73: 5.141883748 | Z73: 0.4577114428 | AA73: 40.00799447 | AB73: 0.4577114428 | AC73: 11.25321031 | AD73: 0.4577114428
W74: 116.2558477 | X74: 0.4676616915 | Y74: 5.156312556 | Z74: 0.4676616915 | AA74: 40.16506723 | AB74: 0.4676616915 | AC74: 11.27704112 | AD74: 0.4676616915
W75: 116.5424118 | X75: 0.4776119403 | Y75: 5.177634748 | Z75: 0.4776119403 | AA75: 40.25940529 | AB75: 0.4776119403 | AC75: 11.30181797 | AD75: 0.4776119403
W76: 116.9274266 | X76: 0.4875621891 | Y76: 5.194406175 | Z76: 0.4875621891 | AA76: 40.35027345 | AB76: 0.4875621891 | AC76: 11.33252383 | AD76: 0.4875621891
W77: 117.3367056 | X77: 0.4975124378 | Y77: 5.212385692 | Z77: 0.4975124378 | AA77: 40.46979943 | AB77: 0.4975124378 | AC77: 11.35380049 | AD77: 0.4975124378
W78: 117.6947003 | X78: 0.5074626866 | Y78: 5.232982383 | Z78: 0.5074626866 | AA78: 40.59087151 | AB78: 0.5074626866 | AC78: 11.37703914 | AD78: 0.5074626866
W79: 118.0973888 | X79: 0.5174129353 | Y79: 5.247254614 | Z79: 0.5174129353 | AA79: 40.69309678 | AB79: 0.5174129353 | AC79: 11.40968279 | AD79: 0.5174129353
W80: 118.3412699 | X80: 0.5273631841 | Y80: 5.262726335 | Z80: 0.5273631841 | AA80: 40.76184885 | AB80: 0.5273631841 | AC80: 11.43483966 | AD80: 0.5273631841
W81: 118.8643713 | X81: 0.5373134328 | Y81: 5.283570457 | Z81: 0.5373134328 | AA81: 40.88495169 | AB81: 0.5373134328 | AC81: 11.45866341 | AD81: 0.5373134328
W82: 119.1458396 | X82: 0.5472636816 | Y82: 5.300935303 | Z82: 0.5472636816 | AA82: 40.95981023 | AB82: 0.5472636816 | AC82: 11.49796399 | AD82: 0.5472636816
W83: 119.5137088 | X83: 0.5572139303 | Y83: 5.319191733 | Z83: 0.5572139303 | AA83: 41.06179566 | AB83: 0.5572139303 | AC83: 11.52657512 | AD83: 0.5572139303
W84: 119.8075297 | X84: 0.5671641791 | Y84: 5.343411887 | Z84: 0.5671641791 | AA84: 41.1986173 | AB84: 0.5671641791 | AC84: 11.54581616 | AD84: 0.5671641791
W85: 120.1667305 | X85: 0.5771144279 | Y85: 5.355543855 | Z85: 0.5771144279 | AA85: 41.26479175 | AB85: 0.5771144279 | AC85: 11.57641066 | AD85: 0.5771144279
W86: 120.6113637 | X86: 0.5870646766 | Y86: 5.380553592 | Z86: 0.5870646766 | AA86: 41.38227214 | AB86: 0.5870646766 | AC86: 11.6001797 | AD86: 0.5870646766
W87: 120.9366438 | X87: 0.5970149254 | Y87: 5.398187019 | Z87: 0.5970149254 | AA87: 41.47836142 | AB87: 0.5970149254 | AC87: 11.63322878 | AD87: 0.5970149254
W88: 121.2931366 | X88: 0.6069651741 | Y88: 5.418237237 | Z88: 0.6069651741 | AA88: 41.58258055 | AB88: 0.6069651741 | AC88: 11.65804384 | AD88: 0.6069651741
W89: 121.6856038 | X89: 0.6169154229 | Y89: 5.439701095 | Z89: 0.6169154229 | AA89: 41.72196345 | AB89: 0.6169154229 | AC89: 11.69038794 | AD89: 0.6169154229
W90: 122.0571754 | X90: 0.6268656716 | Y90: 5.463147234 | Z90: 0.6268656716 | AA90: 41.78513097 | AB90: 0.6268656716 | AC90: 11.72500996 | AD90: 0.6268656716
W91: 122.3778351 | X91: 0.6368159204 | Y91: 5.484282088 | Z91: 0.6368159204 | AA91: 41.94560184 | AB91: 0.6368159204 | AC91: 11.75985836 | AD91: 0.6368159204
W92: 122.7197816 | X92: 0.6467661692 | Y92: 5.497848045 | Z92: 0.6467661692 | AA92: 42.05537644 | AB92: 0.6467661692 | AC92: 11.77946943 | AD92: 0.6467661692
W93: 123.1532573 | X93: 0.6567164179 | Y93: 5.525270639 | Z93: 0.6567164179 | AA93: 42.14989707 | AB93: 0.6567164179 | AC93: 11.82334032 | AD93: 0.6567164179
W94: 123.5266861 | X94: 0.6666666667 | Y94: 5.541745214 | Z94: 0.6666666667 | AA94: 42.28244886 | AB94: 0.6666666667 | AC94: 11.84755901 | AD94: 0.6666666667
W95: 124.0545793 | X95: 0.6766169154 | Y95: 5.565961471 | Z95: 0.6766169154 | AA95: 42.36492597 | AB95: 0.6766169154 | AC95: 11.87723307 | AD95: 0.6766169154
W96: 124.3263096 | X96: 0.6865671642 | Y96: 5.590583457 | Z96: 0.6865671642 | AA96: 42.4901935 | AB96: 0.6865671642 | AC96: 11.91294026 | AD96: 0.6865671642
W97: 124.7551435 | X97: 0.6965174129 | Y97: 5.61269872 | Z97: 0.6965174129 | AA97: 42.64039883 | AB97: 0.6965174129 | AC97: 11.95630859 | AD97: 0.6965174129
W98: 125.117139 | X98: 0.7064676617 | Y98: 5.640566446 | Z98: 0.7064676617 | AA98: 42.7280353 | AB98: 0.7064676617 | AC98: 11.98546733 | AD98: 0.7064676617
W99: 125.5774238 | X99: 0.7164179104 | Y99: 5.657825601 | Z99: 0.7164179104 | AA99: 42.86127247 | AB99: 0.7164179104 | AC99: 12.0266142 | AD99: 0.7164179104
W100: 126.1036218 | X100: 0.7263681592 | Y100: 5.683991531 | Z100: 0.7263681592 | AA100: 43.02048251 | AB100: 0.7263681592 | AC100: 12.04581888 | AD100: 0.7263681592
W101: 126.5502899 | X101: 0.736318408 | Y101: 5.711217862 | Z101: 0.736318408 | AA101: 43.12780224 | AB101: 0.736318408 | AC101: 12.09613735 | AD101: 0.736318408
W102: 126.9147773 | X102: 0.7462686567 | Y102: 5.73230348 | Z102: 0.7462686567 | AA102: 43.25551663 | AB102: 0.7462686567 | AC102: 12.13058011 | AD102: 0.7462686567
W103: 127.4753632 | X103: 0.7562189055 | Y103: 5.752634474 | Z103: 0.7562189055 | AA103: 43.42377218 | AB103: 0.7562189055 | AC103: 12.16635348 | AD103: 0.7562189055
W104: 127.8244675 | X104: 0.7661691542 | Y104: 5.782466234 | Z104: 0.7661691542 | AA104: 43.54892205 | AB104: 0.7661691542 | AC104: 12.21129351 | AD104: 0.7661691542
W105: 128.3057274 | X105: 0.776119403 | Y105: 5.809112478 | Z105: 0.776119403 | AA105: 43.64674927 | AB105: 0.776119403 | AC105: 12.23614371 | AD105: 0.776119403
W106: 128.8725764 | X106: 0.7860696517 | Y106: 5.832932638 | Z106: 0.7860696517 | AA106: 43.84968324 | AB106: 0.7860696517 | AC106: 12.2889342 | AD106: 0.7860696517
W107: 129.4371378 | X107: 0.7960199005 | Y107: 5.861020851 | Z107: 0.7960199005 | AA107: 43.96139217 | AB107: 0.7960199005 | AC107: 12.33255882 | AD107: 0.7960199005
W108: 129.8488583 | X108: 0.8059701493 | Y108: 5.893132648 | Z108: 0.8059701493 | AA108: 44.14038743 | AB108: 0.8059701493 | AC108: 12.37210922 | AD108: 0.8059701493
W109: 130.556154 | X109: 0.815920398 | Y109: 5.915359916 | Z109: 0.815920398 | AA109: 44.26061365 | AB109: 0.815920398 | AC109: 12.40404204 | AD109: 0.815920398
W110: 130.8818799 | X110: 0.8258706468 | Y110: 5.954539024 | Z110: 0.8258706468 | AA110: 44.39667741 | AB110: 0.8258706468 | AC110: 12.45414718 | AD110: 0.8258706468
W111: 131.4367062 | X111: 0.8358208955 | Y111: 5.982073472 | Z111: 0.8358208955 | AA111: 44.63138201 | AB111: 0.8358208955 | AC111: 12.50651166 | AD111: 0.8358208955
W112: 132.1411797 | X112: 0.8457711443 | Y112: 6.019803387 | Z112: 0.8457711443 | AA112: 44.72468498 | AB112: 0.8457711443 | AC112: 12.53590117 | AD112: 0.8457711443
W113: 132.8019239 | X113: 0.855721393 | Y113: 6.04644815 | Z113: 0.855721393 | AA113: 44.95110704 | AB113: 0.855721393 | AC113: 12.59708395 | AD113: 0.855721393
W114: 133.1949466 | X114: 0.8656716418 | Y114: 6.078582752 | Z114: 0.8656716418 | AA114: 45.1208649 | AB114: 0.8656716418 | AC114: 12.6379453 | AD114: 0.8656716418
W115: 134.0669307 | X115: 0.8756218905 | Y115: 6.123144523 | Z115: 0.8756218905 | AA115: 45.29177577 | AB115: 0.8756218905 | AC115: 12.69859163 | AD115: 0.8756218905
W116: 134.5161845 | X116: 0.8855721393 | Y116: 6.151915746 | Z116: 0.8855721393 | AA116: 45.54611541 | AB116: 0.8855721393 | AC116: 12.74369537 | AD116: 0.8855721393
W117: 135.3794477 | X117: 0.8955223881 | Y117: 6.18548893 | Z117: 0.8955223881 | AA117: 45.71430156 | AB117: 0.8955223881 | AC117: 12.80379823 | AD117: 0.8955223881
W118: 136.1806842 | X118: 0.9054726368 | Y118: 6.222126793 | Z118: 0.9054726368 | AA118: 45.94873978 | AB118: 0.9054726368 | AC118: 12.87028511 | AD118: 0.9054726368
W119: 136.996782 | X119: 0.9154228856 | Y119: 6.275450604 | Z119: 0.9154228856 | AA119: 46.09593799 | AB119: 0.9154228856 | AC119: 12.92573327 | AD119: 0.9154228856
W120: 137.5072465 | X120: 0.9253731343 | Y120: 6.330377121 | Z120: 0.9253731343 | AA120: 46.33555206 | AB120: 0.9253731343 | AC120: 12.98972481 | AD120: 0.9253731343
W121: 138.3540745 | X121: 0.9353233831 | Y121: 6.380572705 | Z121: 0.9353233831 | AA121: 46.64045548 | AB121: 0.9353233831 | AC121: 13.08426252 | AD121: 0.9353233831
W122: 139.3636587 | X122: 0.9452736318 | Y122: 6.415473664 | Z122: 0.9452736318 | AA122: 46.936951 | AB122: 0.9452736318 | AC122: 13.13068548 | AD122: 0.9452736318
W123: 140.60836 | X123: 0.9552238806 | Y123: 6.494108431 | Z123: 0.9552238806 | AA123: 47.22003819 | AB123: 0.9552238806 | AC123: 13.24874038 | AD123: 0.9552238806
W124: 141.6098072 | X124: 0.9651741294 | Y124: 6.529898131 | Z124: 0.9651741294 | AA124: 47.60195716 | AB124: 0.9651741294 | AC124: 13.32014758 | AD124: 0.9651741294
W125: 142.7649221 | X125: 0.9751243781 | Y125: 6.610581361 | Z125: 0.9751243781 | AA125: 48.05454301 | AB125: 0.9751243781 | AC125: 13.43109466 | AD125: 0.9751243781
W126: 147.9007969 | X126: 0.9950248756 | Y126: 6.898783306 | Z126: 0.9950248756 | AA126: 49.16203831 | AB126: 0.9950248756 | AC126: 13.85973118 | AD126: 0.9950248756
W127: =SUM($W$27:$W$126) -> 11620.84038 | X127: =SUM($X$27:$X$126) -> 49.26865672 | Y127: =SUM($Y$27:$Y$126) -> 520.5062012 | Z127: =SUM($Z$27:$Z$126) -> 49.26865672 | AA127: =SUM($AA$27:$AA$126) -> 4020.549843 | AB127: =SUM($AB$27:$AB$126) -> 49.26865672 | AC127: =SUM($AC$27:$AC$126) -> 1137.625366 | AD127: =SUM($AD$27:$AD$126) -> 49.26865672

Sheet Flex leases
A1: 1 | B1: 2 | C1: 3 | D1: 4 | E1: 5 | F1: 6 | G1: 7 | H1: 8 | I1: 9 | J1: 10 | K1: 11 | L1: 12 | M1: 13 | N1: 14 | O1: 15 | P1: 16 | Q1: 17 | R1: 18 | S1: 19 | T1: 20 | U1: 21 | V1: 22 | W1: 23 | X1: 24 | Y1: 25 | Z1: 26 | AA1: 27 | AB1: 28 | AC1: 29
C3: 1 | D3: 2 | E3: 3 | F3: 4 | G3: 5
B4: Yields | C4: ='Calc for flex leases'!B4 -> Cotton - South Central KS_ | D4: ='Calc for flex leases'!C4 ->  | E4: ='Calc for flex leases'!D4 ->  | F4: ='Calc for flex leases'!E4 ->  | G4: ='Calc for flex leases'!F4 ->  | R4: Name | S4: Low | T4: middle | U4: High | W4: Simulated number
Q5: 1 | R5: =L28 -> Yield -- Cotton - South Central KS_ | S5: =C9 -> 80 | T5: =C8 -> 950 | U5: =C7 -> 150 | W5: 100
Q6: 2 | R6: Price -- Cotton - South Central KS_ | S6: =C17 -> 3.5 | T6: =C16 -> 0.8 | U6: =C15 -> 7 | W6: 3
B7: High yield | C7: 150 | D7: 50 | Q7: 3 | R7: Yield -- | S7: =D9 -> 30 | T7: =D8 ->  | U7: =D7 -> 50
B8: Expected yield | C8: ='Calc for flex leases'!B9 -> 950 | D8: ='Calc for flex leases'!C9 ->  | E8: ='Calc for flex leases'!D9 ->  | F8: ='Calc for flex leases'!E9 ->  | G8: ='Calc for flex leases'!F9 ->  | Q8: 4 | R8: Price -- | S8: =D17 -> 9 | T8: =D16 ->  | U8: =D15 -> 14
B9: Low yield | C9: 80 | D9: 30 | Q9: 5 | R9: Yield -- | S9: =E9 -> 0 | T9: =E8 ->  | U9: =E7 -> 0
Q10: 6 | R10: Price -- | S10: =E17 -> 0 | T10: =E16 ->  | U10: =E15 -> 0
Q11: 7 | R11: Yield -- | S11: =F9 -> 0 | T11: =F8 ->  | U11: =F7 -> 0
B12: Prices | C12: ='Calc for flex leases'!B4 -> Cotton - South Central KS_ | D12: ='Calc for flex leases'!C4 ->  | E12: ='Calc for flex leases'!D4 ->  | F12: ='Calc for flex leases'!E4 ->  | G12: ='Calc for flex leases'!F4 ->  | Q12: 8 | R12: Price -- | S12: =F17 -> 0 | T12: =F16 ->  | U12: =F15 -> 0
Q13: 9 | R13: Yield -- | S13: =G9 -> 0 | T13: =G8 ->  | U13: =G7 -> 0
Q14: 10 | R14: Price -- | S14: =G17 -> 0 | T14: =G16 ->  | U14: =G15 -> 0
B15: High price | C15: 7 | D15: 14
B16: Expected price | C16: ='Calc for flex leases'!B10 -> 0.8 | D16: ='Calc for flex leases'!C10 ->  | E16: ='Calc for flex leases'!D10 ->  | F16: ='Calc for flex leases'!E10 ->  | G16: ='Calc for flex leases'!F10 -> 
B17: Low price | C17: 3.5 | D17: 9 | S17: Y
S18: y
S19: N
S20: n
B21: Number of iterations of simulation to run | E21: 200 | F21: This is currently hard coded at 200
B25: ="Yield -- " & 'Calc for flex leases'!B4 -> Yield -- Cotton - South Central KS_ | C25: ="Price -- " & 'Calc for flex leases'!B4 -> Price -- Cotton - South Central KS_ | D25: ="Yield -- " & 'Calc for flex leases'!C4 -> Yield -- | E25: ="Price -- " & 'Calc for flex leases'!C4 -> Price -- | F25: ="Yield -- " & 'Calc for flex leases'!D4 -> Yield -- | G25: ="Price -- " & 'Calc for flex leases'!D4 -> Price -- | H25: ="Yield -- " & 'Calc for flex leases'!E4 -> Yield -- | I25: ="Price -- " & 'Calc for flex leases'!E4 -> Price -- | J25: ="Yield -- " & 'Calc for flex leases'!F4 -> Yield -- | K25: ="Price -- " & 'Calc for flex leases'!F4 -> Price --
B28: 1 | C28: 0 | D28: 0.5 | E28: 0 | L28: ="Yield -- " & 'Calc for flex leases'!B4 -> Yield -- Cotton - South Central KS_
C29: 1 | D29: 0 | E29: 0.6 | L29: ="Price -- " & 'Calc for flex leases'!B4 -> Price -- Cotton - South Central KS_
D30: 1 | E30: 0 | L30: ="Yield -- " & 'Calc for flex leases'!C4 -> Yield --
E31: 1 | L31: ="Price -- " & 'Calc for flex leases'!C4 -> Price --
F32: 1 | L32: ="Yield -- " & 'Calc for flex leases'!D4 -> Yield --
G33: 1 | L33: ="Price -- " & 'Calc for flex leases'!D4 -> Price --
H34: 1 | L34: ="Yield -- " & 'Calc for flex leases'!E4 -> Yield --
I35: 1 | L35: ="Price -- " & 'Calc for flex leases'!E4 -> Price --
J36: 1 | L36: ="Yield -- " & 'Calc for flex leases'!F4 -> Yield --
K37: 1 | L37: ="Price -- " & 'Calc for flex leases'!F4 -> Price --
D42: 1 | E42: 2 | F42: 3 | G42: 4 | H42: 5 | I42: 6 | J42: 7 | K42: 8
D43: Flex on price | G43: Flex on yield | I43: Flex on both | J43: Flex on revenue | K43: Flex on revenue
D44: Base rent multiplied by ratio of current year’s price to base price | E44: Rent equal to the value of a fixed amount of commodity | F44: Base rent with stated adjustments for prices outside a specified range | G44: Base rent multiplied by ratio of current year's yield to base yield | H44: Rent equal to the value of a fixed price of commodity | I44: Base rent multiplied by ratios of current year's price to base price and yield to base yield | J44: Base rent multiplied by ratio of current year's yield to base yield | K44: Minimum base rent plus a bonus
B46: Base rent | D46: 70 | F46: y | G46: 70 | I46: y | J46: 70 | K46: y
B47: Flex crop? | D47: 0 | G47: 0 | J47: 0
B48: allow for downward price adjustment? | D48: n | I48: y
B49: allow for downward yield adjustment? | G49: n | I49: y | J49: n | K49: aallow for downward revenue adjustment
B51: Base price | C51: =R6 -> Price -- Cotton - South Central KS_ | D51: 5.5 | H51: y | I51: BASE REVENUE | J51: 680 | K51: =C51 -> Price -- Cotton - South Central KS_ | L51: ="X " & C57 -> X Yield -- Cotton - South Central KS_
C52: =R8 -> Price -- | D52: 12 | J52: 550 | K52: =C52 -> Price -- | L52: ="X " & C58 -> X Yield --
C53: =R10 -> Price -- | K53: Price -- | L53: X Yield --
C54: =R12 -> Price -- | K54: Price -- | L54: X Yield --
C55: =R14 -> Price -- | K55: Price -- | L55: X Yield --
B57: Base yield | C57: =R5 -> Yield -- Cotton - South Central KS_ | E57: y | G57: 125 | I57: y
C58: =R7 -> Yield -- | G58: 45
C59: =R9 -> Yield --
C60: =R11 -> Yield --
C61: =R13 -> Yield --
B66: Upper price | C66: =C51 -> Price -- Cotton - South Central KS_ | F66: y
C67: =C52 -> Price --
C68: Price --
C69: Price --
C70: Price --
B71: Lower price | C71: =C66 -> Price -- Cotton - South Central KS_ | E71: y | F71: y | H71: need lower yield
C72: =C67 -> Price --
C73: Price --
C74: Price --
C75: Price --
B76: Price change | C76: =C71 -> Price -- Cotton - South Central KS_ | F76: y
C77: =C72 -> Price --
C78: Price --
C79: Price --
C80: Price --
B81: Change to rent | C81: =$C$12 -> Cotton - South Central KS_ | F81: y
C82: =$D$12 -> 
C83: =$E$12 -> 
C84: =$F$12 -> 
C85: =$G$12 -> 
C86: jj
A87: only need 1 | B87: Crop percentage | J87: y
B89: upper revenue | C89: =$C$12 -> Cotton - South Central KS_
C90: =$D$12 -> 
C91: =$E$12 -> 
C92: =$F$12 -> 
C93: =$G$12 -> 
B94: lower revenue | C94: =$C$12 -> Cotton - South Central KS_
C95: =$D$12 ->  | K95: y
C96: =$E$12 -> 
C97: =$F$12 -> 
C98: =$G$12 -> 
B99: Revenue chaange | C99: =$C$12 -> Cotton - South Central KS_
C100: =$D$12 -> 
C101: =$E$12 -> 
C102: =$F$12 -> 
C103: =$G$12 -> 
B104: Changes to rent | C104: =$C$12 -> Cotton - South Central KS_
C105: =$D$12 -> 
C106: =$E$12 -> 
C107: =$F$12 -> 
C108: =$G$12 -> 

Sheet Calc for flex leases (hidden)
A1: tillable ac code
A3: # | B3: 1 | C3: 2 | D3: 3 | E3: 4 | F3: 5 | H3: All crops
A4: Crop | B4: ='Data from budgets'!B10 -> Cotton - South Central KS_ | C4: ='Data from budgets'!C10 ->  | D4: ='Data from budgets'!D10 ->  | E4: ='Data from budgets'!E10 ->  | F4: ='Data from budgets'!F10 ->  | H4: - - Cash | I4: - - Share | K4: # of things to simulate | M4: # of simulations
A5: Is the crop to be used? | B5: ='Data from budgets'!B8 -> 1 | C5: ='Data from budgets'!C8 -> 0 | D5: ='Data from budgets'!D8 -> 0 | E5: ='Data from budgets'!E8 -> 0 | F5: ='Data from budgets'!F8 -> 0 | H5: =SUM(B5:F5) -> 1 | I5: =H5 -> 1 | K5: =H5*2 -> 2 | M5: ='Flex leases'!E21 -> 200
A6: Actual tillable ac | H6: ='Calculations '!L67 -> 1 | I6: =H6 -> 1
A7: Acres | B7: ='Calculations '!F66 -> 1 | C7: ='Calculations '!G66 -> 0 | D7: ='Calculations '!H66 -> 0 | E7: ='Calculations '!I66 -> 0 | F7: ='Calculations '!J66 -> 0 | H7: =SUM(B7:F7) -> 1
A9: Yield | B9: ='Calculations '!F70 -> 950 | C9: ='Calculations '!G70 ->  | D9: ='Calculations '!H70 ->  | E9: ='Calculations '!I70 ->  | F9: ='Calculations '!J70 -> 
A10: Price | B10: ='Calculations '!F71 -> 0.8 | C10: ='Calculations '!G71 ->  | D10: ='Calculations '!H71 ->  | E10: ='Calculations '!I71 ->  | F10: ='Calculations '!J71 -> 
A12: Share % | I12: =Budgets!Z6 -> 0.66
A13: Cash rent | H13: =Budgets!C58 -> 69
A14: Cash rent per tillible ac | H14: ='Calculations '!N112 -> 69
A16: Other income to tenant | H16: ='Calculations '!N72 -> 192.3 | I16: ='Calculations '!P72 -> 126.918
A17: Other income to landlord | H17: 0 | I17: ='Calculations '!Q72 -> 65.382
A20: Expenses to tenant (less cash rent) | H20: ='Calculations '!N115-H14 -> 758.9143813 | I20: ='Calculations '!P115 -> 721.9455013 | J20: per tilliable acre
A21: Expenses to landlord | H21: ='Calculations '!O115 -> 69 | I21: ='Calculations '!Q115 -> 105.96888 | J21: per tilliable acre | L21: with cas rent included
H22: =H21-H14 -> 0 | I22: =I21-H14 -> 36.96888 | L22: taking out cash rent
A23: TENANT
A24: Simulation
A25: Yield | B25: ='Flex leases'!W5 -> 100 | C25: ='Flex leases'!W7 -> 0 | D25: ='Flex leases'!W9 -> 0 | E25: ='Flex leases'!W11 -> 0 | F25: ='Flex leases'!W13 -> 0 | H25: This is what is simulated (a number can be entered in the original speadsheet but it doesn't really do anything)
A26: Price | B26: ='Flex leases'!W6 -> 3 | C26: ='Flex leases'!W8 -> 0 | D26: ='Flex leases'!W10 -> 0 | E26: ='Flex leases'!W12 -> 0 | F26: ='Flex leases'!W14 -> 0 | H26: This is what is simulated (a number can be entered in the original speadsheet but it doesn't really do anything)
A27: Share yield - tenant | B27: =B25*$I$12 -> 66 | C27: =C25*$I$12 -> 0 | D27: 0 | E27: 0 | F27: 0
A28: Share yield - landlord | B28: =B25*(1-$I$12) -> 34 | C28: =C25*(1-$I$12) -> 0 | D28: =D25*(1-$I$12) -> 0 | E28: =E25*(1-$I$12) -> 0 | F28: =F25*(1-$I$12) -> 0
H29: Base rent
A30: 1 - Base price | B30: ='Flex leases'!D51 -> 5.5 | C30: ='Flex leases'!D52 -> 12 | D30: ='Flex leases'!D53 -> 0 | E30: ='Flex leases'!D54 -> 0 | F30: ='Flex leases'!D55 -> 0 | H30: ='Flex leases'!D46 -> 70
A31: 1 - Lead crop | B31: =IF(OR('Flex leases'!$D$47=0, 'Flex leases'!$D$47=B3), 1, 0) -> 1 | C31: =IF(OR('Flex leases'!$D$47=0, 'Flex leases'!$D$47=C3), 1, 0) -> 1 | D31: =IF(OR('Flex leases'!$D$47=0, 'Flex leases'!$D$47=D3), 1, 0) -> 1 | E31: =IF(OR('Flex leases'!$D$47=0, 'Flex leases'!$D$47=E3), 1, 0) -> 1 | F31: =IF(OR('Flex leases'!$D$47=0, 'Flex leases'!$D$47=F3), 1, 0) -> 1 | J31: if no lead crop then all are 1's - otherwise the lead crop has a one in it.
A32: 1 - allow downward | B32: =IF(OR('Flex leases'!$D$48="n",'Flex leases'!$D$48="N"), 0, 1) -> 0 | C32: =B32 -> 0 | D32: =C32 -> 0 | E32: 0 | F32: 0 | H32: Crop acres in contract | J32: 1 if downward
A33: 1 - Min price for sim | B33: =IF(B32=0,B30,0) -> 5.5 | C33: =IF(C32=0,C30,0) -> 12 | D33: 0 | E33: 0 | F33: 0 | H33: =SUMPRODUCT(B31:F31,B7:F7) -> 1
A34: 1 - Simulated price | B34: =MAX(B33, B26) -> 5.5 | C34: =MAX(C33, C26) -> 12 | D34: 0 | E34: 0 | F34: 0
A35: 1 - Price ratio | B35: =IFERROR(B34/B30, 0) -> 1 | C35: =IFERROR(C34/C30, 0) -> 1 | D35: =IFERROR(D34/D30, 0) -> 0 | E35: =IFERROR(E34/E30, 0) -> 0 | F35: =IFERROR(F34/F30, 0) -> 0 | H35: landlord rev per tillible
A36: 1 - Landlord revenue | B36: =B35*$H$30*B31*B7 -> 70 | C36: =C35*$H$30*C31*C7 -> 0 | D36: 0 | E36: 0 | F36: 0 | H36: =SUM(B36:F36) *H7/H33 / H6 -> 70
A38: 4 - Base yield | B38: ='Flex leases'!G57 -> 125 | C38: ='Flex leases'!G58 -> 45 | D38: ='Flex leases'!G59 -> 0 | E38: ='Flex leases'!G60 -> 0 | F38: ='Flex leases'!G61 -> 0 | H38: Base rent
A39: 4 - Lead crop | B39: =IF(OR('Flex leases'!$G$47=0, 'Flex leases'!$G$47=B3), 1, 0) -> 1 | C39: =IF(OR('Flex leases'!$G$47=0, 'Flex leases'!$G$47=C3), 1, 0) -> 1 | D39: =IF(OR('Flex leases'!$G$47=0, 'Flex leases'!$G$47=D3), 1, 0) -> 1 | E39: =IF(OR('Flex leases'!$G$47=0, 'Flex leases'!$G$47=E3), 1, 0) -> 1 | F39: =IF(OR('Flex leases'!$G$47=0, 'Flex leases'!$G$47=F3), 1, 0) -> 1 | H39: ='Flex leases'!G46 -> 70 | J39: if no lead crop then all are 1's - otherwise the lead crop has a one in it.
A40: 4 - allow downward | B40: =IF(OR('Flex leases'!$G$49="n",'Flex leases'!$G$49="N"), 0, 1) -> 0 | C40: =IF(OR('Flex leases'!$G$49="n",'Flex leases'!$G$49="N"), 0, 1) -> 0 | D40: =IF(OR('Flex leases'!$G$49="n",'Flex leases'!$G$49="N"), 0, 1) -> 0 | E40: =IF(OR('Flex leases'!$G$49="n",'Flex leases'!$G$49="N"), 0, 1) -> 0 | F40: =IF(OR('Flex leases'!$G$49="n",'Flex leases'!$G$49="N"), 0, 1) -> 0 | J40: 1 if downward
A41: 1 - Min yield for sim | B41: =IF(B40=0,B38,0) -> 125 | C41: =IF(C40=0,C38,0) -> 45 | D41: 0 | E41: 0 | F41: 0 | H41: Crop ac in contract
A42: 1 - Simulated yield | B42: =MAX(B41, B25) -> 125 | C42: =MAX(C41, C25) -> 45 | D42: 0 | E42: 0 | F42: 0 | H42: =SUMPRODUCT(B39:F39,B7:F7) -> 1
A43: 1 - Yield ratio | B43: =IFERROR(B42/B38, 0) -> 1 | C43: =IFERROR(C42/C38, 0) -> 1 | D43: 0 | E43: 0 | F43: 0 | H43: landlord rev per tillible acre
A44: 1 - Landlord revenue | B44: =B43*$H$39*B39*B7 -> 70 | C44: =C43*$H$39*C39*C7 -> 0 | D44: 0 | E44: 0 | F44: 0 | H44: =SUM(B44:F44) *H7/H42 / H6 -> 70
A46: 7 - Base revenue | B46: ='Flex leases'!J51 -> 680 | C46: ='Flex leases'!J52 -> 550 | D46: ='Flex leases'!J53 -> 0 | E46: ='Flex leases'!J54 -> 0 | F46: ='Flex leases'!J55 -> 0 | H46: Base rent
A47: 7 - Lead crop | B47: =IF(OR('Flex leases'!$J$47=0, 'Flex leases'!$J$47=B3), 1, 0) -> 1 | C47: =IF(OR('Flex leases'!$J$47=0, 'Flex leases'!$J$47=C3), 1, 0) -> 1 | D47: =IF(OR('Flex leases'!$J$47=0, 'Flex leases'!$J$47=D3), 1, 0) -> 1 | E47: =IF(OR('Flex leases'!$J$47=0, 'Flex leases'!$J$47=E3), 1, 0) -> 1 | F47: =IF(OR('Flex leases'!$J$47=0, 'Flex leases'!$J$47=F3), 1, 0) -> 1 | H47: ='Flex leases'!J46 -> 70 | J47: if no lead crop then all are 1's - otherwise the lead crop has a one in it.
A48: 7 - allow downward | B48: =IF(OR('Flex leases'!$J$49="n",'Flex leases'!$J$49="N"), 0, 1) -> 0 | C48: =IF(OR('Flex leases'!$J$49="n",'Flex leases'!$J$49="N"), 0, 1) -> 0 | D48: =IF(OR('Flex leases'!$J$49="n",'Flex leases'!$J$49="N"), 0, 1) -> 0 | E48: =IF(OR('Flex leases'!$J$49="n",'Flex leases'!$J$49="N"), 0, 1) -> 0 | F48: =IF(OR('Flex leases'!$J$49="n",'Flex leases'!$J$49="N"), 0, 1) -> 0 | J48: 1 if downward
A49: 7 - Min revenue for sim | B49: =IF(B48=0,B46,0) -> 680 | C49: =IF(C48=0,C46,0) -> 550 | D49: 0 | E49: 0 | F49: 0 | H49: Crop ac in contract
A50: 7 - Simulated yield | B50: =MAX((B25*B26), B49) -> 680 | C50: =MAX((C25*C26), C49) -> 550 | D50: 0 | E50: 0 | F50: 0 | H50: =SUMPRODUCT(B47:F47,B7:F7) -> 1
A51: 1 - Revenue ratio | B51: =IFERROR(B50/B46, 0) -> 1 | C51: =IFERROR(C50/C46, 0) -> 1 | D51: 0 | E51: 0 | F51: 0 | H51: landlord rev per tillible acre
A52: 1 - Landlord revenue | B52: =B51*$H$47*B47*B7 -> 70 | C52: =C51*$H$47*C47*C7 -> 0 | D52: 0 | E52: 0 | F52: 0 | H52: =SUM(B52:F52) *H7/H50 / H6 -> 70
A100: TENANT
A101: Cash lease | B101: =SUMPRODUCT(B25:F25,B26:F26, B7:F7) / H6 - H20 - H14 + H16 -> -335.6143813
A102: Share lease | B102: =SUMPRODUCT(B27:F27, B26:F26, B7:F7)/H6 - I20 + I16 -> -397.0275013
A103: 1 - flex lease (price) | B103: =$B$101 - B125 + $H$14 -> -336.6143813
A104: 4 - flex lease (yield) | B104: =$B$101 - B126 + $H$14 -> -336.6143813
A105: 7 - flex lease (revenue) | B105: =$B$101 - B127 + $H$14 -> -336.6143813
E113: check | F113: =B101+B123 -> -266.6143813
F114: =B102+B124 -> -266.6143813
F115: -266.6143813
F116: -266.6143813
F117: =B105+B127 -> -266.6143813
A122: Landlord
A123: Cash lease | B123: =H14 - H22 -> 69
A124: Share lease | B124: =SUMPRODUCT(B28:F28, B26:F26, B7:F7) / I6 - I22 + I17 -> 130.41312
A125: 1 - flex lease (price) | B125: =H36 - H22 -> 70
A126: 4 - flex lease (yield) | B126: =H44-H22 -> 70
A127: 7 - flex lease (revenue) | B127: =H52-H22 -> 70

Sheet Name of budgets (hidden)
D1: =D7 -> Alfalfa - Northwest KS_ | E1: =E7 -> Alfalfa - Southeast KS_ | F1: Alfalfa - Southwest KS_ | G1: Alfalfa - Western KS_Irrigated | H1: Canola - South Central KS_ | I1: Canola - Southwest KS_Irrigated | J1: Corn - North Central KS_ | K1: Corn - North Central KS_Irrigated | L1: Corn - Northeast KS_ | M1: Corn - Northwest KS_Irrigated | N1: Corn - Northwest KS_W-C-F rotation | O1: Corn - South Central KS_ | P1: Corn - South Central KS_Irrigated | Q1: Corn - Southeast KS_ | R1: Corn - Southwest KS_Irrigated | S1: Corn - Southwest KS_W-C-F rotation | T1: Corn Silage - Northeast KS_ | U1: Cotton - South Central KS_ | V1: Cotton - Southeast KS_Irrigated | W1: Cotton - Southwest KS_Irrigated | X1: Cotton - Southwest KS_W-CT-F rotation | Y1: Forage Sorghum Hay - Western KS_W-H-F | Z1: Forage Sorghum Silage - South Central KS_ | AA1: Grain Sorghum - North Central KS_ | AB1: Grain Sorghum - North Central KS_Irrigated | AC1: Grain Sorghum - Northeast KS_ | AD1: Grain Sorghum - Northwest KS_Irrigated | AE1: Grain Sorghum - Northwest KS_W-S-F rotation | AF1: Grain Sorghum - South Central KS_ | AG1: Grain Sorghum - South Central KS_Irrigated | AH1: Grain Sorghum - Southeast KS_ | AI1: Grain Sorghum - Southwest KS_Irrigated | AJ1: Grain Sorghum - Southwest KS_W-S-F rotation | AK1: Soybeans - North Central KS_ | AL1: Soybeans - North Central KS_Irrigated | AM1: Soybeans - Northeast KS_ | AN1: Soybeans - Northwest KS_Irrigated | AO1: Soybeans - Northwest KS_W-SB_F rotation | AP1: Soybeans - South Central KS_ | AQ1: Soybeans - South Central KS_Irrigated | AR1: Soybeans - Southeast KS_ | AS1: Soybeans - Southeast KS_Double crop | AT1: Soybeans - Southwest KS_Irrigated | AU1: Soybeans - Southwest KS_W-SB-F rotation | AV1: Sunflower (confectionary) - Double crop - Western KS_Irrigated - double crop | AW1: Sunflower (Confectionary) - Western KS_Irrigated | AX1: Sunflower (Confectionary) - Western KS_W-SF-F rotation | AY1: Sunflower (oil-type) - Central and Eastern_Double crop | AZ1: Sunflower (oil-type) - Double crop - Western KS_Irrigated - double crop | BA1: Sunflower (oil-type) - Eastern KS_ | BB1: Sunflower (oil-type) - Western KS_Irrigated | BC1: Sunflower (oil-type) - Western KS_W-SF-F rotation | BD1: Wheat - North Central KS_Continuous | BE1: Wheat - North Central KS_Rotation | BF1: Wheat - Northeast KS_Continuous | BG1: Wheat - Northeast KS_Rotation | BH1: Wheat - Northwest KS_W-F rotation | BI1: Wheat - Northwest KS_W-S_C-F rotation | BJ1: Wheat - South Central KS_Continuous | BK1: Wheat - South Central KS_Rotation | BL1: Wheat - Southeast KS_ | BM1: Wheat - Southwest KS_W-F rotation | BN1: Wheat - Southwest KS_W-S_C-F rotation | BO1: Wheat - Western KS_Irrigated | BP1: 0 | BQ1: =BQ7 -> 0 | BR1: 0 | BS1: 0 | BT1: 0 | BU1: 0
A6: Column1 | B6: Column2 | C6: Column3 | D6: 1 | E6: 2 | F6: 3 | G6: 4 | H6: 5 | I6: 6 | J6: 7 | K6: 8 | L6: 9 | M6: 10 | N6: 11 | O6: 12 | P6: 13 | Q6: 14 | R6: 15 | S6: 16 | T6: 17 | U6: 18 | V6: 19 | W6: 20 | X6: 21 | Y6: 22 | Z6: 23 | AA6: 24 | AB6: 25 | AC6: 26 | AD6: 27 | AE6: 28 | AF6: 29 | AG6: 30 | AH6: 31 | AI6: 32 | AJ6: 33 | AK6: 34 | AL6: 35 | AM6: 36 | AN6: 37 | AO6: 38 | AP6: 39 | AQ6: 40 | AR6: 41 | AS6: 42 | AT6: 43 | AU6: 44 | AV6: 45 | AW6: 46 | AX6: 47 | AY6: 48 | AZ6: 49 | BA6: 50 | BB6: 51 | BC6: 52 | BD6: 53 | BE6: 54 | BF6: 55 | BG6: 56 | BH6: 57 | BI6: 58 | BJ6: 59 | BK6: 60 | BL6: 61 | BM6: 62 | BN6: 63 | BO6: 64 | BP6: 65 | BQ6: 66 | BR6: 67 | BS6: 68 | BT6: 69 | BU6: 70
A7: 1 | B7: CROP | D7: Alfalfa - Northwest KS_ | E7: Alfalfa - Southeast KS_ | F7: Alfalfa - Southwest KS_ | G7: Alfalfa - Western KS_Irrigated | H7: Canola - South Central KS_ | I7: Canola - Southwest KS_Irrigated | J7: Corn - North Central KS_ | K7: Corn - North Central KS_Irrigated | L7: Corn - Northeast KS_ | M7: Corn - Northwest KS_Irrigated | N7: Corn - Northwest KS_W-C-F rotation | O7: Corn - South Central KS_ | P7: Corn - South Central KS_Irrigated | Q7: Corn - Southeast KS_ | R7: Corn - Southwest KS_Irrigated | S7: Corn - Southwest KS_W-C-F rotation | T7: Corn Silage - Northeast KS_ | U7: Cotton - South Central KS_ | V7: Cotton - Southeast KS_Irrigated | W7: Cotton - Southwest KS_Irrigated | X7: Cotton - Southwest KS_W-CT-F rotation | Y7: Forage Sorghum Hay - Western KS_W-H-F | Z7: Forage Sorghum Silage - South Central KS_ | AA7: Grain Sorghum - North Central KS_ | AB7: Grain Sorghum - North Central KS_Irrigated | AC7: Grain Sorghum - Northeast KS_ | AD7: Grain Sorghum - Northwest KS_Irrigated | AE7: Grain Sorghum - Northwest KS_W-S-F rotation | AF7: Grain Sorghum - South Central KS_ | AG7: Grain Sorghum - South Central KS_Irrigated | AH7: Grain Sorghum - Southeast KS_ | AI7: Grain Sorghum - Southwest KS_Irrigated | AJ7: Grain Sorghum - Southwest KS_W-S-F rotation | AK7: Soybeans - North Central KS_ | AL7: Soybeans - North Central KS_Irrigated | AM7: Soybeans - Northeast KS_ | AN7: Soybeans - Northwest KS_Irrigated | AO7: Soybeans - Northwest KS_W-SB_F rotation | AP7: Soybeans - South Central KS_ | AQ7: Soybeans - South Central KS_Irrigated | AR7: Soybeans - Southeast KS_ | AS7: Soybeans - Southeast KS_Double crop | AT7: Soybeans - Southwest KS_Irrigated | AU7: Soybeans - Southwest KS_W-SB-F rotation | AV7: Sunflower (confectionary) - Double crop - Western KS_Irrigated - double crop | AW7: Sunflower (Confectionary) - Western KS_Irrigated | AX7: Sunflower (Confectionary) - Western KS_W-SF-F rotation | AY7: Sunflower (oil-type) - Central and Eastern_Double crop | AZ7: Sunflower (oil-type) - Double crop - Western KS_Irrigated - double crop | BA7: Sunflower (oil-type) - Eastern KS_ | BB7: Sunflower (oil-type) - Western KS_Irrigated | BC7: Sunflower (oil-type) - Western KS_W-SF-F rotation | BD7: Wheat - North Central KS_Continuous | BE7: Wheat - North Central KS_Rotation | BF7: Wheat - Northeast KS_Continuous | BG7: Wheat - Northeast KS_Rotation | BH7: Wheat - Northwest KS_W-F rotation | BI7: Wheat - Northwest KS_W-S_C-F rotation | BJ7: Wheat - South Central KS_Continuous | BK7: Wheat - South Central KS_Rotation | BL7: Wheat - Southeast KS_ | BM7: Wheat - Southwest KS_W-F rotation | BN7: Wheat - Southwest KS_W-S_C-F rotation | BO7: Wheat - Western KS_Irrigated | BV7: None
A8: 2 | B8: Yield | D8: 3.6 | E8: 3.6 | F8: 3.2 | G8: 5.5 | H8: 40 | I8: 58 | J8: 120 | K8: 240 | L8: 145 | M8: 240 | N8: 89 | O8: 110 | P8: 225 | Q8: 120 | R8: 225 | S8: 82 | T8: 18 | U8: 950 | V8: 1500 | W8: 1500 | X8: 900 | Y8: 2 | Z8: 9.5 | AA8: 120 | AB8: 160 | AC8: 125 | AD8: 160 | AE8: 85 | AF8: 110 | AG8: 160 | AH8: 100 | AI8: 160 | AJ8: 85 | AK8: 45 | AL8: 75 | AM8: 55 | AN8: 65 | AO8: 25 | AP8: 40 | AQ8: 75 | AR8: 45 | AS8: 28 | AT8: 65 | AU8: 25 | AV8: 16 | AW8: 22 | AX8: 14 | AY8: 10 | AZ8: 16 | BA8: 16 | BB8: 24 | BC8: 16 | BD8: 52 | BE8: 62 | BF8: 58 | BG8: 68 | BH8: 60 | BI8: 60 | BJ8: 52 | BK8: 62 | BL8: 61 | BM8: 54 | BN8: 54 | BO8: 70
A9: 3 | B9: Price | D9: 235 | E9: 250 | F9: 240 | G9: 237.5 | H9: 12.15 | I9: 12.15 | J9: 5.0644 | K9: 5.0644 | L9: 4.9512 | M9: 5.09307 | N9: 5.09307 | O9: 5.0905 | P9: 5.0905 | Q9: 5.012325 | R9: 5.0328 | S9: 5.0328 | T9: 42.0852 | U9: 0.8 | V9: 0.8 | W9: 0.8 | X9: 0.8 | Y9: 34.6154 | Z9: 34.427958 | AA9: 5.0811585 | AB9: 5.0811585 | AC9: 5.2466928 | AD9: 5.1147428 | AE9: 5.1147428 | AF9: 5.0603322 | AG9: 5.0603322 | AH9: 4.9022072 | AI9: 5.0951536 | AJ9: 5.0951536 | AK9: 11.84845 | AL9: 11.84845 | AM9: 12.279465 | AN9: 11.560856 | AO9: 11.560856 | AP9: 11.666407 | AQ9: 11.666407 | AR9: 12.101258 | AS9: 12.101258 | AT9: 11.534443 | AU9: 11.534443 | AV9: 40.91 | AW9: 40.91 | AX9: 40.91 | AY9: 19 | AZ9: 19 | BA9: 19 | BB9: 19 | BC9: 19 | BD9: 6.4612215 | BE9: 6.4612215 | BF9: 6.5666644 | BG9: 6.5666644 | BH9: 6.2607501 | BI9: 6.2607501 | BJ9: 6.075493 | BK9: 6.075493 | BL9: 6.3001072 | BM9: 6.2845072 | BN9: 6.2845072 | BO9: 6.27262865
A10: 4 | B10: Other income | U10: 192.3 | V10: 303.75 | W10: 303.75 | X10: 182.25
A11: 5 | C11: <Total Revenue>
A12: 6
A13: 7 | B13: Direct Expenses
A14: 8 | C14: Seeds | D14: 26.25 | E14: 26.25 | F14: 26.25 | G14: 26.25 | H14: 32 | I14: 32 | J14: 75.6 | K14: 127.5 | L14: 85.05 | M14: 136 | N14: 50.4 | O14: 66.15 | P14: 127.5 | Q14: 75.6 | R14: 136 | S14: 50.4 | T14: 88.2 | U14: 86 | V14: 118.25 | W14: 118.25 | X14: 86 | Y14: 28.5 | Z14: 7.8 | AA14: 15.878 | AB14: 18.122 | AC14: 15.878 | AD14: 18.122 | AE14: 10.2 | AF14: 11.322 | AG14: 18.122 | AH14: 11.322 | AI14: 18.122 | AJ14: 10.2 | AK14: 70 | AL14: 70 | AM14: 70 | AN14: 75 | AO14: 60 | AP14: 65 | AQ14: 70 | AR14: 65 | AS14: 75 | AT14: 75 | AU14: 60 | AV14: 36 | AW14: 36 | AX14: 32 | AY14: 38.5 | AZ14: 41.125 | BA14: 38.5 | BB14: 41.125 | BC14: 35 | BD14: 28.8 | BE14: 32 | BF14: 24 | BG14: 32 | BH14: 20.8 | BI14: 20.8 | BJ14: 19.2 | BK14: 28.8 | BL14: 25.6 | BM14: 20.8 | BN14: 20.8 | BO14: 20.8
A15: 9 | C15: Fertilizer (less lime) | D15: 40 | E15: 88.1 | F15: 35.6 | G15: 60.8 | H15: 80.48 | I15: 111.15 | J15: 97.21 | K15: 178.215 | L15: 136.475 | M15: 170.07 | N15: 63.66 | O15: 90.36 | P15: 168.14 | Q15: 115.755 | R15: 159.98 | S15: 58.36 | T15: 154.3575 | U15: 81.2 | V15: 122.12 | W15: 88.675 | X15: 53.21 | Y15: 29.68 | Z15: 78.275 | AA15: 98.79 | AB15: 113.335 | AC15: 122.91 | AD15: 116.15 | AE15: 62.03 | AF15: 82.945 | AG15: 112.93 | AH15: 94.6425 | AI15: 116.15 | AJ15: 61.85 | AK15: 40.2 | AL15: 57 | AM15: 59.525 | AN15: 36.4 | AO15: 14 | AP15: 37.4 | AQ15: 57 | AR15: 58.365 | AS15: 11.7475 | AT15: 36.4 | AU15: 14.4 | AV15: 35.49 | AW15: 48.39 | AX15: 35.63 | AY15: 27.32 | AZ15: 35.085 | BA15: 52.515 | BB15: 53.23 | BC15: 41.58 | BD15: 56.14 | BE15: 97.25 | BF15: 69.775 | BG15: 121.4875 | BH15: 60.07 | BI15: 70.43 | BJ15: 56.54 | BK15: 97.25 | BL15: 105.365 | BM15: 54.02 | BN15: 63.5 | BO15: 70.55
A16: 10 | C16: --Lime
A17: 11 | C17: Herbicides | D17: 1.73604 | E17: 1.73604 | F17: 3.42102 | G17: 21.965 | H17: 26.4571875 | I17: 26.4571875 | J17: 67.48846731 | K17: 82.87748125 | L17: 84.043725 | M17: 73.7058 | N17: 92.311558 | O17: 48.5093 | P17: 82.87748125 | Q17: 48.3207 | R17: 73.7058 | S17: 102.7810358 | T17: 46.005175 | U17: 76.550325 | V17: 40.572 | W17: 40.572 | X17: 76.550325 | Y17: 58.0796 | Z17: 11.19272 | AA17: 46.553725 | AB17: 46.553725 | AC17: 46.553725 | AD17: 62.610025 | AE17: 92.401235 | AF17: 18.91965625 | AG17: 46.553725 | AH17: 18.91965625 | AI17: 62.610025 | AJ17: 92.401235 | AK17: 62.13342188 | AL17: 64.82585937 | AM17: 67.57292188 | AN17: 59.35847187 | AO17: 76.2335 | AP17: 48.01379375 | AQ17: 64.82585937 | AR17: 50.84739375 | AS17: 23.9637 | AT17: 59.35847187 | AU17: 76.2335 | AV17: 33.76653 | AW17: 33.76653 | AX17: 69.02688125 | AY17: 21.581475 | AZ17: 48.17925 | BA17: 56.288475 | BB17: 48.17925 | BC17: 69.02688125 | BD17: 4.14 | BE17: 4.14 | BF17: 4.14 | BG17: 4.14 | BH17: 49.70001 | BI17: 74.75276 | BJ17: 4.74766 | BK17: 4.74766 | BL17: 4.74766 | BM17: 41.46141 | BN17: 72.15763406 | BO17: 49.70001
A18: 12 | C18: Fungicides | L18: 13.4375 | M18: 5.1024125 | R18: 5.1024125 | BD18: 13.4375 | BE18: 13.4375 | BF18: 13.4375 | BG18: 13.4375 | BH18: 4.469171875 | BI18: 4.469171875 | BJ18: 5.205609375 | BK18: 5.205609375 | BL18: 5.205609375 | BM18: 4.469171875 | BN18: 4.469171875 | BO18: 4.469171875
A19: 13 | C19: Insecticides
A20: 14 | C20: Crop consulting | G20: 7.5712 | L20: 7.5712 | M20: 7.5712 | R20: 7.5712 | U20: 11.648 | V20: 11.648 | W20: 11.648 | X20: 11.648 | AB20: 7.28 | AD20: 7.28 | AG20: 7.28 | AI20: 7.28 | AN20: 7.28 | AT20: 7.28 | AV20: 7.5712 | AW20: 7.5712 | AZ20: 7.5712 | BB20: 7.5712
A21: 15 | C21: Crop insurance | G21: 28 | H21: 26.25 | I21: 26.25 | J21: 26.52 | K21: 17.25 | L21: 26.3 | M21: 30.76 | N21: 29.59 | O21: 22.59 | P21: 17.25 | Q21: 24.53 | R21: 26.04 | S21: 29.2 | T21: 26.3 | U21: 23.35 | V21: 57.86 | W21: 57.86 | X21: 0 | Z21: 21.04 | AA21: 19.31 | AB21: 27.25 | AC21: 16.88 | AD21: 27.25 | AE21: 26.74 | AF21: 14.18 | AG21: 27.25 | AH21: 14.18 | AI21: 27.25 | AJ21: 26.71 | AK21: 16.68 | AL21: 10.94 | AM21: 13.95 | AN21: 19.5 | AO21: 28.44 | AP21: 16.28 | AQ21: 10.94 | AR21: 14.59 | AT21: 19.5 | AU21: 18.51 | AV21: 23.5 | AW21: 23.5 | AX21: 26.75 | AZ21: 23.5 | BA21: 11.18 | BB21: 23.5 | BC21: 26.75 | BD21: 16.26 | BE21: 16.26 | BF21: 15.46 | BG21: 15.46 | BH21: 24.67 | BI21: 24.67 | BJ21: 17.48 | BK21: 17.48 | BL21: 17.51 | BM21: 26.48 | BN21: 26.48 | BO21: 25.8
A22: 16 | C22: Miscellaneous | D22: 6.6528 | E22: 6.6528 | F22: 6.6528 | G22: 12.096 | H22: 9.072 | I22: 9.072 | J22: 7.8624 | K22: 12.096 | L22: 10.2816 | M22: 12.096 | N22: 6.6528 | O22: 7.2576 | P22: 12.096 | Q22: 8.4672 | R22: 12.096 | S22: 6.6528 | T22: 10.2816 | U22: 70.1568 | V22: 70.1568 | W22: 81.0432 | X22: 59.851008 | Y22: 6.6528 | Z22: 7.2576 | AA22: 7.8624 | AB22: 12.096 | AC22: 10.2816 | AD22: 12.096 | AE22: 6.6528 | AF22: 7.2576 | AG22: 12.096 | AH22: 8.4672 | AI22: 12.096 | AJ22: 6.6528 | AK22: 7.8624 | AL22: 12.096 | AM22: 10.2816 | AN22: 12.096 | AO22: 6.6528 | AP22: 7.2576 | AQ22: 12.096 | AR22: 8.4672 | AS22: 8.4672 | AT22: 12.096 | AU22: 6.6528 | AV22: 12.096 | AW22: 12.096 | AX22: 6.6528 | AY22: 7.2576 | AZ22: 12.096 | BA22: 9.072 | BB22: 12.096 | BC22: 6.6528 | BD22: 7.8624 | BE22: 7.8624 | BF22: 10.2816 | BG22: 10.2816 | BH22: 6.6528 | BI22: 6.6528 | BJ22: 7.2576 | BK22: 7.2576 | BL22: 8.4672 | BM22: 6.6528 | BN22: 6.6528 | BO22: 12.096
A23: 17 | C23: Surfactant
A24: 18 | C24: Other inputs | D24: 14.4942 | E24: 14.4942 | F24: 14.4942 | G24: 10.537875 | H24: 13 | I24: 18 | J24: 0 | K24: 0 | L24: 0 | M24: 9.759089062 | N24: 0 | O24: 0 | P24: 0 | Q24: 0 | R24: 19.51817812 | S24: 0 | T24: 0 | U24: 2.12976 | V24: 7.0992 | W24: 4.1412 | X24: 2.12976 | Y24: 0 | Z24: 0 | AA24: 0 | AB24: 0 | AC24: 0 | AD24: 0 | AE24: 0 | AF24: 0 | AG24: 0 | AH24: 0 | AI24: 0 | AJ24: 0 | AK24: 0 | AL24: 0 | AM24: 0 | AN24: 0 | AO24: 0 | AP24: 0 | AQ24: 0 | AR24: 0 | AS24: 0 | AT24: 0 | AU24: 0 | AV24: 17.8959 | AW24: 17.8959 | AX24: 14.33833125 | AY24: 10.537875 | AZ24: 17.8959 | BA24: 21.07575 | BB24: 17.8959 | BC24: 9.86435625 | BD24: 0 | BE24: 0 | BF24: 0 | BG24: 0 | BH24: 0 | BI24: 0 | BJ24: 0 | BK24: 0 | BL24: 0 | BM24: 0 | BN24: 0 | BO24: 0
A25: 19 | C25: MACHINERY
A26: 20 | C26: --fertilizer application | D26: 2.843429142 | E26: 2.843429142 | F26: 2.843429142 | G26: 3.951853546 | I26: 5.686858283 | J26: 2.843429142 | K26: 2.843429142 | L26: 2.843429142 | N26: 2.843429142 | O26: 2.843429142 | P26: 2.843429142 | S26: 2.843429142 | T26: 2.843429142 | U26: 2.843429142 | V26: 2.843429142 | W26: 2.843429142 | X26: 5.686858283 | Y26: 2.843429142 | Z26: 2.843429142 | AA26: 2.843429142 | AB26: 2.843429142 | AC26: 2.843429142 | AE26: 2.843429142 | AG26: 2.843429142 | AH26: 2.843429142 | AJ26: 2.843429142 | AK26: 2.843429142 | AL26: 2.843429142 | AP26: 2.843429142 | AQ26: 2.843429142 | AR26: 2.843429142 | AX26: 2.843429142 | AY26: 3.951853546 | BA26: 2.843429142 | BC26: 2.843429142 | BD26: 2.843429142 | BE26: 2.843429142 | BF26: 2.843429142 | BG26: 2.843429142 | BI26: 2.843429142 | BJ26: 2.843429142 | BK26: 2.843429142 | BL26: 7.903707092 | BN26: 2.843429142
A27: 21 | C27: --harvesting | H27: 16.24800464 | I27: 16.24800464 | J27: 15.3109017 | K27: 15.3109017 | L27: 15.3109017 | M27: 15.3109017 | N27: 15.3109017 | O27: 15.3109017 | P27: 15.3109017 | Q27: 20.12731811 | R27: 15.3109017 | S27: 15.3109017 | U27: 49.46268719 | V27: 49.46268719 | W27: 49.46268719 | X27: 49.46268719 | AA27: 16.24800464 | AB27: 16.24800464 | AC27: 16.24800464 | AD27: 13.82309211 | AE27: 13.82309211 | AF27: 13.82309211 | AG27: 16.24800464 | AH27: 16.24800464 | AI27: 13.82309211 | AJ27: 13.82309211 | AK27: 13.65281347 | AL27: 12.58783613 | AM27: 13.65281347 | AN27: 12.58783613 | AO27: 12.58783613 | AP27: 13.65281347 | AQ27: 12.58783613 | AR27: 13.65281347 | AS27: 13.65281347 | AT27: 12.58783613 | AU27: 12.58783613 | AV27: 15.3109017 | AW27: 15.3109017 | AX27: 15.3109017 | AY27: 20.12731811 | AZ27: 15.3109017 | BA27: 20.12731811 | BB27: 15.3109017 | BC27: 15.3109017 | BD27: 13.82309211 | BE27: 13.82309211 | BF27: 16.24800464 | BG27: 16.24800464 | BH27: 13.82309211 | BI27: 13.82309211 | BJ27: 13.82309211 | BK27: 13.82309211 | BL27: 16.24800464 | BM27: 13.82309211 | BN27: 13.82309211 | BO27: 13.82309211
A28: 22 | C28: --hauling | H28: 8.652217569 | I28: 8.652217569 | J28: 8.282649787 | K28: 16.56529957 | L28: 7.208954043 | M28: 16.56529957 | N28: 8.282649787 | O28: 7.208954043 | P28: 16.56529957 | Q28: 10.81803448 | R28: 16.56529957 | S28: 8.282649787 | AA28: 8.652217569 | AB28: 8.652217569 | AC28: 8.652217569 | AD28: 7.485549787 | AE28: 7.485549787 | AF28: 7.208954043 | AG28: 8.652217569 | AH28: 8.652217569 | AI28: 7.485549787 | AJ28: 7.485549787 | AK28: 7.208954043 | AL28: 6.420088321 | AM28: 7.208954043 | AN28: 6.420088321 | AO28: 6.420088321 | AP28: 7.208954043 | AQ28: 6.420088321 | AR28: 7.208954043 | AS28: 3.604477021 | AT28: 6.420088321 | AU28: 6.420088321 | AV28: 8.282649787 | AW28: 8.282649787 | AX28: 4.141324894 | AY28: 5.409017241 | AZ28: 8.282649787 | BA28: 5.409017241 | BB28: 8.282649787 | BC28: 4.141324894 | BD28: 7.485549787 | BE28: 7.485549787 | BF28: 8.652217569 | BG28: 8.652217569 | BH28: 7.485549787 | BI28: 7.485549787 | BJ28: 7.485549787 | BK28: 7.485549787 | BL28: 8.652217569 | BM28: 7.485549787 | BN28: 7.485549787 | BO28: 7.485549787
A29: 23 | C29: --miscellaneous
A30: 24 | C30: --planting | D30: 1.786467244 | E30: 2.086525015 | F30: 1.786467244 | G30: 1.839772346 | H30: 7.9221142 | I30: 7.9221142 | J30: 5.360215208 | K30: 5.360215208 | L30: 5.360215208 | M30: 4.862949457 | N30: 5.360215208 | O30: 4.862949457 | P30: 5.360215208 | Q30: 6.216031329 | R30: 4.862949457 | S30: 5.360215208 | T30: 6.780724598 | U30: 5.925371323 | V30: 5.925371323 | W30: 5.925371323 | X30: 5.925371323 | Y30: 5.360215208 | Z30: 6.216031329 | AA30: 5.360215208 | AB30: 5.360215208 | AC30: 6.780724598 | AD30: 4.862949457 | AE30: 5.360215208 | AF30: 4.862949457 | AG30: 5.360215208 | AH30: 6.216031329 | AI30: 4.862949457 | AJ30: 5.360215208 | AK30: 9.071127165 | AL30: 9.071127165 | AM30: 9.961273966 | AN30: 5.360215208 | AO30: 5.360215208 | AP30: 9.071127165 | AQ30: 9.071127165 | AR30: 8.124889221 | AS30: 6.780724598 | AT30: 5.360215208 | AU30: 5.995976955 | AV30: 4.862949457 | AW30: 4.862949457 | AX30: 5.360215208 | AY30: 6.780724598 | AZ30: 4.862949457 | BA30: 6.780724598 | BB30: 4.862949457 | BC30: 5.360215208 | BD30: 7.9221142 | BE30: 8.93233622 | BF30: 7.9221142 | BG30: 10.43262507 | BH30: 7.147995845 | BI30: 8.93233622 | BJ30: 7.9221142 | BK30: 7.147995845 | BL30: 8.766034357 | BM30: 7.147995845 | BN30: 8.93233622 | BO30: 7.147995845
A31: 25 | C31: --spraying | D31: 2.092332715 | E31: 2.59060186 | F31: 2.092332715 | G31: 4.925641769 | H31: 4.998766566 | I31: 6.248458207 | J31: 3.749074924 | K31: 3.749074924 | L31: 4.282520604 | M31: 3.661582252 | N31: 4.18466543 | O31: 2.59060186 | P31: 3.749074924 | Q31: 2.855013736 | R31: 4.18466543 | S31: 4.18466543 | T31: 4.282520604 | U31: 10.36240744 | V31: 9.067106508 | W31: 7.323164503 | X31: 8.369330861 | Y31: 2.092332715 | Z31: 1.29530093 | AA31: 3.885902789 | AB31: 3.885902789 | AC31: 3.671571841 | AD31: 2.092332715 | AE31: 4.18466543 | AF31: 2.499383283 | AG31: 3.885902789 | AH31: 2.59060186 | AI31: 2.092332715 | AJ31: 4.18466543 | AK31: 3.481486653 | AL31: 3.749074924 | AM31: 4.282520604 | AN31: 3.138499073 | AO31: 3.138499073 | AP31: 3.481486653 | AQ31: 3.885902789 | AR31: 4.282520604 | AS31: 2.59060186 | AT31: 3.138499073 | AU31: 3.138499073 | AV31: 3.661582252 | AW31: 3.661582252 | AX31: 2.615415894 | AY31: 3.885902789 | AZ31: 4.18466543 | BA31: 6.248458207 | BB31: 4.18466543 | BC31: 2.615415894 | BD31: 2.499383283 | BE31: 2.499383283 | BF31: 2.59060186 | BG31: 2.59060186 | BH31: 4.18466543 | BI31: 6.276998146 | BJ31: 2.499383283 | BK31: 2.499383283 | BL31: 4.925641769 | BM31: 4.18466543 | BN31: 6.276998146 | BO31: 4.18466543
A32: 26 | C32: --tillage | D32: 2.408758338 | E32: 3.222161059 | F32: 2.408758338 | G32: 3.627850176 | H32: 9.804525926 | I32: 9.804525926 | K32: 3.010947923 | M32: 3.010947923 | O32: 10.29620008 | P32: 3.010947923 | Q32: 10.29620008 | R32: 3.010947923 | U32: 3.989920715 | V32: 3.989920715 | W32: 3.498246558 | X32: 3.010947923 | Z32: 9.804525926 | AD32: 3.010947923 | AF32: 9.804525926 | AH32: 9.804525926 | AI32: 3.010947923 | AN32: 3.010947923 | AR32: 8.166755012 | AT32: 3.010947923 | AV32: 14.55918972 | AW32: 14.55918972 | AZ32: 14.55918972 | BB32: 14.55918972 | BD32: 15.04648835 | BF32: 15.78799194 | BH32: 9.032843769 | BJ32: 19.01968526 | BK32: 3.010947923 | BL32: 7.631974441 | BM32: 9.032843769 | BO32: 9.032843769
A33: 27 | C33: --other | D33: 0 | E33: 0 | F33: 0 | G33: 0 | H33: 0 | I33: 0 | J33: 0 | K33: 0 | L33: 0 | M33: 0 | N33: 0 | O33: 0 | P33: 0 | Q33: 0 | R33: 0 | S33: 0 | T33: 0 | U33: 0 | V33: 0 | W33: 0 | X33: 0 | Y33: 0 | Z33: 0 | AA33: 0 | AB33: 0 | AC33: 0 | AD33: 0 | AE33: 0 | AF33: 0 | AG33: 0 | AH33: 0 | AI33: 0 | AJ33: 0 | AK33: 0 | AL33: 0 | AM33: 0 | AN33: 0 | AO33: 0 | AP33: 0 | AQ33: 0 | AR33: 0 | AS33: 0 | AT33: 0 | AU33: 0 | AV33: 0 | AW33: 0 | AX33: 0 | AY33: 0 | AZ33: 0 | BA33: 0 | BB33: 0 | BC33: 0 | BD33: 0 | BE33: 0 | BF33: 0 | BG33: 0 | BH33: 0 | BI33: 0 | BJ33: 0 | BK33: 0 | BL33: 0 | BM33: 0 | BN33: 0 | BO33: 0
A34: 28 | C34: --custom operations | D34: 112.2155934 | E34: 149.2313673 | F34: 121.8999529 | G34: 180.5697494 | H34: 33.21004803 | I34: 33.21004803 | J34: 18.17623291 | K34: 28.01431233 | L34: 18.17623291 | O34: 18.17623291 | P34: 28.01431233 | Q34: 18.17623291 | T34: 184.1938232 | U34: 164.2102244 | V34: 248.7562194 | W34: 248.7562194 | X34: 156.5242248 | Y34: 81.41574364 | Z34: 118.709107 | AA34: 18.17623291 | AB34: 18.17623291 | AC34: 18.17623291 | AD34: 33.77740603 | AF34: 18.17623291 | AG34: 18.17623291 | AH34: 18.17623291 | AI34: 33.77740603 | AV34: 18.17623291 | AW34: 18.17623291 | AX34: 12.50898196 | AZ34: 18.17623291 | BA34: 18.17623291 | BB34: 18.17623291 | BC34: 8.339321307 | BD34: 18.17623291 | BF34: 18.17623291 | BH34: 18.17623291 | BJ34: 18.17623291 | BM34: 18.17623291 | BO34: 18.17623291
A35: 29 | C35: Irrigation | G35: 70.98368467 | I35: 29.88786723 | K35: 34.66637562 | M35: 52.30376765 | P35: 37.2342553 | R35: 56.03975105 | V35: 20.54303741 | W35: 29.88786723 | AB35: 25.67879676 | AD35: 44.83180084 | AG35: 25.67879676 | AI35: 44.83180084 | AL35: 20.54303741 | AN35: 37.35983404 | AQ35: 23.11091708 | AT35: 41.09581744 | AV35: 37.35983404 | AW35: 37.35983404 | AZ35: 37.35983404 | BB35: 37.35983404 | BO35: 22.41590042
A36: 30 | C36: Interest on direct expenses
A37: 31 | C37: <Total Direct Expenses>
A38: 32
A39: 33 | B39: Fixed expenses
A40: 34 | C40: MACHINERY
A41: 35 | C41: --fertilizer application | D41: 3.678775225 | E41: 3.678775225 | F41: 3.678775225 | G41: 3.398437188 | I41: 7.35755045 | J41: 3.678775225 | K41: 3.678775225 | L41: 3.678775225 | N41: 3.678775225 | O41: 3.678775225 | P41: 3.678775225 | S41: 3.678775225 | T41: 3.678775225 | U41: 3.678775225 | V41: 3.678775225 | W41: 3.678775225 | X41: 7.35755045 | Y41: 3.678775225 | Z41: 3.678775225 | AA41: 3.678775225 | AB41: 3.678775225 | AC41: 3.678775225 | AE41: 3.678775225 | AG41: 3.678775225 | AH41: 3.678775225 | AJ41: 3.678775225 | AK41: 3.678775225 | AL41: 3.678775225 | AP41: 3.678775225 | AQ41: 3.678775225 | AR41: 3.678775225 | AX41: 3.678775225 | AY41: 3.398437188 | BA41: 3.678775225 | BC41: 3.678775225 | BD41: 3.678775225 | BE41: 3.678775225 | BF41: 3.678775225 | BG41: 3.678775225 | BI41: 3.678775225 | BJ41: 3.678775225 | BK41: 3.678775225 | BL41: 6.796874376 | BN41: 3.678775225
A42: 36 | C42: --harvesting | H42: 29.82906197 | I42: 29.82906197 | J42: 28.07843362 | K42: 28.07843362 | L42: 28.07843362 | M42: 28.07843362 | N42: 28.07843362 | O42: 28.07843362 | P42: 28.07843362 | Q42: 39.56183832 | R42: 28.07843362 | S42: 28.07843362 | U42: 117.7057563 | V42: 117.7057563 | W42: 117.7057563 | X42: 117.7057563 | AA42: 29.82906197 | AB42: 29.82906197 | AC42: 29.82906197 | AD42: 25.37242821 | AE42: 25.37242821 | AF42: 25.37242821 | AG42: 29.82906197 | AH42: 29.82906197 | AI42: 25.37242821 | AJ42: 25.37242821 | AK42: 25.06272802 | AL42: 23.11644629 | AM42: 25.06272802 | AN42: 23.11644629 | AO42: 23.11644629 | AP42: 25.06272802 | AQ42: 23.11644629 | AR42: 25.06272802 | AS42: 25.06272802 | AT42: 23.11644629 | AU42: 23.11644629 | AV42: 28.07843362 | AW42: 28.07843362 | AX42: 28.07843362 | AY42: 39.56183832 | AZ42: 28.07843362 | BA42: 39.56183832 | BB42: 28.07843362 | BC42: 28.07843362 | BD42: 25.37242821 | BE42: 25.37242821 | BF42: 29.82906197 | BG42: 29.82906197 | BH42: 25.37242821 | BI42: 25.37242821 | BJ42: 25.37242821 | BK42: 25.37242821 | BL42: 29.82906197 | BM42: 25.37242821 | BN42: 25.37242821 | BO42: 25.37242821
A43: 37 | C43: --hauling | H43: 9.30705463 | I43: 9.30705463 | J43: 9.792545265 | K43: 19.58509053 | L43: 7.754558709 | M43: 19.58509053 | N43: 9.792545265 | O43: 7.754558709 | P43: 19.58509053 | Q43: 11.63678989 | R43: 19.58509053 | S43: 9.792545265 | AA43: 9.30705463 | AB43: 9.30705463 | AC43: 9.30705463 | AD43: 8.351426004 | AE43: 8.351426004 | AF43: 7.754558709 | AG43: 9.30705463 | AH43: 9.30705463 | AI43: 8.351426004 | AJ43: 8.351426004 | AK43: 7.754558709 | AL43: 7.162719383 | AM43: 7.754558709 | AN43: 7.162719383 | AO43: 7.162719383 | AP43: 7.754558709 | AQ43: 7.162719383 | AR43: 7.754558709 | AS43: 3.877279354 | AT43: 7.162719383 | AU43: 7.162719383 | AV43: 9.792545265 | AW43: 9.792545265 | AX43: 4.896272633 | AY43: 5.818394944 | AZ43: 9.792545265 | BA43: 5.818394944 | BB43: 9.792545265 | BC43: 4.896272633 | BD43: 8.351426004 | BE43: 8.351426004 | BF43: 9.30705463 | BG43: 9.30705463 | BH43: 8.351426004 | BI43: 8.351426004 | BJ43: 8.351426004 | BK43: 8.351426004 | BL43: 9.30705463 | BM43: 8.351426004 | BN43: 8.351426004 | BO43: 8.351426004
A44: 38 | C44: --miscellaneous
A45: 39 | C45: --planting | D45: 2.287136505 | E45: 2.597551271 | F45: 2.287136505 | G45: 1.741578324 | H45: 9.44943756 | I45: 9.44943756 | J45: 7.974823286 | K45: 7.974823286 | L45: 7.974823286 | M45: 6.993526674 | N45: 7.974823286 | O45: 6.993526674 | P45: 7.974823286 | Q45: 7.965257228 | R45: 6.993526674 | S45: 7.974823286 | T45: 9.012913851 | U45: 6.937870621 | V45: 6.937870621 | W45: 6.937870621 | X45: 6.937870621 | Y45: 7.974823286 | Z45: 7.965257228 | AA45: 7.974823286 | AB45: 7.974823286 | AC45: 9.012913851 | AD45: 6.993526674 | AE45: 7.974823286 | AF45: 6.993526674 | AG45: 7.974823286 | AH45: 7.965257228 | AI45: 6.993526674 | AJ45: 7.974823286 | AK45: 14.13045422 | AL45: 14.13045422 | AM45: 15.66783711 | AN45: 7.974823286 | AO45: 7.974823286 | AP45: 14.13045422 | AQ45: 14.13045422 | AR45: 12.19923471 | AS45: 9.012913851 | AT45: 7.974823286 | AU45: 9.111445145 | AV45: 6.993526674 | AW45: 6.993526674 | AX45: 7.974823286 | AY45: 9.012913851 | AZ45: 6.993526674 | BA45: 9.012913851 | BB45: 6.993526674 | BC45: 7.974823286 | BD45: 9.44943756 | BE45: 11.43568252 | BF45: 9.44943756 | BG45: 12.98775636 | BH45: 8.93685899 | BI45: 11.43568252 | BJ45: 9.44943756 | BK45: 8.93685899 | BL45: 9.543071512 | BM45: 8.93685899 | BN45: 11.43568252 | BO45: 8.93685899
A46: 40 | C46: --spraying | D46: 3.591180302 | E46: 3.216640026 | F46: 3.591180302 | G46: 5.070078514 | H46: 8.442578478 | I46: 10.5532231 | J46: 6.331933858 | K46: 6.331933858 | L46: 5.728263059 | M46: 6.284565529 | N46: 7.182360605 | O46: 3.216640026 | P46: 6.331933858 | Q46: 3.818842039 | R46: 7.182360605 | S46: 7.182360605 | T46: 5.728263059 | U46: 12.8665601 | V46: 11.25824009 | W46: 12.56913106 | X46: 14.36472121 | Y46: 3.591180302 | Z46: 1.608320013 | AA46: 4.824960038 | AB46: 4.824960038 | AC46: 4.444911816 | AD46: 3.591180302 | AE46: 7.182360605 | AF46: 4.221289239 | AG46: 4.824960038 | AH46: 3.216640026 | AI46: 3.591180302 | AJ46: 7.182360605 | AK46: 4.641361863 | AL46: 6.331933858 | AM46: 5.728263059 | AN46: 5.386770454 | AO46: 5.386770454 | AP46: 4.641361863 | AQ46: 4.824960038 | AR46: 5.728263059 | AS46: 3.216640026 | AT46: 5.386770454 | AU46: 5.386770454 | AV46: 6.284565529 | AW46: 6.284565529 | AX46: 4.488975378 | AY46: 4.824960038 | AZ46: 7.182360605 | BA46: 10.5532231 | BB46: 7.182360605 | BC46: 4.488975378 | BD46: 4.221289239 | BE46: 4.221289239 | BF46: 3.216640026 | BG46: 3.216640026 | BH46: 7.182360605 | BI46: 10.77354091 | BJ46: 4.221289239 | BK46: 4.221289239 | BL46: 5.070078514 | BM46: 7.182360605 | BN46: 10.77354091 | BO46: 7.182360605
A47: 41 | C47: --tillage | D47: 4.402476146 | E47: 4.5608747 | F47: 4.402476146 | G47: 4.956772453 | H47: 14.45657471 | I47: 14.45657471 | K47: 5.503095183 | M47: 5.503095183 | O47: 14.7311357 | P47: 5.503095183 | Q47: 14.7311357 | R47: 5.503095183 | U47: 6.383336906 | V47: 6.383336906 | W47: 6.108775912 | X47: 5.503095183 | Z47: 14.45657471 | AD47: 5.503095183 | AF47: 14.45657471 | AH47: 14.45657471 | AI47: 5.503095183 | AN47: 5.503095183 | AR47: 12.00361814 | AT47: 5.503095183 | AV47: 21.24012192 | AW47: 21.24012192 | AZ47: 21.24012192 | BB47: 21.24012192 | BD47: 21.84580265 | BF47: 21.88292185 | BH47: 16.50928555 | BJ47: 23.80375882 | BK47: 5.503095183 | BL47: 9.925016775 | BM47: 16.50928555 | BO47: 16.50928555
A48: 42 | C48: --other | D48: 0 | E48: 0 | F48: 0 | G48: 0 | H48: 0 | I48: 0 | J48: 0 | K48: 0 | L48: 0 | M48: 0 | N48: 0 | O48: 0 | P48: 0 | Q48: 0 | R48: 0 | S48: 0 | T48: 0 | U48: 0 | V48: 0 | W48: 0 | X48: 0 | Y48: 0 | Z48: 0 | AA48: 0 | AB48: 0 | AC48: 0 | AD48: 0 | AE48: 0 | AF48: 0 | AG48: 0 | AH48: 0 | AI48: 0 | AJ48: 0 | AK48: 0 | AL48: 0 | AM48: 0 | AN48: 0 | AO48: 0 | AP48: 0 | AQ48: 0 | AR48: 0 | AS48: 0 | AT48: 0 | AU48: 0 | AV48: 0 | AW48: 0 | AX48: 0 | AY48: 0 | AZ48: 0 | BA48: 0 | BB48: 0 | BC48: 0 | BD48: 0 | BE48: 0 | BF48: 0 | BG48: 0 | BH48: 0 | BI48: 0 | BJ48: 0 | BK48: 0 | BL48: 0 | BM48: 0 | BN48: 0 | BO48: 0
A49: 43 | C49: Irrigation | G49: 234.0355335 | I49: 234.0355335 | K49: 182.8186471 | M49: 234.0355335 | P49: 182.8186471 | R49: 234.0355335 | V49: 182.8186471 | W49: 234.0355335 | AB49: 182.8186471 | AD49: 234.0355335 | AG49: 182.8186471 | AI49: 234.0355335 | AL49: 182.8186471 | AN49: 234.0355335 | AQ49: 182.8186471 | AT49: 234.0355335 | AV49: 234.0355335 | AW49: 234.0355335 | AZ49: 234.0355335 | BB49: 234.0355335 | BO49: 234.0355335
A50: 44 | C50: Cash rent | D50: 71 | E50: 53 | F50: 51 | G50: 178 | H50: 53 | I50: 195 | J50: 103 | K50: 215 | L50: 139 | M50: 230 | N50: 106.5 | O50: 53 | P50: 195 | Q50: 69 | R50: 168 | S50: 76.5 | T50: 139 | U50: 69 | V50: 195 | W50: 132 | X50: 76.5 | Y50: 94.5 | Z50: 53 | AA50: 103 | AB50: 215 | AC50: 139 | AD50: 230 | AE50: 106.5 | AF50: 53 | AG50: 195 | AH50: 69 | AI50: 168 | AJ50: 76.5 | AK50: 103 | AL50: 215 | AM50: 139 | AN50: 230 | AO50: 71 | AP50: 53 | AQ50: 195 | AR50: 69 | AS50: 34.5 | AT50: 168 | AU50: 76.5 | AV50: 89 | AW50: 178 | AX50: 94.5 | AY50: 77 | AZ50: 89 | BA50: 103 | BB50: 178 | BC50: 94.5 | BD50: 103 | BE50: 103 | BF50: 139 | BG50: 139 | BH50: 71 | BI50: 106.5 | BJ50: 53 | BK50: 53 | BL50: 69 | BM50: 102 | BN50: 94.5 | BO50: 178
T108: Depreciation on irrigation equipment
T109: Interest on irrigation equipment
T110: Cash rent ( $ / acre )

Sheet Add a budget
B3: Budget from Columns E and F of the Budgets page
B4: Crop | C4: (Menu name) | D4: =Budgets!E5 -> Cotton - South Central KS_
C5: (Short name in budget) | D5: =Budgets!E15 -> Cotton - South Central KS_
B6: Yield | D6: ='Calculations '!D5 -> 950
B7: Price | D7: ='Calculations '!D6 -> 0.8 | H7: Budget slot | I7: CURRENT BUDGETS
B8: Other income | D8: ='Calculations '!D7 -> 192.3 | H8: 1 | I8: =INDIRECT("'Name of budgets'!" & J8 & "7") -> Alfalfa - Northwest KS_ | J8: d | T8: 1 | U8: CROP | V8: =C55 -> test budget 2
C9: <Total Revenue> | D9: ='Calculations '!D8 -> 952.3 | H9: 2 | I9: =INDIRECT("'Name of budgets'!" & J9 & "7") -> Alfalfa - Southeast KS_ | J9: e | T9: 2 | U9: YIELD | V9: =D6 -> 950
H10: 3 | I10: Alfalfa - Southwest KS_ | J10: f | T10: 3 | U10: PRICE | V10: =D7 -> 0.8
B11: Direct Expenses | H11: 4 | I11: Alfalfa - Western KS_Irrigated | J11: g | T11: 4 | U11: -----
C12: Seeds | D12: ='Calculations '!D11 -> 86 | H12: 5 | I12: Canola - South Central KS_ | J12: h | T12: 5 | U12: -----
C13: Fertilizer (less lime) | D13: ='Calculations '!D12 -> 81.2 | H13: 6 | I13: Canola - Southwest KS_Irrigated | J13: i | T13: 6 | U13: -----
C14: --Lime | D14: ='Calculations '!D13 -> 0 | H14: 7 | I14: Corn - North Central KS_ | J14: j | T14: 7 | U14: -----
C15: Herbicides | D15: ='Calculations '!D14 -> 76.550325 | H15: 8 | I15: Corn - North Central KS_Irrigated | J15: k | T15: 8 | U15: Seeds | V15: =D12 -> 86
C16: Fungicides | D16: ='Calculations '!D15 -> 0 | H16: 9 | I16: Corn - Northeast KS_ | J16: l | T16: 9 | U16: Fertilizer (less lime) | V16: 81.2
C17: Insecticides | D17: ='Calculations '!D16 -> 0 | H17: 10 | I17: Corn - Northwest KS_Irrigated | J17: m | T17: 10 | U17: --Lime | V17: 0
C18: Crop consulting | D18: ='Calculations '!D17 -> 11.648 | H18: 11 | I18: Corn - Northwest KS_W-C-F rotation | J18: n | T18: 11 | U18: Herbicides | V18: 76.550325
C19: Crop insurance | D19: ='Calculations '!D18 -> 23.35 | H19: 12 | I19: Corn - South Central KS_ | J19: o | T19: 12 | U19: Fungicides | V19: 0
C20: Miscellaneous | D20: ='Calculations '!D19 -> 70.1568 | H20: 13 | I20: Corn - South Central KS_Irrigated | J20: p | T20: 13 | U20: Insecticides | V20: 0
C21: Surfactant | D21: ='Calculations '!D20 -> 0 | H21: 14 | I21: Corn - Southeast KS_ | J21: q | T21: 14 | U21: Crop consulting | V21: 11.648
C22: Other inputs | D22: ='Calculations '!D21 -> 2.12976 | H22: 15 | I22: Corn - Southwest KS_Irrigated | J22: r | T22: 15 | U22: Crop insurance | V22: 23.35
C23: MACHINERY | D23: ='Calculations '!D22 -> 0 | H23: 16 | I23: Corn - Southwest KS_W-C-F rotation | J23: s | T23: 16 | U23: Miscellaneous | V23: 70.1568
C24: --fertilizer application | D24: ='Calculations '!D23 -> 2.843429142 | H24: 17 | I24: Corn Silage - Northeast KS_ | J24: t | T24: 17 | U24: Surfactant | V24: 0
C25: --harvesting | D25: ='Calculations '!D24 -> 49.46268719 | H25: 18 | I25: Cotton - South Central KS_ | J25: u | T25: 18 | U25: Other inputs | V25: 2.12976
C26: --hauling | D26: ='Calculations '!D25 -> 0 | H26: 19 | I26: Cotton - Southeast KS_Irrigated | J26: v | T26: 19 | U26: -----
C27: --miscellaneous | D27: ='Calculations '!D26 -> 0 | H27: 20 | I27: Cotton - Southwest KS_Irrigated | J27: w | T27: 20 | U27: --fertilizer application | V27: 2.843429142
C28: --planting | D28: ='Calculations '!D27 -> 5.925371323 | H28: 21 | I28: Cotton - Southwest KS_W-CT-F rotation | J28: x | T28: 21 | U28: --harvesting | V28: 49.46268719
C29: --spraying | D29: ='Calculations '!D28 -> 10.36240744 | H29: 22 | I29: Forage Sorghum Hay - Western KS_W-H-F | J29: y | T29: 22 | U29: --hauling | V29: 0
C30: --tillage | D30: ='Calculations '!D29 -> 3.989920715 | H30: 23 | I30: Forage Sorghum Silage - South Central KS_ | J30: z | T30: 23 | U30: --miscellaneous | V30: 0
C31: --other | D31: ='Calculations '!D30 -> 0 | H31: 24 | I31: Grain Sorghum - North Central KS_ | J31: aa | T31: 24 | U31: --planting | V31: 5.925371323
C32: --custom operations | D32: ='Calculations '!D31 -> 164.2102244 | H32: 25 | I32: Grain Sorghum - North Central KS_Irrigated | J32: ab | T32: 25 | U32: --spraying | V32: 10.36240744
C33: Irrigation | D33: ='Calculations '!D32 -> 0 | H33: 26 | I33: Grain Sorghum - Northeast KS_ | J33: ac | T33: 26 | U33: --tillage | V33: 3.989920715
C34: Interest on direct expenses | D34: ='Calculations '!D33 -> 23.51315701 | H34: 27 | I34: Grain Sorghum - Northwest KS_Irrigated | J34: ad | T34: 27 | U34: --other | V34: 0
C35: <Total Direct Expenses> | D35: =SUM(D12:D34) -> 611.3420822 | H35: 28 | I35: Grain Sorghum - Northwest KS_W-S-F rotation | J35: ae | T35: 28 | U35: --custom operations | V35: 164.2102244
H36: 29 | I36: Grain Sorghum - South Central KS_ | J36: af | T36: 29 | U36: Irrigation | V36: 0
B37: Fixed expenses | H37: 30 | I37: Grain Sorghum - South Central KS_Irrigated | J37: ag | T37: 30 | U37: ----- | V37: 23.51315701
C38: MACHINERY | H38: 31 | I38: Grain Sorghum - Southeast KS_ | J38: ah | T38: 31 | U38: ----- | V38: 611.3420822
C39: --fertilizer application | D39: ='Calculations '!D38 -> 3.678775225 | H39: 32 | I39: Grain Sorghum - Southwest KS_Irrigated | J39: ai | T39: 32 | U39: ----- | V39: 0
C40: --harvesting | D40: ='Calculations '!D39 -> 117.7057563 | H40: 33 | I40: Grain Sorghum - Southwest KS_W-S-F rotation | J40: aj | T40: 33 | U40: ----- | V40: 0
C41: --hauling | D41: ='Calculations '!D40 -> 0 | H41: 34 | I41: Soybeans - North Central KS_ | J41: ak | T41: 34 | U41: ----- | V41: 0
C42: --miscellaneous | D42: ='Calculations '!D41 -> 0 | H42: 35 | I42: Soybeans - North Central KS_Irrigated | J42: al | T42: 35 | U42: --fertilizer application | V42: 3.678775225
C43: --planting | D43: ='Calculations '!D42 -> 6.937870621 | H43: 36 | I43: Soybeans - Northeast KS_ | J43: am | T43: 36 | U43: --harvesting | V43: 117.7057563
C44: --spraying | D44: ='Calculations '!D43 -> 12.8665601 | H44: 37 | I44: Soybeans - Northwest KS_Irrigated | J44: an | T44: 37 | U44: --hauling | V44: 0
C45: --tillage | D45: ='Calculations '!D44 -> 6.383336906 | H45: 38 | I45: Soybeans - Northwest KS_W-SB_F rotation | J45: ao | T45: 38 | U45: --miscellaneous | V45: 0
C46: --other | D46: ='Calculations '!D45 -> 0 | H46: 39 | I46: Soybeans - South Central KS_ | J46: ap | T46: 39 | U46: --planting | V46: 6.937870621
C47: Irrigation | D47: ='Calculations '!D46 -> 0 | H47: 40 | I47: Soybeans - South Central KS_Irrigated | J47: aq | T47: 40 | U47: --spraying | V47: 12.8665601
C48: Cash rent ( $ / acre ) | D48: ='Calculations '!D47 -> 69 | H48: 41 | I48: Soybeans - Southeast KS_ | J48: ar | T48: 41 | U48: --tillage | V48: 6.383336906
C49: <Total Fixed Expenses> | D49: =SUM(D39:D48) -> 216.5722991 | H49: 42 | I49: Soybeans - Southeast KS_Double crop | J49: as | T49: 42 | U49: --other | V49: 0
H50: 43 | I50: Soybeans - Southwest KS_Irrigated | J50: at | T50: 43 | U50: Irrigation | V50: 0
B51: Return above all specified expenses | D51: =D9-D35-D49 -> 124.3856187 | H51: 44 | I51: Soybeans - Southwest KS_W-SB-F rotation | J51: au | T51: 44 | U51: Cash rent ( $ / acre ) | V51: 69
H52: 45 | I52: Sunflower (confectionary) - Double crop - Western KS_Irrigated - double crop | J52: av
H53: 46 | I53: Sunflower (Confectionary) - Western KS_Irrigated | J53: aw
A54: Menu name | C54: My test budget for kansas 1 | H54: 47 | I54: Sunflower (Confectionary) - Western KS_W-SF-F rotation | J54: ax
A55: Short name | C55: test budget 2 | H55: 48 | I55: Sunflower (oil-type) - Central and Eastern_Double crop | J55: ay
A56: Slot number | C56: 65 | H56: 49 | I56: Sunflower (oil-type) - Double crop - Western KS_Irrigated - double crop | J56: az
H57: 50 | I57: Sunflower (oil-type) - Eastern KS_ | J57: ba
H58: 51 | I58: Sunflower (oil-type) - Western KS_Irrigated | J58: bb
H59: 52 | I59: Sunflower (oil-type) - Western KS_W-SF-F rotation | J59: bc
H60: 53 | I60: Wheat - North Central KS_Continuous | J60: bd
H61: 54 | I61: Wheat - North Central KS_Rotation | J61: be
H62: 55 | I62: Wheat - Northeast KS_Continuous | J62: bf
H63: 56 | I63: Wheat - Northeast KS_Rotation | J63: bg | P63: c
H64: 57 | I64: Wheat - Northwest KS_W-F rotation | J64: bh
H65: 58 | I65: Wheat - Northwest KS_W-S_C-F rotation | J65: bi
H66: 59 | I66: Wheat - South Central KS_Continuous | J66: bj | N66: d
H67: 60 | I67: Wheat - South Central KS_Rotation | J67: bk
A68: Notes: If you have made changes to one of the default budgets on the Budget page, | H68: 61 | I68: Wheat - Southeast KS_ | J68: bl
A69: this is the how you can save it. Only the changes made on the first budget (column E and F from the | H69: 62 | I69: Wheat - Southwest KS_W-F rotation | J69: bm
A70: Budget page) can be saved, Make the changes you want using the overides from column F of the | H70: 63 | I70: Wheat - Southwest KS_W-S_C-F rotation | J70: bn
A71: Budget page. Once the budget changes look ok, come to this page. The budget shown above | H71: 64 | I71: Wheat - Western KS_Irrigated | J71: bo
A72: reflects those changes. You need to specify a menu name and a short name. Most importantly | H72: 65 | I72: 0 | J72: bp
A73: though, you need to specify a slot number for where this budget will be stored. To the right is the | H73: 66 | I73: =INDIRECT("'Name of budgets'!" & J73 & "7") -> 0 | J73: bq
A74: list of all the budgets currently stored. You can replace a default budget (not recommended) or you | H74: 67 | I74: 0 | J74: br
A75: can add a budget to one of the empty slots. There should be 10 or so empty spots to add more | H75: 68 | I75: 0 | J75: bs
A76: budgets. | H76: 69 | I76: 0 | J76: bt
H77: 70 | I77: 0 | J77: bu

Sheet Correlations (hidden)
A2: if Crops = 5 | N2: Yield -- Corn - Northeast KS | O2: Price -- Corn - Northeast KS | P2: Yield -- Grain Sorghum - North Central KS | Q2: Price -- Grain Sorghum - North Central KS | R2: Yield -- Soybeans - North Central KS | S2: Price -- Soybeans - North Central KS | T2: Yield -- Corn - North Central KS | U2: Price -- Corn - North Central KS | X2: Yield -- Corn - Northeast KS | Y2: Price -- Corn - Northeast KS | Z2: Yield -- Soybeans - Northeast KS | AA2: Price -- Soybeans - Northeast KS | AB2: Yield -- Wheat - Northeast KS | AC2: Price -- Wheat - Northeast KS | AF2: Yield -- Corn - North Central KS_ | AG2: Price -- Corn - North Central KS_ | AH2: Yield -- Soybeans - North Central KS_ | AI2: Price -- Soybeans - North Central KS_ | AL2: Yield -- Wheat - North Central KS_Rotation | AM2: Price -- Wheat - North Central KS_Rotation
B3: ='Flex leases'!B28 -> 1 | C3: ='Flex leases'!C28 -> 0 | D3: ='Flex leases'!D28 -> 0.5 | E3: ='Flex leases'!E28 -> 0 | F3: ='Flex leases'!F28 -> 0 | G3: ='Flex leases'!G28 -> 0 | H3: ='Flex leases'!H28 -> 0 | I3: ='Flex leases'!I28 -> 0 | J3: ='Flex leases'!J28 -> 0 | K3: ='Flex leases'!K28 -> 0 | N3: =B3 -> 1 | O3: =C3 -> 0 | P3: 0.5 | Q3: 0 | R3: 0 | S3: 0 | T3: 0 | U3: 0 | V3: Yield -- Corn - Northeast KS | X3: =N3 -> 1 | Y3: =O3 -> 0 | Z3: 0.5 | AA3: 0 | AB3: 0 | AC3: 0 | AD3: Yield -- Corn - Northeast KS | AF3: =X3 -> 1 | AG3: =Y3 -> 0 | AH3: 0.5 | AI3: 0 | AJ3: Yield -- Corn - North Central KS_ | AL3: =AF3 -> 1 | AM3: =AG3 -> 0 | AN3: Yield -- Wheat - North Central KS_Rotation
B4: ='Flex leases'!B29 -> 0 | C4: ='Flex leases'!C29 -> 1 | D4: ='Flex leases'!D29 -> 0 | E4: ='Flex leases'!E29 -> 0.6 | F4: ='Flex leases'!F29 -> 0 | G4: ='Flex leases'!G29 -> 0 | H4: ='Flex leases'!H29 -> 0 | I4: ='Flex leases'!I29 -> 0 | J4: ='Flex leases'!J29 -> 0 | K4: ='Flex leases'!K29 -> 0 | N4: =B4 -> 0 | O4: =C4 -> 1 | P4: =D4 -> 0 | Q4: =E4 -> 0.6 | R4: =F4 -> 0 | S4: =G4 -> 0 | T4: =H4 -> 0 | U4: =I4 -> 0 | V4: Price -- Corn - Northeast KS | X4: =N4 -> 0 | Y4: =O4 -> 1 | Z4: =P4 -> 0 | AA4: =Q4 -> 0.6 | AB4: =R4 -> 0 | AC4: =S4 -> 0 | AD4: Price -- Corn - Northeast KS | AF4: =X4 -> 0 | AG4: =Y4 -> 1 | AH4: =Z4 -> 0 | AI4: =AA4 -> 0.6 | AJ4: Price -- Corn - North Central KS_ | AL4: =AF4 -> 0 | AM4: =AG4 -> 1 | AN4: Price -- Wheat - North Central KS_Rotation
B5: ='Flex leases'!B30 -> 0 | C5: ='Flex leases'!C30 -> 0 | D5: ='Flex leases'!D30 -> 1 | E5: ='Flex leases'!E30 -> 0 | F5: ='Flex leases'!F30 -> 0 | G5: ='Flex leases'!G30 -> 0 | H5: ='Flex leases'!H30 -> 0 | I5: ='Flex leases'!I30 -> 0 | J5: ='Flex leases'!J30 -> 0 | K5: ='Flex leases'!K30 -> 0 | N5: 0 | O5: 0 | P5: 1 | Q5: 0 | R5: 0 | S5: 0 | T5: 0 | U5: 0 | V5: Yield -- Grain Sorghum - North Central KS | X5: 0 | Y5: 0 | Z5: 1 | AA5: 0 | AB5: 0 | AC5: 0 | AD5: Yield -- Soybeans - Northeast KS | AF5: 0 | AG5: 0 | AH5: 1 | AI5: 0 | AJ5: Yield -- Soybeans - North Central KS_
B6: ='Flex leases'!B31 -> 0 | C6: ='Flex leases'!C31 -> 0 | D6: ='Flex leases'!D31 -> 0 | E6: ='Flex leases'!E31 -> 1 | F6: ='Flex leases'!F31 -> 0 | G6: ='Flex leases'!G31 -> 0 | H6: ='Flex leases'!H31 -> 0 | I6: ='Flex leases'!I31 -> 0 | J6: ='Flex leases'!J31 -> 0 | K6: ='Flex leases'!K31 -> 0 | N6: 0 | O6: 0 | P6: 0 | Q6: 1 | R6: 0 | S6: 0 | T6: 0 | U6: 0 | V6: Price -- Grain Sorghum - North Central KS | X6: 0 | Y6: 0 | Z6: 0 | AA6: 1 | AB6: 0 | AC6: 0 | AD6: Price -- Soybeans - Northeast KS | AF6: 0 | AG6: 0 | AH6: 0 | AI6: 1 | AJ6: Price -- Soybeans - North Central KS_
B7: ='Flex leases'!B32 -> 0 | C7: ='Flex leases'!C32 -> 0 | D7: ='Flex leases'!D32 -> 0 | E7: ='Flex leases'!E32 -> 0 | F7: ='Flex leases'!F32 -> 1 | G7: ='Flex leases'!G32 -> 0 | H7: ='Flex leases'!H32 -> 0 | I7: ='Flex leases'!I32 -> 0 | J7: ='Flex leases'!J32 -> 0 | K7: ='Flex leases'!K32 -> 0 | N7: 0 | O7: 0 | P7: 0 | Q7: 0 | R7: 1 | S7: 0 | T7: 0 | U7: 0 | V7: Yield -- Soybeans - North Central KS | X7: 0 | Y7: 0 | Z7: 0 | AA7: 0 | AB7: 1 | AC7: 0 | AD7: Yield -- Wheat - Northeast KS
B8: ='Flex leases'!B33 -> 0 | C8: ='Flex leases'!C33 -> 0 | D8: ='Flex leases'!D33 -> 0 | E8: ='Flex leases'!E33 -> 0 | F8: ='Flex leases'!F33 -> 0 | G8: ='Flex leases'!G33 -> 1 | H8: ='Flex leases'!H33 -> 0 | I8: ='Flex leases'!I33 -> 0 | J8: ='Flex leases'!J33 -> 0 | K8: ='Flex leases'!K33 -> 0 | N8: 0 | O8: 0 | P8: 0 | Q8: 0 | R8: 0 | S8: 1 | T8: 0 | U8: 0 | V8: Price -- Soybeans - North Central KS | X8: 0 | Y8: 0 | Z8: 0 | AA8: 0 | AB8: 0 | AC8: 1 | AD8: Price -- Wheat - Northeast KS
B9: ='Flex leases'!B34 -> 0 | C9: ='Flex leases'!C34 -> 0 | D9: ='Flex leases'!D34 -> 0 | E9: ='Flex leases'!E34 -> 0 | F9: ='Flex leases'!F34 -> 0 | G9: ='Flex leases'!G34 -> 0 | H9: ='Flex leases'!H34 -> 1 | I9: ='Flex leases'!I34 -> 0 | J9: ='Flex leases'!J34 -> 0 | K9: ='Flex leases'!K34 -> 0 | N9: 0 | O9: 0 | P9: 0 | Q9: 0 | R9: 0 | S9: 0 | T9: 1 | U9: 0 | V9: Yield -- Corn - North Central KS | AL9: Yield -- Wheat - North Central KS_Rotation | AM9: Price -- Wheat - North Central KS_Rotation
B10: ='Flex leases'!B35 -> 0 | C10: ='Flex leases'!C35 -> 0 | D10: ='Flex leases'!D35 -> 0 | E10: ='Flex leases'!E35 -> 0 | F10: ='Flex leases'!F35 -> 0 | G10: ='Flex leases'!G35 -> 0 | H10: ='Flex leases'!H35 -> 0 | I10: ='Flex leases'!I35 -> 1 | J10: ='Flex leases'!J35 -> 0 | K10: ='Flex leases'!K35 -> 0 | N10: 0 | O10: 0 | P10: 0 | Q10: 0 | R10: 0 | S10: 0 | T10: 0 | U10: 1 | V10: Price -- Corn - North Central KS | AL10: 1 | AM10: 0.2 | AN10: Yield -- Wheat - North Central KS_Rotation
B11: ='Flex leases'!B36 -> 0 | C11: ='Flex leases'!C36 -> 0 | D11: ='Flex leases'!D36 -> 0 | E11: ='Flex leases'!E36 -> 0 | F11: ='Flex leases'!F36 -> 0 | G11: ='Flex leases'!G36 -> 0 | H11: ='Flex leases'!H36 -> 0 | I11: ='Flex leases'!I36 -> 0 | J11: ='Flex leases'!J36 -> 1 | K11: ='Flex leases'!K36 -> 0 | AF11: Yield -- Corn - North Central KS_ | AG11: Price -- Corn - North Central KS_ | AH11: Yield -- Soybeans - North Central KS_ | AI11: Price -- Soybeans - North Central KS_ | AL11: 0.2 | AM11: 1 | AN11: Price -- Wheat - North Central KS_Rotation
B12: ='Flex leases'!B37 -> 0 | C12: ='Flex leases'!C37 -> 0 | D12: ='Flex leases'!D37 -> 0 | E12: ='Flex leases'!E37 -> 0 | F12: ='Flex leases'!F37 -> 0 | G12: ='Flex leases'!G37 -> 0 | H12: ='Flex leases'!H37 -> 0 | I12: ='Flex leases'!I37 -> 0 | J12: ='Flex leases'!J37 -> 0 | K12: ='Flex leases'!K37 -> 1 | AF12: 1 | AG12: 0 | AH12: 0.5 | AI12: 0 | AJ12: Yield -- Corn - North Central KS_
X13: Yield -- Corn - Northeast KS | Y13: Price -- Corn - Northeast KS | Z13: Yield -- Soybeans - Northeast KS | AA13: Price -- Soybeans - Northeast KS | AB13: Yield -- Wheat - Northeast KS | AC13: Price -- Wheat - Northeast KS | AF13: 0 | AG13: 1 | AH13: 0 | AI13: 0.6 | AJ13: Price -- Corn - North Central KS_
X14: 1 | Y14: 0.2 | Z14: 0.7 | AA14: 0 | AB14: 0.3 | AC14: 0 | AD14: Yield -- Corn - Northeast KS | AF14: 0.5 | AG14: 0 | AH14: 1 | AI14: 0 | AJ14: Yield -- Soybeans - North Central KS_
N15: Yield -- Corn - Northeast KS | O15: Price -- Corn - Northeast KS | P15: Yield -- Grain Sorghum - North Central KS | Q15: Price -- Grain Sorghum - North Central KS | R15: Yield -- Soybeans - North Central KS | S15: Price -- Soybeans - North Central KS | T15: Yield -- Corn - North Central KS | U15: Price -- Corn - North Central KS | X15: 0.2 | Y15: 1 | Z15: 0 | AA15: 0.6 | AB15: 0 | AC15: 0.2 | AD15: Price -- Corn - Northeast KS | AF15: 0 | AG15: 0.6 | AH15: 0 | AI15: 1 | AJ15: Price -- Soybeans - North Central KS_
N16: 1 | O16: 0.2 | P16: 0.7 | Q16: 0 | R16: 0.3 | S16: 0 | T16: 0.2 | U16: 0.2 | V16: Yield -- Corn - Northeast KS | X16: 0.7 | Y16: 0 | Z16: 1 | AA16: 0.1 | AB16: 0.3 | AC16: 0 | AD16: Yield -- Soybeans - Northeast KS
N17: 0.2 | O17: 1 | P17: 0 | Q17: 0.6 | R17: 0 | S17: 0.2 | T17: 0.2 | U17: 0.2 | V17: Price -- Corn - Northeast KS | X17: 0 | Y17: 0.6 | Z17: 0.1 | AA17: 1 | AB17: 0 | AC17: 0.5 | AD17: Price -- Soybeans - Northeast KS
N18: 0.7 | O18: 0 | P18: 1 | Q18: 0.1 | R18: 0.3 | S18: 0 | T18: 0.2 | U18: 0.2 | V18: Yield -- Grain Sorghum - North Central KS | X18: 0.3 | Y18: 0 | Z18: 0.3 | AA18: 0 | AB18: 1 | AC18: 0.2 | AD18: Yield -- Wheat - Northeast KS
N19: 0 | O19: 0.6 | P19: 0.1 | Q19: 1 | R19: 0 | S19: 0.5 | T19: 0.2 | U19: 0.2 | V19: Price -- Grain Sorghum - North Central KS | X19: 0 | Y19: 0.2 | Z19: 0 | AA19: 0.5 | AB19: 0.2 | AC19: 1 | AD19: Price -- Wheat - Northeast KS
N20: 0.3 | O20: 0 | P20: 0.3 | Q20: 0 | R20: 1 | S20: 0.2 | T20: 0.2 | U20: 0.2 | V20: Yield -- Soybeans - North Central KS
N21: 0 | O21: 0.2 | P21: 0 | Q21: 0.5 | R21: 0.2 | S21: 1 | T21: 0.2 | U21: 0.2 | V21: Price -- Soybeans - North Central KS
N22: 0.2 | O22: 0.2 | P22: 0.2 | Q22: 0.2 | R22: 0.2 | S22: 0.2 | T22: 1 | U22: 0.2 | V22: Yield -- Corn - North Central KS
N23: 0.2 | O23: 0.2 | P23: 0.2 | Q23: 0.2 | R23: 0.2 | S23: 0.2 | T23: 0.2 | U23: 1 | V23: Price -- Corn - North Central KS
